Departmental Family,Entity,Date,Expense Type,Expense Area,Supplier,Transaction Number,Amount
Department for Work & Pensions,Corporate,28-Jun-13,PRIME FACILITY PRICE,OPS OPE ESTATES BASELINE,TELEREAL TRILLIUM,2030061230,"31,738,735"
Department for Work & Pensions,Corporate,14-Jun-13,NETWORK SERVICES,CIO ITLR NETWORK,BT GLOBAL SERVICES,2029904866,"8,391,540"
Department for Work & Pensions,Corporate,10-Jun-13,HOSTING SERVICES,CIO ITLR HOSTING,HP ENTERPRISE SERVICES UK LTD,2029827045,"6,556,946"
Department for Work & Pensions,Corporate,11-Jun-13,HOSTING SERVICES,CIO ITLR HOSTING,HP ENTERPRISE SERVICES UK LTD,2029832125,"6,178,603"
Department for Work & Pensions,Corporate,28-Jun-13,UNBILLED RECEIVABLE ACCOUNT,BALANCE SHEET,TELEREAL TRILLIUM,2030061230,"5,159,397"
Department for Work & Pensions,Corporate,28-Jun-13,PRIME BUSINESS RATES,OPS OPE ESTATES BASELINE,TELEREAL TRILLIUM,2030061229,"5,064,273"
Department for Work & Pensions,Corporate,26-Jun-13,MEDICAL SERVICES FIXED COSTS,OPS CCS MEDICAL SERVICES,ATOS HEALTHCARE,2030050362,"4,494,712"
Department for Work & Pensions,European Social Fund,07-Jun-13,MA ESF(D) PROGRAMME EXPENDITURE EC PREFUNDED OGDS,WWEG EUROPEAN SOCIAL FUND PROGRAMME 2007-2013,SOUTH EAST SKILLS FUNDING AGENCY,5000001387,"4,094,435"
Department for Work & Pensions,Corporate,25-Jun-13,DESKTOP SERVICES,CIO ITLR DESKTOP,HP ENTERPRISE SERVICES UK LTD,2029990525,"3,903,591"
Department for Work & Pensions,Corporate,25-Jun-13,MEDICAL OPINIONS INCAPACITY BENEFIT,OPS CCS MEDICAL SERVICES,ATOS HEALTHCARE,2029991654,"3,876,563"
Department for Work & Pensions,Corporate,12-Jun-13,CONTRACTED OUT OFFICE SERVICES,OPS OPE CENTRAL CONTACTS,BALFOUR BEATTY WORKPLACE LTD,2029883720,"3,621,090"
Department for Work & Pensions,Corporate,11-Jun-13,AMS FIXED PRICE CONTRACTS,CIO ITLR AMS,HP ENTERPRISE SERVICES UK LTD,2029832125,"3,598,583"
Department for Work & Pensions,Corporate,14-Jun-13,NETWORK CONTACT CENTRE SERVICES,CIO ITLR NETWORK,BT GLOBAL SERVICES,2029904866,"3,399,563"
Department for Work & Pensions,Child Maintenance and Enforcement Commission,25-Jun-13,HOSTING SERVICES,LEGACY SYSTEMS IT RUNNING COSTS - IOL,DWP,2000962,"3,270,969"
Department for Work & Pensions,Corporate,11-Jun-13,TREDDS APPS DEV MANDAYS,CHG PIP DELIVERY,HP ENTERPRISE SERVICES UK LTD,2029832125,"3,227,039"
Department for Work & Pensions,Employment Programmes,28-Jun-13,REMPLOY RESOURCE GRANT,WWEG EP REMPLOY,REMPLOY LTD,2030061335,"2,620,000"
Department for Work & Pensions,European Social Fund,05-Jun-13,MA ESF(D) PROGRAMME EXPENDITURE EC PREFUNDED OGDS,WWEG EUROPEAN SOCIAL FUND PROGRAMME 2007-2013,EAST OF ENGLAND LEARNING & SKILLS COUNCIL,5000001386,"2,524,586"
Department for Work & Pensions,Corporate,11-Jun-13,VAT CLEARING,BALANCE SHEET,CMG,2003910,"2,425,799"
Department for Work & Pensions,Corporate,14-Jun-13,SOFTWARE LICENCES,CIO ITLR HOSTING,HP ENTERPRISE SERVICES UK LTD,2029901912,"2,273,402"
Department for Work & Pensions,Corporate,14-Jun-13,HOSTING SERVICES,CIO ITLR HOSTING,HP ENTERPRISE SERVICES UK LTD,2029901912,"2,106,696"
Department for Work & Pensions,Corporate,25-Jun-13,POSTAGE,F&C CD ACC POSTAGE,UK MAIL,2029990080,"2,034,226"
Department for Work & Pensions,Corporate,11-Jun-13,HOSTING PRINT SERVICES,CIO ITLR HOSTING,HP ENTERPRISE SERVICES UK LTD,2029832125,"1,916,640"
Department for Work & Pensions,Corporate,19-Jun-13,NON PRIME PROPERTY COSTS,OPS OPE ESTATES BASELINE,HMRC,2029948112,"1,916,403"
Department for Work & Pensions,Corporate,11-Jun-13,VAT CLEARING,BALANCE SHEET,CMG,2003909,"1,913,080"
Department for Work & Pensions,Child Maintenance and Enforcement Commission,24-Jun-13,PRIME FACILITY PRICE,PRIME,DEPARTMENT FOR WORK & PENSIONS,2000960,"1,803,622"
Department for Work & Pensions,Corporate,04-Jun-13,SIAM FIXED PRICE CONTRACTS,CIO ITLR SIAM,HP ENTERPRISE SERVICES UK LTD,2029752852,"1,788,927"
Department for Work & Pensions,Child Maintenance and Enforcement Commission,13-Jun-13,PRIME FACILITY PRICE,PRIME,DEPARTMENT FOR WORK & PENSIONS,2000954,"1,773,899"
Department for Work & Pensions,Corporate,19-Jun-13,NON PRIME PROPERTY COSTS VAT RECOVERABLE,F&C CD DURHAM HOUSE,NEWCASTLE ESTATE PARTNERSHIP LTD,1005844,"1,750,000"
Department for Work & Pensions,Corporate,25-Jun-13,NON PRIME UTILITIES,F&C CD DWP GAS & ELECTRICITY PAYMENTS / RECHARGES,EDF ENERGY 1 LTD SCC UTILITIES ONLY,2029990293,"1,741,877"
Department for Work & Pensions,Child Maintenance and Enforcement Commission,21-Jun-13,BELFAST BENEFIT CENTRE (RUN COSTS),CSA CD CENT HELD NORTHERN IRELAND PAYMENTS,DSD GROUP ACCOUNT,1001355,"1,728,710"
Department for Work & Pensions,Corporate,28-Jun-13,PRIME FACILITY PRICE,OPS OPE ESTATES RECESSION,TELEREAL TRILLIUM,2030061230,"1,604,481"
Department for Work & Pensions,Corporate,14-Jun-13,TELEPHONY CALL CHARGES,CIO ITLR NETWORK,BT GLOBAL SERVICES,2029904866,"1,591,494"
Department for Work & Pensions,Corporate,12-Jun-13,BELFAST BENEFIT CENTRE (RUN COSTS),OPS BEN BD LN BELFAST,DEPARTMENT FOR SOCIAL DEVELOPMENT,1005833,"1,566,733"
Department for Work & Pensions,Corporate,12-Jun-13,BELFAST BENEFIT CENTRE (RUN COSTS),OPS BEN BD LN BELFAST,DEPARTMENT FOR SOCIAL DEVELOPMENT,1005834,"1,558,689"
Department for Work & Pensions,Employment Programmes,04-Jun-13,REMPLOY RESOURCE GRANT,WWEG EP REMPLOY,REMPLOY LTD,1005825,"1,530,000"
Department for Work & Pensions,Corporate,03-Jun-13,SOFTWARE LICENCES,CIO ITLR SOFTWARE P,SPECIALIST COMPUTER CENTRES PLC,2029747436,"1,439,175"
Department for Work & Pensions,Corporate,25-Jun-13,CONTRACTED OUT PRINTING & STATIONERY SOLUTIONS,F&C CD MANAGEMENT FEE,XEROX UK LTD 3W,2029990184,"1,397,012"
Department for Work & Pensions,Child Maintenance and Enforcement Commission,25-Jun-13,NETWORK SERVICES,LEGACY SYSTEMS IT RUNNING COSTS - IOL,DWP,2000962,"1,387,223"
Department for Work & Pensions,Corporate,24-Jun-13,NON-TREDDS IS IT APPS DEV MANDAY,CHG PIP DELIVERY,ACCENTURE UK LTD,2029988002,"1,359,364"
Department for Work & Pensions,Corporate,28-Jun-13,PRIME FACILITY PRICE,F&C CD CAXTON,TELEREAL TRILLIUM,2030061230,"1,254,665"
Department for Work & Pensions,Employment Programmes,19-Jun-13,CPS LP RECOVERIES,BALANCE SHEET,DWP MANUAL PAYMENTS,2003927,"1,110,180"
Department for Work & Pensions,Corporate,11-Jun-13,VALUATION OFFICE,OPS CCS HDD VOA,VALUATION OFFICE AGENCY,2003907,"1,050,000"
Department for Work & Pensions,Corporate,04-Jun-13,NON-TREDDS IS IT APPS DEV MANDAY,CHG PIP DELIVERY,IBM UNITED KINGDOM LTD,2029749255,"1,046,658"
Department for Work & Pensions,Corporate,12-Jun-13,NON-TREDDS IS IT SERVICES (DESKTOP),CIO ITLR SUSTAINABLE PRINT SERVICE,XEROX UK LTD 3W,2029862761,"1,046,198"
Department for Work & Pensions,Corporate,24-Jun-13,NON-TREDDS IS IT SERVICES (AMS),CIO ITPD AM CUSTOMER FACING SYS,ACCENTURE UK LTD,2029988002,"983,132"
Department for Work & Pensions,Corporate,25-Jun-13,NON-TREDDS IS IT SERVICES (AMS),CIO GG SERVICE DELIVERY,ATOS ORIGIN IT SERVICES UK LTD,2029990708,"965,004"
Department for Work & Pensions,Corporate,28-Jun-13,UNBILLED RECEIVABLE ACCOUNT,BALANCE SHEET,TELEREAL TRILLIUM,2030061229,"927,042"
Department for Work & Pensions,Housing Benefits,14-Jun-13,HOUSING BENEFIT ADMINISTRATION,HB ENGLAND,BIRMINGHAM CITY COUNCIL,2029901361,"908,663"
Department for Work & Pensions,Corporate,20-Jun-13,REMOTE STORAGE COSTS VAT RECOV,OPS OPE OIS CENTRAL CONTRACTS,CAPITA BUSINESS SERVICES LTD,2029981260,"905,826"
Department for Work & Pensions,Corporate,04-Jun-13,REMOTE STORAGE COSTS VAT RECOV,OPS OPE OIS CENTRAL CONTRACTS,CAPITA BUSINESS SERVICES LTD,2029750904,"901,695"
Department for Work & Pensions,Corporate,11-Jun-13,SIAM STAT MANDAYS,CIO ITLR SIAM,HP ENTERPRISE SERVICES UK LTD,2029832125,"810,422"
Department for Work & Pensions,Corporate,14-Jun-13,PRIME VARIABLE CHARGE,OPS OPE ESTATES BASELINE,TELEREAL TRILLIUM,2029905624,"789,394"
Department for Work & Pensions,Corporate,04-Jun-13,NON-TREDDS IS IT APPS DEV MANDAY,CIO CIS RELEASE 2,IBM UNITED KINGDOM LTD,2029749255,"775,819"
Department for Work & Pensions,Child Maintenance and Enforcement Commission,27-Jun-13,IS/IT RECHARGE - CIT ALLOCATIONS,LEGACY SYSTEMS IT RUNNING COSTS - IOL,DWP,2000963,"721,516"
Department for Work & Pensions,Corporate,19-Jun-13,NON PRIME PROPERTY COSTS,OPS OPE ESTATES BASELINE,HMRC,2029948467,"676,495"
Department for Work & Pensions,Child Maintenance and Enforcement Commission,21-Jun-13,CONTRACTED OUT OFFICE SERVICES,EXTERNAL CONTRACTS VERTEX,SERCO PUBLIC SERVICES LTD,1000181004,"637,540"
Department for Work & Pensions,Corporate,12-Jun-13,NON-TREDDS IS IT SERVICES (AMS),CIO ITPD AM FACILITATING SYS,IBM UNITED KINGDOM LTD,2029868888,"635,923"
Department for Work & Pensions,Housing Benefits,14-Jun-13,HOUSING BENEFIT ADMINISTRATION,HB SCOTLAND,CITY OF GLASGOW,2029901327,"614,650"
Department for Work & Pensions,Corporate,12-Jun-13,HOSTING SERVICES,CIO ITLR HOSTING,HP ENTERPRISE SERVICES UK LTD,2029856200,"608,289"
Department for Work & Pensions,Corporate,26-Jun-13,NON-TREDDS IS IT SERVICES (HOSTING),CIO ITLR HOSTING,HMRC,2030039247,"572,084"
Department for Work & Pensions,Corporate,21-Jun-13,NON-TREDDS IS IT SERVICES (AMS),CHG UC PATHFINDER RECURRENT COSTS,ACCENTURE UK LTD,2029983014,"569,228"
Department for Work & Pensions,Corporate,28-Jun-13,PRIME FACILITY PRICE,F&C CD NORCROSS,TELEREAL TRILLIUM,2030061230,"558,007"
Department for Work & Pensions,Corporate,10-Jun-13,CONTRACTED OUT OFFICE SERVICES,OPS NET CC CAPITA,CAPITA CUSTOMER MANAGEMENT LTD,2029829922,"548,696"
Department for Work & Pensions,Employment Programmes,05-Jun-13,SUPPORT FOR THE VERY LONG TERM UNEMPLOYED SUSTAINED JOB OUTCOME FEE,WWEG EP SVLTU CPA2 EAST MIDLANDS,INGEUS UK LTD,2029816516,"539,500"
Department for Work & Pensions,Corporate,28-Jun-13,PRIME FACILITY PRICE,F&C CD LEEDS QUARRY HOUSE,TELEREAL TRILLIUM,2030061230,"536,319"
Department for Work & Pensions,SHARED SERVICES,10-Jun-13,NON-TREDDS IS IT SERVICES (HOSTING),IT COSTS,FUJITSU SERVICES LTD,2029829153,"536,000"
Department for Work & Pensions,Child Maintenance and Enforcement Commission,25-Jun-13,AMS FIXED PRICE CONTRACTS,LEGACY SYSTEMS IT RUNNING COSTS - IOL,DWP,2000962,"531,258"
Department for Work & Pensions,Housing Benefits,14-Jun-13,HOUSING BENEFIT ADMINISTRATION,HB ENGLAND,LIVERPOOL CITY COUNCIL,2029901641,"514,005"
Department for Work & Pensions,Corporate,06-Jun-13,NON-TREDDS IS IT APPS DEV MANDAY,CHG BENEFIT CAP,CAPGEMINI UK PLC,2029818169,"481,325"
Department for Work & Pensions,Housing Benefits,14-Jun-13,HOUSING BENEFIT ADMINISTRATION,HB ENGLAND,LEEDS CITY COUNCIL,2029901534,"480,337"
Department for Work & Pensions,Housing Benefits,14-Jun-13,HOUSING BENEFIT ADMINISTRATION,HB ENGLAND,MANCHESTER CITY COUNCIL,2029901662,"470,741"
Department for Work & Pensions,Corporate,10-Jun-13,CONTRACTED OUT OFFICE SERVICES,OPS NET CC NETWORK MANAGEMENT TEAM,CAPITA CUSTOMER MANAGEMENT LTD,2029829922,"464,810"
Department for Work & Pensions,Corporate,04-Jun-13,NETWORK SERVICES,CHG UC PATHFINDER DELIVERY MANAGEMENT,BT GLOBAL SERVICES,2029751846,"432,221"
Department for Work & Pensions,Child Maintenance and Enforcement Commission,25-Jun-13,DESKTOP SERVICES,LEGACY SYSTEMS IT RUNNING COSTS - IOL,DWP,2000962,"430,571"
Department for Work & Pensions,Corporate,25-Jun-13,MEDICAL OPINIONS (EMP) DISABILITY LIVING ALLOWANCE (DLA),OPS BEN DD DISABILITY CSD OVERLAY,ATOS HEALTHCARE,2029991654,"411,724"
Department for Work & Pensions,Child Maintenance and Enforcement Commission,11-Jun-13,TREDDS APPS DEV MANDAYS,NEW SCHEME HOSTING - DEVELOPMENT,HP ENTERPRISE SERVICES UK LTD,1000179896,"410,563"
Department for Work & Pensions,Corporate,25-Jun-13,NON-TREDDS IS IT SERVICES (HOSTING),CIO GG SERVICE DELIVERY,ATOS ORIGIN IT SERVICES UK LTD,2029990708,"408,762"
Department for Work & Pensions,Corporate,28-Jun-13,PRIME BUSINESS RATES,F&C CD CAXTON,TELEREAL TRILLIUM,2030061229,"407,279"
Department for Work & Pensions,Child Maintenance and Enforcement Commission,12-Jun-13,CONTRACTED OUT OFFICE SERVICES,CS CENTRALLY HELD BUDGETS FACILITIES CONTRACTS,BALFOUR BEATTY WORKPLACE LTD,1000179974,"402,961"
Department for Work & Pensions,Corporate,28-Jun-13,NEW ENTERPRISE ALLOWANCE LOAN PAYMENT (DEL CAPITAL),OPS WDC WSD DEL PROG REPORTING,GREATER LONDON ENTERPRISE,2030061302,"400,000"
Department for Work & Pensions,Corporate,04-Jun-13,HOSTING FIXED PRICE CONTRACTS,CIO ITLR HOSTING,HP ENTERPRISE SERVICES UK LTD,2029752852,"394,953"
Department for Work & Pensions,Child Maintenance and Enforcement Commission,24-Jun-13,PRIME BUSINESS RATES,PRIME,DEPARTMENT FOR WORK & PENSIONS,2000960,"391,346"
Department for Work & Pensions,Employment Programmes,12-Jun-13,SERVICE FEE,"WWEG EP SUPPORT LONDON CENTRL, LAMBETH, SOUTHWRK AND WANDSWRTH",A4E LTD,2029869166,"389,218"
Department for Work & Pensions,Housing Benefits,14-Jun-13,HOUSING BENEFIT ADMINISTRATION,HB ENGLAND,DURHAM COUNCIL,2029901672,"383,047"
Department for Work & Pensions,Housing Benefits,14-Jun-13,HOUSING BENEFIT ADMINISTRATION,HB ENGLAND,BRADFORD METROPOLITAN BOROUGH COUNCIL,2029901525,"382,904"
Department for Work & Pensions,Corporate,04-Jun-13,NON-TREDDS IS IT APPS DEV MANDAY,CHG DELIVERING THE IRIS ORGANISATION,IBM UNITED KINGDOM LTD,2029749255,"382,375"
Department for Work & Pensions,Child Maintenance and Enforcement Commission,13-Jun-13,PRIME BUSINESS RATES,PRIME,DEPARTMENT FOR WORK & PENSIONS,2000954,"381,207"
Department for Work & Pensions,Corporate,06-Jun-13,NON-TREDDS APPS DEV FIXED PRICE CONTRACTS,CHG AUTOMATED SERVICE DELIVERY,ACCENTURE UK LTD,2029818392,"379,668"
Department for Work & Pensions,Corporate,27-Jun-13,NON-TREDDS APPS DEV FIXED PRICE CONTRACTS,CIO GG DEVELOPMENT,ATOS ORIGIN IT SERVICES UK LTD,2030055877,"376,916"
Department for Work & Pensions,Corporate,11-Jun-13,SIAM MANAGEMENT SERVICES,CIO ITLR SIAM,HP ENTERPRISE SERVICES UK LTD,2029832125,"371,605"
Department for Work & Pensions,Corporate,19-Jun-13,SIMPLE PAYMENT SERVICE,F&C FIN CONT COBAP CHEQUES,CITIBANK GLOBAL CORPORATE BANKING,2029950945,"366,066"
Department for Work & Pensions,Corporate,28-Jun-13,PRIME UTILITIES,OPS OPE ESTATES BASELINE,TELEREAL TRILLIUM,2030061228,"363,958"
Department for Work & Pensions,Corporate,04-Jun-13,ICONS IS IT CONSULTANCY NON ADVICE,CHG UC PATHFINDER DELIVERY MANAGEMENT,BT GLOBAL SERVICES,2029751846,"353,790"
Department for Work & Pensions,Child Maintenance and Enforcement Commission,24-Jun-13,PRIME VARIABLE CHARGE,PRIME,DEPARTMENT FOR WORK & PENSIONS,2000960,"352,706"
Department for Work & Pensions,Housing Benefits,14-Jun-13,HOUSING BENEFIT ADMINISTRATION,HB ENGLAND,LONDON BOROUGH OF TOWER HAMLETS,2029901447,"350,861"
Department for Work & Pensions,Corporate,20-Jun-13,NEW ENTERPRISE ALLOWANCE LOAN PAYMENT (DEL CAPITAL),OPS WDC WSD DEL PROG REPORTING,CDFA,2029979261,"350,000"
Department for Work & Pensions,Employment Programmes,28-Jun-13,SERVICE FEE,WWEG EP WORK CHOICE S WEST WALES S WALES VALLEYS,SHAW TRUST,2030061651,"348,789"
Department for Work & Pensions,Housing Benefits,14-Jun-13,HOUSING BENEFIT ADMINISTRATION,HB ENGLAND,LONDON BOROUGH OF LAMBETH,2029901504,"338,726"
Department for Work & Pensions,Housing Benefits,14-Jun-13,HOUSING BENEFIT ADMINISTRATION,HB ENGLAND,SHEFFIELD CITY COUNCIL,2029901451,"338,356"
Department for Work & Pensions,Housing Benefits,14-Jun-13,HOUSING BENEFIT ADMINISTRATION,HB ENGLAND,LONDON BOROUGH OF LEWISHAM,2029901539,"336,041"
Department for Work & Pensions,Corporate,24-Jun-13,NON-TREDDS IS IT APPS DEV MANDAY,CHG SCANNING & DIGITAL STORAGE,ACCENTURE UK LTD,2029988002,"331,920"
Department for Work & Pensions,Housing Benefits,14-Jun-13,HOUSING BENEFIT ADMINISTRATION,HB ENGLAND,HACKNEY LBC,2029901362,"331,465"
Department for Work & Pensions,Corporate,04-Jun-13,POSTAGE,F&C CD ACC POSTAGE,ROYAL MAIL GROUP PLC,2029751845,"330,479"
Department for Work & Pensions,Corporate,14-Jun-13,DESKTOP SERVICES,CIO ITLR DESKTOP,HP ENTERPRISE SERVICES UK LTD,2029901912,"329,413"
Department for Work & Pensions,Housing Benefits,14-Jun-13,HOUSING BENEFIT ADMINISTRATION,HB ENGLAND,CORNWALL COUNCIL,2029901673,"327,467"
Department for Work & Pensions,Corporate,28-Jun-13,PRIME FACILITY PRICE,F&C CD PEEL PARK,TELEREAL TRILLIUM,2030061230,"324,670"
Department for Work & Pensions,Corporate,19-Jun-13,PROFESSIONAL ADVICE & OPINION VAT RECOVERABLE,PSG LEGAL SERVICES LITIGATION & EMPLOYMENT,FIELD FISHER WATERHOUSE LLP,2029948458,"323,326"
Department for Work & Pensions,Housing Benefits,14-Jun-13,HOUSING BENEFIT ADMINISTRATION,HB ENGLAND,BRISTOL CITY COUNCIL,2029901429,"316,030"
Department for Work & Pensions,Housing Benefits,14-Jun-13,HOUSING BENEFIT ADMINISTRATION,HB ENGLAND,LONDON BOROUGH OF SOUTHWARK,2029901398,"312,554"
Department for Work & Pensions,Corporate,28-Jun-13,PRIME FACILITY PRICE,F&C CD MANCHESTER HEYWOOD STORES,TELEREAL TRILLIUM,2030061230,"312,244"
Department for Work & Pensions,Corporate,26-Jun-13,FSF - SUPPORT CONTRACT MODULES FOR JSA JOBSEEKERS,OPS WDC WSD CE EAST ANGLIA DISTRICT OFFICE,AVANTA ENTERPRISE LTD,2030029778,"304,533"
Department for Work & Pensions,Corporate,11-Jun-13,APPS DEV INDEX ARR,CHG UC BUSINESS & IT SOLUTIONS,HP ENTERPRISE SERVICES UK LTD,2029832125,"298,651"
Department for Work & Pensions,Corporate,11-Jun-13,AMS SERVICES,CIO ITLR AMS,HP ENTERPRISE SERVICES UK LTD,2029832125,"296,981"
Department for Work & Pensions,Corporate,07-Jun-13,STAFF RELATED COSTS,HR EYECARE,ASE CORPORATE EYECARE LTD,2029825738,"295,862"
Department for Work & Pensions,Corporate,12-Jun-13,NON-TREDDS APPS DEV FIXED PRICE CONTRACTS,CIO COO IT DIRECTOR,CAPGEMINI UK PLC,2029855055,"295,473"
Department for Work & Pensions,Child Maintenance and Enforcement Commission,20-Jun-13,CONTRACTED OUT OFFICE SERVICES,OPTIONS,CAPITA CUSTOMER MANAGEMENT LTD,1000180906,"294,433"
Department for Work & Pensions,Corporate,25-Jun-13,NON-TREDDS IS IT APPS DEV MANDAY,CHG SCANNING & DIGITAL STORAGE,ACCENTURE UK LTD,2029989612,"290,419"
Department for Work & Pensions,Child Maintenance and Enforcement Commission,18-Jun-13,CORPORATE COSTS,NEW SCHEME JCP,DWP,2000957,"288,951"
Department for Work & Pensions,Corporate,07-Jun-13,SOFTWARE LICENCES,OPS BEN BD DIRECTORS RESIDUAL,SPECIALIST COMPUTER CENTRES PLC,2029824382,"286,987"
Department for Work & Pensions,Corporate,03-Jun-13,SOFTWARE LICENCES,CIO ITLR HOSTING,SPECIALIST COMPUTER CENTRES PLC,2029747436,"286,276"
Department for Work & Pensions,Corporate,10-Jun-13,TREDDS APPS DEV MANDAYS,CIO SECURITY IMPROVEMENT PROGRAMME,HP ENTERPRISE SERVICES UK LTD,2029827045,"285,850"
Department for Work & Pensions,Employment Programmes,28-Jun-13,SERVICE FEE,WWEG EP WORK CHOICE SURREY AND SUSSEX KENT,WORKING LINKS,2030061096,"285,794"
Department for Work & Pensions,Corporate,27-Jun-13,BANK COMMISSION & CHARGES,F&C FIN CONT COBAP BANKING,HSBC BANK PLC,2030057166,"284,643"
Department for Work & Pensions,Housing Benefits,14-Jun-13,HOUSING BENEFIT ADMINISTRATION,HB SCOTLAND,EDINBURGH DISTRICT COUNCIL,2029901328,"284,225"
Department for Work & Pensions,Corporate,24-Jun-13,NON-TREDDS IS IT APPS DEV MANDAY,CHG CP SERVICE ORIENTATED ARCHITECTURE,ACCENTURE UK LTD,2029988002,"283,964"
Department for Work & Pensions,Corporate,11-Jun-13,TREDDS APPS DEV MANDAYS,CHG UC PROJECT LEDGER CC,HP ENTERPRISE SERVICES UK LTD,2029832125,"280,848"
Department for Work & Pensions,European Social Fund,07-Jun-13,MA ESF(D) Corporate Creditor,WWEG EUROPEAN SOCIAL FUND PROGRAMME 2007-2013,DEPARTMENT FOR WORK & PENSIONS,5000001389,"280,669"
Department for Work & Pensions,Housing Benefits,14-Jun-13,HOUSING BENEFIT ADMINISTRATION,HB ENGLAND,LONDON BOROUGH OF BRENT,2029901692,"279,574"
Department for Work & Pensions,Housing Benefits,14-Jun-13,HOUSING BENEFIT ADMINISTRATION,HB ENGLAND,LONDON BOROUGH OF ENFIELD,2029901378,"272,536"
Department for Work & Pensions,Corporate,11-Jun-13,HOSTING FIXED PRICE CONTRACTS,CIO ITLR HOSTING,HP ENTERPRISE SERVICES UK LTD,2029832125,"271,731"
Department for Work & Pensions,Corporate,12-Jun-13,CONTRACTED OUT OFFICE SERVICES,F&C CD OFFICE SERVICES,BALFOUR BEATTY WORKPLACE LTD,2029883720,"271,515"
Department for Work & Pensions,Housing Benefits,14-Jun-13,HOUSING BENEFIT ADMINISTRATION,HB ENGLAND,CROYDON PEO%,2029901406,"267,979"
Department for Work & Pensions,Corporate,20-Jun-13,NON PRIME PROPERTY COSTS,OPS OPE ESTATES BASELINE,HMRC,2029978081,"266,290"
Department for Work & Pensions,Employment Programmes,28-Jun-13,SERVICE FEE,WWEG EP WORK CHOICE DERBYSHIRE SOUTH YORKSHIRE,SHAW TRUST,2030061651,"266,202"
Department for Work & Pensions,Employment Programmes,28-Jun-13,SERVICE FEE,WWEG EP WORK CHOICE W LON C LON BARNET ENFIELD HARINGEY,SEETEC BUSINESS TECHNOLOGY CENTRE LTD,2030061295,"265,893"
Department for Work & Pensions,Housing Benefits,14-Jun-13,HOUSING BENEFIT ADMINISTRATION,HB ENGLAND,LONDON BOROUGH OF NEWHAM,2029901690,"264,947"
Department for Work & Pensions,Housing Benefits,14-Jun-13,HOUSING BENEFIT ADMINISTRATION,HB ENGLAND,SANDWELL BOROUGH COUNCIL,2029901655,"263,537"
Department for Work & Pensions,Corporate,26-Jun-13,CONTRACTED OUT OFFICE SERVICES,OPS NET CC SERCO JSD NINO,SERCO PUBLIC SERVICES LTD,2030033756,"261,119"
Department for Work & Pensions,Housing Benefits,14-Jun-13,HOUSING BENEFIT ADMINISTRATION,HB ENGLAND,NOTTINGHAM CITY COUNCIL,2029901667,"260,287"
Department for Work & Pensions,Employment Programmes,28-Jun-13,SERVICE FEE,WWEG EP WORK CHOICE DEVON AND CORNWALL,THE PLUSS ORGANISATION,2030061178,"257,736"
Department for Work & Pensions,Housing Benefits,14-Jun-13,HOUSING BENEFIT ADMINISTRATION,HB ENGLAND,KIRKLEES METROPOLITAN BOROUGH COUNCIL,2029901507,"256,973"
Department for Work & Pensions,Corporate,28-Jun-13,PRIME BUSINESS RATES,OPS OPE ESTATES RECESSION,TELEREAL TRILLIUM,2030061229,"255,616"
Department for Work & Pensions,Housing Benefits,14-Jun-13,HOUSING BENEFIT ADMINISTRATION,HB ENGLAND,LONDON BOROUGH OF HARINGEY,2029901691,"254,809"
Department for Work & Pensions,Employment Programmes,21-Jun-13,RESIDENTIAL TRAINING COSTS,WWEG EP DELIVERY WELFARE TO WORK PRODUCT SUPPORT,FINCHALE TRAINING COLLEGE,2029983907,"254,569"
Department for Work & Pensions,Corporate,07-Jun-13,NON-TREDDS IS IT APPS DEV MANDAY,CHG PIP DELIVERY,IBM UNITED KINGDOM LTD,2029822599,"254,537"
Department for Work & Pensions,Housing Benefits,14-Jun-13,HOUSING BENEFIT ADMINISTRATION,HB ENGLAND,LEICESTER CITY COUNCIL,2029901494,"249,708"
Department for Work & Pensions,European Social Fund,24-Jun-13,MA ESF(D) PROGRAMME EXPENDITURE EC PREFUNDED OGDS,WWEG EUROPEAN SOCIAL FUND PROGRAMME 2007-2013,GREATER LONDON AUTHORITY,5000001399,"249,316"
Department for Work & Pensions,Housing Benefits,14-Jun-13,HOUSING BENEFIT ADMINISTRATION,HB ENGLAND,LONDON BOROUGH OF EALING,2029901338,"247,049"
Department for Work & Pensions,Housing Benefits,14-Jun-13,HOUSING BENEFIT ADMINISTRATION,HB ENGLAND,LONDON BOROUGH OF ISLINGTON,2029901590,"246,857"
Department for Work & Pensions,Child Maintenance and Enforcement Commission,14-Jun-13,TREDDS APPS DEV MANDAYS,LEGACY RELEASE 22,HP ENTERPRISE SERVICES UK LTD,1000180433,"241,708"
Department for Work & Pensions,Child Maintenance and Enforcement Commission,06-Jun-13,SOFTWARE LICENCES,FUTURE SYSTEM IT RUNNING COSTS - DIRECT,SPECIALIST COMPUTER CENTRES PLC,1000179616,"240,703"
Department for Work & Pensions,Housing Benefits,14-Jun-13,HOUSING BENEFIT ADMINISTRATION,HB ENGLAND,SUNDERLAND CITY COUNCIL,2029901656,"240,180"
Department for Work & Pensions,Housing Benefits,14-Jun-13,HOUSING BENEFIT ADMINISTRATION,HB ENGLAND,WAKEFIELD  DISTRICT COUNCIL,2029901488,"239,610"
Department for Work & Pensions,Housing Benefits,14-Jun-13,HOUSING BENEFIT ADMINISTRATION,HB ENGLAND,LONDON BOROUGH OF GREENWICH,2029901339,"239,058"
Department for Work & Pensions,Corporate,06-Jun-13,IT Owned Additions Cost,CIO ITLR IGS,SPECIALIST COMPUTER CENTRES PLC,2029820490,"238,809"
Department for Work & Pensions,Housing Benefits,14-Jun-13,HOUSING BENEFIT ADMINISTRATION,HB ENGLAND,COVENTRY CITY COUNCIL,2029901384,"238,558"
Department for Work & Pensions,Corporate,25-Jun-13,NETWORK SERVICES,CHG PIP DELIVERY,BT GLOBAL SERVICES,2029990076,"237,666"
Department for Work & Pensions,Corporate,26-Jun-13,NON-TREDDS APPS DEV FIXED PRICE CONTRACTS,CHG STATE PENSION REFORM 2,CAPGEMINI UK PLC,2030039656,"236,832"
Department for Work & Pensions,Housing Benefits,14-Jun-13,HOUSING BENEFIT ADMINISTRATION,HB ENGLAND,WIRRAL BOROUGH COUNCIL,2029901639,"235,349"
Department for Work & Pensions,Housing Benefits,14-Jun-13,HOUSING BENEFIT ADMINISTRATION,HB SCOTLAND,NORTH LANARKSHIRE COUNCIL,2029901513,"234,398"
Department for Work & Pensions,Corporate,10-Jun-13,CONTRACTED OUT OFFICE SERVICES,OPS NET CC SERCO JSD NINO,SERCO PUBLIC SERVICES LTD,2029826806,"233,986"
Department for Work & Pensions,Employment Programmes,28-Jun-13,SERVICE FEE,WWEG EP WORK CHOICE THE MARCHES COVENTRY AND WARKS,SHAW TRUST,2030061651,"233,044"
Department for Work & Pensions,Housing Benefits,14-Jun-13,HOUSING BENEFIT ADMINISTRATION,HB ENGLAND,WALSALL BOROUGH COUNCIL,2029901654,"232,550"
Department for Work & Pensions,Employment Programmes,28-Jun-13,SERVICE FEE,WWEG EP WORK CHOICE BEDFORDSHIRE AND HERTFORDSHIRE ESSEX,SHAW TRUST,2030061651,"231,883"
Department for Work & Pensions,Housing Benefits,14-Jun-13,HOUSING BENEFIT ADMINISTRATION,HB ENGLAND,KINGSTON UPON HULL CITY COUNCIL,2029901477,"230,173"
Department for Work & Pensions,Corporate,11-Jun-13,TREDDS APPS DEV MANDAYS,F&C FIN CONT FIN SYSTEMS INT CONTROL GROUP,HP ENTERPRISE SERVICES UK LTD,2029832125,"225,682"
Department for Work & Pensions,Housing Benefits,14-Jun-13,HOUSING BENEFIT ADMINISTRATION,HB ENGLAND,LONDON BOROUGH OF BARNET,2029901379,"225,387"
Department for Work & Pensions,Corporate,27-Jun-13,NON-TREDDS IS IT SERVICES (AMS),OPS CCS TUO NEW BUSINESS,ATOS ORIGIN IT SERVICES UK LTD,2030055877,"224,664"
Department for Work & Pensions,Corporate,26-Jun-13,PACS INTER-VOTE CREDITOR,BALANCE SHEET,DWP MANUAL PAYMENTS,2003938,"222,876"
Department for Work & Pensions,Employment Programmes,28-Jun-13,SERVICE FEE,WWEG EP WORK CHOICE WEST YORKSHIRE,THE PLUSS ORGANISATION,2030061178,"222,785"
Department for Work & Pensions,Housing Benefits,14-Jun-13,HOUSING BENEFIT ADMINISTRATION,HB ENGLAND,LONDON BOROUGH OF WANDSWORTH,2029901577,"222,747"
Department for Work & Pensions,Housing Benefits,14-Jun-13,HOUSING BENEFIT ADMINISTRATION,HB ENGLAND,BRIGHTON & HOVE COUNCIL,2029901449,"222,455"
Department for Work & Pensions,Employment Programmes,19-Jun-13,RESIDENTIAL TRAINING COSTS,WWEG EP DELIVERY WELFARE TO WORK PRODUCT SUPPORT,QUEEN ELIZABETHS FOUNDATION FOR DISABLED PEOPLE,2029976105,"221,359"
Department for Work & Pensions,Housing Benefits,14-Jun-13,HOUSING BENEFIT ADMINISTRATION,HB WALES,CARDIFF CITY COUNCIL,2029901562,"220,793"
Department for Work & Pensions,Housing Benefits,14-Jun-13,HOUSING BENEFIT ADMINISTRATION,HB ENGLAND,DONCASTER METROPOLITAN BOROUGH COUNCIL,2029901470,"220,631"
Department for Work & Pensions,Corporate,13-Jun-13,PRIME BILLABLE EXTRAS PRIME CONTRACT MANAGEMENT (PCM),F&C CD LEEDS BMT,TELEREAL TRILLIUM,2029900467,"219,738"
Department for Work & Pensions,Corporate,12-Jun-13,CONTRACTED OUT DOCUMENT SCANNING,OPS OPE CENTRAL CONTACTS,BALFOUR BEATTY WORKPLACE LTD,2029883720,"217,755"
Department for Work & Pensions,Housing Benefits,14-Jun-13,HOUSING BENEFIT ADMINISTRATION,HB ENGLAND,WOLVERHAMPTON CITY COUNCIL,2029901405,"216,803"
Department for Work & Pensions,Housing Benefits,14-Jun-13,HOUSING BENEFIT ADMINISTRATION,HB SCOTLAND,FIFE COUNCIL,2029901402,"216,412"
Department for Work & Pensions,Housing Benefits,14-Jun-13,HOUSING BENEFIT ADMINISTRATION,HB ENGLAND,LONDON BOROUGH OF CAMDEN,2029901453,"213,379"
Department for Work & Pensions,Employment Programmes,28-Jun-13,SERVICE FEE,WWEG EP WORK CHOICE NORTH AND MID WALES SOUTH EAST WALES,WORKING LINKS,2030061096,"213,089"
Department for Work & Pensions,Employment Programmes,28-Jun-13,SERVICE FEE,WWEG EP WORK CHOICE G MANCHESTER CENTRAL; G MANCHESTER E & W,SHAW TRUST,2030061651,"212,415"
Department for Work & Pensions,Housing Benefits,14-Jun-13,HOUSING BENEFIT ADMINISTRATION,HB ENGLAND,CITY OF WESTMINSTER,2029901581,"211,914"
Department for Work & Pensions,Housing Benefits,14-Jun-13,HOUSING BENEFIT ADMINISTRATION,HB ENGLAND,SALFORD CITY COUNCIL,2029901646,"211,287"
Department for Work & Pensions,Housing Benefits,14-Jun-13,HOUSING BENEFIT ADMINISTRATION,HB ENGLAND,NEWCASTLE CITY COUNCIL,2029901578,"209,492"
Department for Work & Pensions,Corporate,07-Jun-13,SOFTWARE LICENCES,CHG PIP DELIVERY,SPECIALIST COMPUTER CENTRES PLC,2029824382,"209,232"
Department for Work & Pensions,Corporate,07-Jun-13,NON-TREDDS APPS DEV FIXED PRICE CONTRACTS,CIO GG DEVELOPMENT,ATOS ORIGIN IT SERVICES UK LTD,2029822889,"208,610"
Department for Work & Pensions,Housing Benefits,14-Jun-13,HOUSING BENEFIT ADMINISTRATION,HB ENGLAND,BOLTON METROPOLITAN BOROUGH COUNCIL,2029901335,"207,351"
Department for Work & Pensions,European Social Fund,19-Jun-13,MA ESF(D) PROGRAMME EXPENDITURE EC PREFUNDED DWP,WWEG EUROPEAN SOCIAL FUND PROGRAMME 2007-2013,WEST MIDLANDS DWP,5000001395,"206,030"
Department for Work & Pensions,Child Maintenance and Enforcement Commission,13-Jun-13,PRIME UTILITIES INITIATIVES COSTS,PRIME,DEPARTMENT FOR WORK & PENSIONS,2000953,"206,000"
Department for Work & Pensions,Employment Programmes,28-Jun-13,SERVICE FEE,WWEG EP WORK CHOICE CAMBRIDGESHIRE AND SUFFOLK NORFOLK,SHAW TRUST,2030061651,"204,632"
Department for Work & Pensions,Housing Benefits,14-Jun-13,HOUSING BENEFIT ADMINISTRATION,HB ENGLAND,LONDON BOROUGH OF WALTHAM FOREST,2029901518,"202,988"
Department for Work & Pensions,Employment Programmes,24-Jun-13,RESIDENTIAL TRAINING COSTS,WWEG EP DELIVERY WELFARE TO WORK PRODUCT SUPPORT,ST LOYES COLLEGE FOUNDATION,2029989068,"202,258"
Department for Work & Pensions,Housing Benefits,14-Jun-13,HOUSING BENEFIT ADMINISTRATION,HB ENGLAND,WILTSHIRE COUNCIL,2029901647,"199,401"
Department for Work & Pensions,Corporate,07-Jun-13,NON-TREDDS IS IT APPS DEV MANDAY,CIO CIS RELEASE 4,IBM UNITED KINGDOM LTD,2029822599,"199,156"
Department for Work & Pensions,Corporate,14-Jun-13,HOSTING PRINT SERVICES,CIO ITLR HOSTING,HP ENTERPRISE SERVICES UK LTD,2029901912,"199,079"
Department for Work & Pensions,Corporate,14-Jun-13,UNBILLED RECEIVABLE ACCOUNT,BALANCE SHEET,TELEREAL TRILLIUM,2029905624,"198,258"
Department for Work & Pensions,Housing Benefits,14-Jun-13,HOUSING BENEFIT ADMINISTRATION,HB ENGLAND,WIGAN BOROUGH COUNCIL,2029901352,"197,754"
Department for Work & Pensions,European Social Fund,17-Jun-13,MA ESF(D) PROGRAMME EXPENDITURE EC PREFUNDED DWP,WWEG EUROPEAN SOCIAL FUND PROGRAMME 2007-2013,SOUTH WEST DWP,5000001392,"197,744"
Department for Work & Pensions,Corporate,18-Jun-13,ENCASHMENT OF CHEQUES,F&C FIN CONT COBAP CHEQUES,SANTANDER,1005840,"197,425"
Department for Work & Pensions,Employment Programmes,28-Jun-13,SERVICE FEE,WWEG EP WORK CHOICE BIRMINGHAM SOLIHULL BLACK COUNTRY,ADVANCE HOUSING & SUPPORT LTD,2030061094,"197,211"
Department for Work & Pensions,Corporate,07-Jun-13,TREDDS APPS DEV FIXED PRICE CONTRACTS,CHG PIP DELIVERY,HP ENTERPRISE SERVICES UK LTD,2029825703,"197,142"
Department for Work & Pensions,Housing Benefits,14-Jun-13,HOUSING BENEFIT ADMINISTRATION,HB ENGLAND,STOKE ON TRENT CITY COUNCIL,2029901383,"189,980"
Department for Work & Pensions,Employment Programmes,28-Jun-13,SERVICE FEE,WWEG EP WORK CHOICE NOTTINGHAMSHIRE LINCOLNSHIRE AND RUTLAND,SHAW TRUST,2030061651,"189,601"
Department for Work & Pensions,Housing Benefits,14-Jun-13,HOUSING BENEFIT ADMINISTRATION,HB ENGLAND,PLYMOUTH CITY COUNCIL,2029901588,"189,160"
Department for Work & Pensions,Corporate,03-Jun-13,CIVIL SERVICE OCCUPATIONAL HEALTH SERVICE,HR OHS,ATOS ORIGIN IT SERVICES UK,2029747724,"188,829"
Department for Work & Pensions,Housing Benefits,14-Jun-13,HOUSING BENEFIT ADMINISTRATION,HB ENGLAND,NORTHUMBERLAND COUNCIL,2029901671,"188,219"
Department for Work & Pensions,Housing Benefits,14-Jun-13,HOUSING BENEFIT ADMINISTRATION,HB ENGLAND,DUDLEY METROPOLITAN BOROUGH COUNCIL,2029901668,"188,184"
Department for Work & Pensions,Employment Programmes,28-Jun-13,SERVICE FEE,WWEG EP WORK CHOICE GLASGOW LANARKS AND E DUNBART,SHAW TRUST,2030061651,"187,982"
Department for Work & Pensions,Housing Benefits,14-Jun-13,HOUSING BENEFIT ADMINISTRATION,HB SCOTLAND,SOUTH LANARKSHIRE COUNCIL,2029901423,"187,282"
Department for Work & Pensions,Housing Benefits,14-Jun-13,HOUSING BENEFIT ADMINISTRATION,HB ENGLAND,SEFTON METROPOLITAN BOROUGH COUNCIL,2029901380,"186,252"
Department for Work & Pensions,Employment Programmes,28-Jun-13,SERVICE FEE,WWEG EP WORK CHOICE HAMPSHIRE AND ISLE OF WIGHT,CDG WISE ABILITY LTD,2030061221,"185,888"
Department for Work & Pensions,Employment Programmes,28-Jun-13,SERVICE FEE,WWEG EP WORK CHOICE HIGH ISLDS AND CLYDE COAST AND GRAMP,MOMENTUM SCOTLAND,2030063340,"183,271"
Department for Work & Pensions,Child Maintenance and Enforcement Commission,11-Jun-13,TREDDS IS IT CONSULTANCY (HOSTING) NON ADVICE,FUTURE SYSTEM IT RUNNING COSTS - IOL,HP ENTERPRISE SERVICES UK LTD,1000179896,"183,248"
Department for Work & Pensions,Employment Programmes,28-Jun-13,SERVICE FEE,WWEG EP WORK CHOICE N E YORKS AND THE HUMBER TEES VALLEY,SHAW TRUST,2030061651,"180,539"
Department for Work & Pensions,Employment Programmes,28-Jun-13,SERVICE FEE,WWEG EP WORK CHOICE MERSEYSIDE CHESH HALTON & WARRINGTON,SHAW TRUST,2030061651,"175,595"
Department for Work & Pensions,European Social Fund,19-Jun-13,MA ESF(D) PROGRAMME EXPENDITURE EC PREFUNDED THIRD PARTIES,WWEG EUROPEAN SOCIAL FUND PROGRAMME 2007-2013,NEWHAM COLLEGE OF FURTHER EDUCATION,5000001397,"175,069"
Department for Work & Pensions,Housing Benefits,14-Jun-13,HOUSING BENEFIT ADMINISTRATION,HB ENGLAND,LONDON BOROUGH OF HILLINGDON,2029901632,"172,398"
Department for Work & Pensions,Housing Benefits,14-Jun-13,HOUSING BENEFIT ADMINISTRATION,HB ENGLAND,LONDON BOROUGH OF HOUNSLOW,2029901356,"170,980"
Department for Work & Pensions,Employment Programmes,28-Jun-13,SERVICE FEE,WWEG EP WORK CHOICE ED LOTH BORDS AYR DUM GALL INVER,SHAW TRUST,2030061651,"170,815"
Department for Work & Pensions,Housing Benefits,14-Jun-13,HOUSING BENEFIT ADMINISTRATION,HB ENGLAND,TAMESIDE BOROUGH COUNCIL,2029901686,"170,668"
Department for Work & Pensions,Corporate,27-Jun-13,BBC TV LIC O/75'S,STR BBC TV LIC O 75s DEL P,BBC PUBLIC SERVICE BROADCASTING,1005851,"170,638"
Department for Work & Pensions,European Social Fund,17-Jun-13,MA ESF(D) PROGRAMME EXPENDITURE EC PREFUNDED DWP,WWEG EUROPEAN SOCIAL FUND PROGRAMME 2007-2013,NORTH EAST DWP,5000001393,"170,232"
Department for Work & Pensions,Corporate,06-Jun-13,PRIME BILLABLE EXTRAS PRIME CONTRACT MANAGEMENT (PCM),CHG ESTATES RATIONALISATION LEEDS,TELEREAL TRILLIUM,2029817660,"169,769"
Department for Work & Pensions,Housing Benefits,14-Jun-13,HOUSING BENEFIT ADMINISTRATION,HB ENGLAND,EAST RIDING OF YORKSHIRE BOROUGH COUNCIL,2029901459,"169,371"
Department for Work & Pensions,Employment Programmes,28-Jun-13,SERVICE FEE,WWEG EP WORK CHOICE W OF ENGLAND GLOS WILTS AND SWINDON,WORKING LINKS,2030061096,"168,058"
Department for Work & Pensions,Housing Benefits,14-Jun-13,HOUSING BENEFIT ADMINISTRATION,HB ENGLAND,CHESHIRE WEST & CHESTER COUNCIL,2029901674,"167,010"
Department for Work & Pensions,Housing Benefits,14-Jun-13,HOUSING BENEFIT ADMINISTRATION,HB ENGLAND,SOUTHAMPTON CITY COUNCIL,2029901637,"166,768"
Department for Work & Pensions,Housing Benefits,14-Jun-13,HOUSING BENEFIT ADMINISTRATION,HB ENGLAND,OLDHAM BOROUGH COUNCIL,2029901333,"166,765"
Department for Work & Pensions,Housing Benefits,14-Jun-13,HOUSING BENEFIT ADMINISTRATION,HB ENGLAND,CHESHIRE EAST BOROUGH COUNCIL,2029901675,"166,690"
Department for Work & Pensions,Housing Benefits,14-Jun-13,HOUSING BENEFIT ADMINISTRATION,HB WALES,RHONDDA CYNON TAFF COUNTY BOROUGH COUNCIL,2029901349,"166,573"
Department for Work & Pensions,Housing Benefits,14-Jun-13,HOUSING BENEFIT ADMINISTRATION,HB ENGLAND,MEDWAY TOWNS COUNCIL,2029901437,"166,284"
Department for Work & Pensions,Housing Benefits,14-Jun-13,HOUSING BENEFIT ADMINISTRATION,HB ENGLAND,ROTHERHAM BOROUGH COUNCIL,2029901683,"166,005"
Department for Work & Pensions,Corporate,27-Jun-13,BBC TV LIC O/75'S,STR BBC TV LIC O 75s DEL P,BBC PUBLIC SERVICE BROADCASTING,1005850,"165,916"
Department for Work & Pensions,Housing Benefits,14-Jun-13,HOUSING BENEFIT ADMINISTRATION,HB ENGLAND,LONDON BOROUGH OF HAMMERSMITH & FULHAM,2029901476,"165,714"
Department for Work & Pensions,Corporate,14-Jun-13,TREDDS APPS DEV MANDAYS,CHG UC PROJECT LEDGER CC,HP ENTERPRISE SERVICES UK LTD,2029901912,"163,975"
Department for Work & Pensions,Corporate,21-Jun-13,NON-TREDDS IS IT SERVICES (HOSTING),CIO GG SERVICE DELIVERY,DELL FINANCIAL SERVICES,1005846,"163,889"
Department for Work & Pensions,Housing Benefits,14-Jun-13,HOUSING BENEFIT ADMINISTRATION,HB ENGLAND,PORTSMOUTH CITY COUNCIL,2029901425,"163,076"
Department for Work & Pensions,Housing Benefits,14-Jun-13,HOUSING BENEFIT ADMINISTRATION,HB ENGLAND,BARNSLEY BOROUGH COUNCIL,2029901684,"161,688"
Department for Work & Pensions,Housing Benefits,14-Jun-13,HOUSING BENEFIT ADMINISTRATION,HB ENGLAND,ROCHDALE BOROUGH COUNCIL,2029901332,"159,841"
Department for Work & Pensions,Corporate,18-Jun-13,FSF - SUPPORT CONTRACT MODULES FOR JSA JOBSEEKERS,OPS WDC WSD LN SOUTH LONDON DISTRICT OFFICE,A4E LTD,2029910693,"159,270"
Department for Work & Pensions,Corporate,20-Jun-13,SOC SEC RESEARCH BUDGET,PSG IGS STAT SERVICES,NATIONAL CENTRE FOR SOCIAL RESEARCH,2029980753,"159,232"
Department for Work & Pensions,Employment Programmes,28-Jun-13,SERVICE FEE,WWEG EP WORK CHOICE S LON LAMBETH SOUTHWARK WANDSWORTH,INGEUS UK LTD,2030061092,"159,229"
Department for Work & Pensions,Housing Benefits,14-Jun-13,HOUSING BENEFIT ADMINISTRATION,HB ENGLAND,MILTON KEYNES BOROUGH COUNCIL,2029901396,"159,087"
Department for Work & Pensions,Employment Programmes,28-Jun-13,SERVICE FEE,WWEG EP WORK CHOICE FORTH VALLEY FIFE AND TAYSIDE,SHAW TRUST,2030061651,"158,754"
Department for Work & Pensions,Corporate,12-Jun-13,CONTRACTED OUT OFFICE SERVICES,F&C OPS FIN DM CONTRACTS,BALFOUR BEATTY WORKPLACE LTD,2029883720,"158,656"
Department for Work & Pensions,Corporate,24-Jun-13,NETWORK INFRASTRUCTURE,OPS OPE FS DISCRETE BUGET CONTROL,AIRWAVE SOLUTIONS LTD,2029986939,"158,556"
Department for Work & Pensions,Housing Benefits,14-Jun-13,HOUSING BENEFIT ADMINISTRATION,HB WALES,SWANSEA CITY COUNCIL,2029901348,"156,543"
Department for Work & Pensions,Housing Benefits,14-Jun-13,HOUSING BENEFIT ADMINISTRATION,HB ENGLAND,DERBY CITY COUNCIL,2029901609,"156,501"
Department for Work & Pensions,Corporate,27-Jun-13,BBC TV LIC O/75'S,STR BBC TV LIC O 75s DEL P,BBC PUBLIC SERVICE BROADCASTING,1005852,"156,442"
Department for Work & Pensions,Housing Benefits,14-Jun-13,HOUSING BENEFIT ADMINISTRATION,HB ENGLAND,LONDON BOROUGH OF BARKING & DAGENHAM,2029901424,"155,060"
Department for Work & Pensions,Housing Benefits,14-Jun-13,HOUSING BENEFIT ADMINISTRATION,HB ENGLAND,LONDON BOROUGH OF BROMLEY,2029901340,"152,481"
Department for Work & Pensions,Housing Benefits,14-Jun-13,HOUSING BENEFIT ADMINISTRATION,HB ENGLAND,STOCKPORT BOROUGH COUNCIL,2029901331,"151,605"
Department for Work & Pensions,Housing Benefits,14-Jun-13,HOUSING BENEFIT ADMINISTRATION,HB ENGLAND,BLACKPOOL BOROUGH COUNCIL,2029901337,"151,568"
Department for Work & Pensions,Housing Benefits,14-Jun-13,HOUSING BENEFIT ADMINISTRATION,HB ENGLAND,LONDON BOROUGH OF HARROW,2029901515,"150,450"
Department for Work & Pensions,Housing Benefits,14-Jun-13,HOUSING BENEFIT ADMINISTRATION,HB ENGLAND,LONDON BOROUGH OF REDBRIDGE,2029901613,"149,889"
Department for Work & Pensions,Employment Programmes,27-Jun-13,INNOVATION FUND,WWEG EP NATIONAL,T & T INNOVATION LTD,2030058399,"148,240"
Department for Work & Pensions,Child Maintenance and Enforcement Commission,25-Jun-13,HOSTING FIXED PRICE CONTRACTS,LEGACY SYSTEMS IT RUNNING COSTS - IOL,DWP,2000962,"147,718"
Department for Work & Pensions,Corporate,04-Jun-13,POSTAGE,OPS OPE CENTRAL CONTACTS,ROYAL MAIL GROUP PLC,2029751845,"146,735"
Department for Work & Pensions,Child Maintenance and Enforcement Commission,24-Jun-13,CONSULTANTS VAT RECOVERABLE,NEW SCHEME DEVELOPMENT AND CLIENT SIDE SUPPORT,ATKINS LTD,1000181173,"146,000"
Department for Work & Pensions,Child Maintenance and Enforcement Commission,11-Jun-13,NETWORK SERVICES,NEW SCHEME TELEPHONY,BT GLOBAL SERVICES,1000179894,"145,350"
Department for Work & Pensions,Corporate,19-Jun-13,POST OFFICE CARD ACCOUNT,F&C FIN CONT COBAP POCA,POST OFFICE LTD,1005845,"144,934"
Department for Work & Pensions,Housing Benefits,14-Jun-13,HOUSING BENEFIT ADMINISTRATION,HB ENGLAND,SHROPSHIRE COUNCIL,2029901670,"144,896"
Department for Work & Pensions,Housing Benefits,14-Jun-13,HOUSING BENEFIT ADMINISTRATION,HB ENGLAND,GATESHEAD BOROUGH COUNCIL,2029901682,"143,321"
Department for Work & Pensions,Employment Programmes,28-Jun-13,SERVICE FEE,WWEG EP WORK CHOICE DORSET AND SOMERSET,SHAW TRUST,2030061651,"142,816"
Department for Work & Pensions,Corporate,10-Jun-13,FSF - SUPPORT CONTRACT MODULES FOR JSA JOBSEEKERS,OPS WDC WSD SC WEST OF SCOTLAND DO,JHP GROUP LTD,2029830024,"142,736"
Department for Work & Pensions,Corporate,20-Jun-13,NON-TREDDS IS IT APPS DEV MANDAY,CIO CIS INFRASTRUCTURE,IBM UNITED KINGDOM LTD,2029981852,"142,206"
Department for Work & Pensions,Corporate,28-Jun-13,CONSULTANTS VAT RECOVERABLE,PSG LEGAL SERVICES COMMERCIAL,DLA PIPER UK,2030061432,"142,099"
Department for Work & Pensions,Housing Benefits,14-Jun-13,HOUSING BENEFIT ADMINISTRATION,HB ENGLAND,KNOWSLEY BOROUGH COUNCIL,2029901664,"141,790"
Department for Work & Pensions,Housing Benefits,14-Jun-13,HOUSING BENEFIT ADMINISTRATION,HB ENGLAND,LONDON BOROUGH OF KENSINGTON & CHELSEA,2029901505,"141,055"
Department for Work & Pensions,Corporate,28-Jun-13,BBC TV LIC O/75'S,STR BBC TV LIC O 75s DEL P,BBC PUBLIC SERVICE BROADCASTING,1005854,"140,675"
Department for Work & Pensions,Housing Benefits,14-Jun-13,HOUSING BENEFIT ADMINISTRATION,HB ENGLAND,CALDERDALE BOROUGH COUNCIL,2029901508,"140,520"
Department for Work & Pensions,Housing Benefits,14-Jun-13,HOUSING BENEFIT ADMINISTRATION,HB ENGLAND,NORTH TYNESIDE BOROUGH COUNCIL,2029901681,"140,089"
Department for Work & Pensions,Housing Benefits,14-Jun-13,HOUSING BENEFIT ADMINISTRATION,HB ENGLAND,BOURNEMOUTH BOROUGH COUNCIL,2029901450,"139,562"
Department for Work & Pensions,Child Maintenance and Enforcement Commission,25-Jun-13,SIAM MANAGEMENT SERVICES,LEGACY SYSTEMS IT RUNNING COSTS - IOL,DWP,2000962,"138,396"
Department for Work & Pensions,Housing Benefits,14-Jun-13,HOUSING BENEFIT ADMINISTRATION,HB ENGLAND,STOCKTON  BOROUGH COUNCIL,2029901374,"137,835"
Department for Work & Pensions,Corporate,19-Jun-13,HOSTING SERVICES,CIO ITLR HOSTING,HP ENTERPRISE SERVICES UK LTD,2029945247,"136,765"
Department for Work & Pensions,Housing Benefits,14-Jun-13,HOUSING BENEFIT ADMINISTRATION,HB ENGLAND,MIDDLESBROUGH COUNCIL,2029901511,"136,119"
Department for Work & Pensions,Employment Programmes,28-Jun-13,SERVICE FEE,WWEG EP WORK CHOICE BERKSHIRE BUCKS AND OXFORDSHIRE,SHAW TRUST,2030061651,"136,104"
Department for Work & Pensions,Housing Benefits,14-Jun-13,HOUSING BENEFIT ADMINISTRATION,HB ENGLAND,PETERBOROUGH CITY COUNCIL,2029901452,"135,235"
Department for Work & Pensions,Housing Benefits,14-Jun-13,HOUSING BENEFIT ADMINISTRATION,HB ENGLAND,NORTH EAST LINCOLNSHIRE COUNCIL,2029901688,"134,013"
Department for Work & Pensions,Employment Programmes,28-Jun-13,SERVICE FEE,WWEG EP CHOICE WALT FOR RBRID HAV BARK DAG C E LON,WORKING LINKS,2030061096,"132,585"
Department for Work & Pensions,Corporate,17-Jun-13,NON PRIME UTILITIES,F&C CD DWP GAS & ELECTRICITY PAYMENTS / RECHARGES,BRITISH GAS BUSINESS SCC UTILITIES ONLY,2029905851,"132,169"
Department for Work & Pensions,Housing Benefits,14-Jun-13,HOUSING BENEFIT ADMINISTRATION,HB ENGLAND,ST HELENS BOROUGH COUNCIL,2029901685,"131,827"
Department for Work & Pensions,Corporate,18-Jun-13,NEW ENTERPRISE ALLOWANCE MENTOR MATCHING,OPS WDC WSD NE N AND E YORKS AND HUMBER DISTRICT OFFICE,COLLEGE AT THE GRANGE,2029911658,"131,696"
Department for Work & Pensions,Child Maintenance and Enforcement Commission,18-Jun-13,REMOTE STORAGE COSTS VAT RECOV,CS CENTRALLY HELD BUDGETS FILESTORES,CAPITA BUSINESS SERVICES LTD,1000180570,"131,442"
Department for Work & Pensions,Corporate,21-Jun-13,SIMPLE PAYMENT SERVICE,F&C FIN CONT COBAP CHEQUES,CITIBANK GLOBAL CORPORATE BANKING,2029984117,"131,152"
Department for Work & Pensions,Housing Benefits,14-Jun-13,HOUSING BENEFIT ADMINISTRATION,HB ENGLAND,LUTON BOROUGH COUNCIL,2029901497,"130,783"
Department for Work & Pensions,Corporate,27-Jun-13,SOFTWARE LICENCES,F&C FIN CONT FIN SYSTEMS ABM,SPECIALIST COMPUTER CENTRES PLC,2030056835,"129,776"
Department for Work & Pensions,Housing Benefits,14-Jun-13,HOUSING BENEFIT ADMINISTRATION,HB ENGLAND,NORTHAMPTON BOROUGH COUNCIL,2029901533,"129,164"
Department for Work & Pensions,Housing Benefits,14-Jun-13,HOUSING BENEFIT ADMINISTRATION,HB SCOTLAND,DUNDEE CITY COUNCIL,2029901509,"127,386"
Department for Work & Pensions,Employment Programmes,28-Jun-13,SERVICE FEE,WWEG EP WORK CHOICE CUMBRIA AND LANCASHIRE,SHAW TRUST,2030061651,"126,734"
Department for Work & Pensions,Housing Benefits,14-Jun-13,HOUSING BENEFIT ADMINISTRATION,HB SCOTLAND,RENFREWSHIRE COUNCIL,2029901535,"126,355"
Department for Work & Pensions,Corporate,28-Jun-13,PRIME FACILITY PRICE,F&C CD BIRCHWOOD,TELEREAL TRILLIUM,2030061230,"126,186"
Department for Work & Pensions,European Social Fund,19-Jun-13,MA ESF(D) PROGRAMME EXPENDITURE EC PREFUNDED DWP,WWEG EUROPEAN SOCIAL FUND PROGRAMME 2007-2013,EAST MIDLANDS DWP,5000001396,"125,829"
Department for Work & Pensions,Corporate,12-Jun-13,NON-TREDDS IS IT APPS DEV MANDAY,CIO INFRASTRUCTURE & SERVICE REMEDIATION,IBM UNITED KINGDOM LTD,2029868888,"125,767"
Department for Work & Pensions,Employment Programmes,12-Jun-13,SERVICE FEE,"WWEG EP SUPPORT ESSEX, BEDFORSHIRE AND HERTFORDSHIRE",SEETEC BUSINESS TECHNOLOGY CENTRE LTD,2029852128,"125,640"
Department for Work & Pensions,Corporate,21-Jun-13,CONTRACTORS & STAFF SUBSTITUTIONS,CHG UNIVERSAL CREDIT PROG DIRECTOR & PMO,DETICA LTD,2029982989,"124,962"
Department for Work & Pensions,Housing Benefits,14-Jun-13,HOUSING BENEFIT ADMINISTRATION,HB ENGLAND,SOUTHEND ON SEA BOROUGH COUNCIL,2029901363,"124,751"
Department for Work & Pensions,Housing Benefits,14-Jun-13,HOUSING BENEFIT ADMINISTRATION,HB ENGLAND,TORBAY  COUNCIL,2029901622,"123,820"
Department for Work & Pensions,Housing Benefits,14-Jun-13,HOUSING BENEFIT ADMINISTRATION,HB ENGLAND,SOUTH GLOUCESTERSHIRE COUNCIL,2029901619,"123,320"
Department for Work & Pensions,Housing Benefits,14-Jun-13,HOUSING BENEFIT ADMINISTRATION,HB ENGLAND,LONDON BOROUGH OF BEXLEY,2029901341,"123,248"
Department for Work & Pensions,Employment Programmes,12-Jun-13,SERVICE FEE,"WWEG EP SUPPORT CAMBRDIGE AND SUFFOLK, NORFOLK, LINCOLN AND RUTLAND",TNG LTD,2029854249,"122,951"
Department for Work & Pensions,Housing Benefits,14-Jun-13,HOUSING BENEFIT ADMINISTRATION,HB ENGLAND,NORTH SOMERSET COUNCIL,2029901614,"121,920"
Department for Work & Pensions,Housing Benefits,14-Jun-13,HOUSING BENEFIT ADMINISTRATION,HB SCOTLAND,HIGHLAND COUNCIL,2029901353,"120,745"
Department for Work & Pensions,Housing Benefits,14-Jun-13,HOUSING BENEFIT ADMINISTRATION,HB ENGLAND,LONDON BOROUGH OF HAVERING,2029901612,"120,733"
Department for Work & Pensions,Housing Benefits,14-Jun-13,HOUSING BENEFIT ADMINISTRATION,HB ENGLAND,THANET DISTRICT COUNCIL,2029901585,"120,438"
Department for Work & Pensions,Housing Benefits,14-Jun-13,HOUSING BENEFIT ADMINISTRATION,HB ENGLAND,TRAFFORD BOROUGH COUNCIL,2029901532,"120,059"
Department for Work & Pensions,Housing Benefits,14-Jun-13,HOUSING BENEFIT ADMINISTRATION,HB ENGLAND,SOUTH TYNESIDE METROPOLITAN BOROUGH COUNCIL,2029901657,"119,613"
Department for Work & Pensions,Employment Programmes,28-Jun-13,SERVICE FEE,WWEG EP WORK CHOICE LEICESTERSHIRE AND NORTHAMPTONSHIRE,WORKING LINKS,2030061096,"118,629"
Department for Work & Pensions,Housing Benefits,14-Jun-13,HOUSING BENEFIT ADMINISTRATION,HB ENGLAND,SWINDON BOROUGH COUNCIL,2029901606,"117,646"
Department for Work & Pensions,Corporate,04-Jun-13,CONSULTANTS VAT RECOVERABLE,CHG DELIVERING THE IRIS ORGANISATION,CAPGEMINI UK PLC,2029753172,"116,917"
Department for Work & Pensions,Employment Programmes,12-Jun-13,SERVICE FEE,WWEG EP SUPPORT WEST OF ENGLAND,PINNACLE PEOPLE,2029874646,"116,545"
Department for Work & Pensions,Housing Benefits,14-Jun-13,HOUSING BENEFIT ADMINISTRATION,HB ENGLAND,LONDON BOROUGH OF MERTON,2029901642,"116,314"
Department for Work & Pensions,Housing Benefits,14-Jun-13,HOUSING BENEFIT ADMINISTRATION,HB ENGLAND,BOROUGH OF TELFORD & WREKIN COUNCIL,2029901599,"116,000"
Department for Work & Pensions,Corporate,28-Jun-13,PRIME FACILITY PRICE,F&C CD SHEFFIELD STEEL CITY HOUSE,TELEREAL TRILLIUM,2030061230,"115,764"
Department for Work & Pensions,Corporate,28-Jun-13,PRIME FACILITY PRICE,F&C CD SHEFFIELD KINGS COURT,TELEREAL TRILLIUM,2030061230,"115,558"
Department for Work & Pensions,Corporate,28-Jun-13,PRIME BUSINESS RATES,F&C CD LEEDS QUARRY HOUSE,TELEREAL TRILLIUM,2030061229,"114,702"
Department for Work & Pensions,Housing Benefits,14-Jun-13,HOUSING BENEFIT ADMINISTRATION,HB WALES,CAERPHILLY COUNTY BOROUGH COUNCIL,2029901584,"113,980"
Department for Work & Pensions,Housing Benefits,14-Jun-13,HOUSING BENEFIT ADMINISTRATION,HB ENGLAND,BURY METROPOLITAN BOROUGH COUNCIL,2029901334,"113,730"
Department for Work & Pensions,Corporate,27-Jun-13,NON-TREDDS IS IT CONSULTANCY (HOSTING) NON ADVICE,CHG SCANNING & DIGITAL STORAGE - AGILITY,SPECIALIST COMPUTER CENTRES PLC,2030056835,"113,000"
Department for Work & Pensions,Corporate,27-Jun-13,NON PRIME PROPERTY COSTS,F&C CD LIVERPOOL REDGRAVE COURT,HEALTH & SAFETY EXECUTIVE,2030057272,"112,818"
Department for Work & Pensions,Housing Benefits,14-Jun-13,HOUSING BENEFIT ADMINISTRATION,HB ENGLAND,BASILDON DISTRICT COUNCIL,2029901493,"112,241"
Department for Work & Pensions,Housing Benefits,14-Jun-13,HOUSING BENEFIT ADMINISTRATION,HB ENGLAND,REDCAR & CLEVELAND BOROUGH  COUNCIL,2029901373,"110,559"
Department for Work & Pensions,Housing Benefits,14-Jun-13,HOUSING BENEFIT ADMINISTRATION,HB SCOTLAND,NORTH AYRSHIRE COUNCIL,2029901563,"109,863"
Department for Work & Pensions,Housing Benefits,14-Jun-13,HOUSING BENEFIT ADMINISTRATION,HB ENGLAND,LONDON BOROUGH OF SUTTON,2029901355,"109,750"
Department for Work & Pensions,Corporate,03-Jun-13,CIVIL SERVICE OCCUPATIONAL HEALTH SERVICE,HR OHS,ATOS ORIGIN IT SERVICES UK LTD,2029747041,"109,745"
Department for Work & Pensions,Housing Benefits,14-Jun-13,HOUSING BENEFIT ADMINISTRATION,HB ENGLAND,WARRINGTON BOROUGH COUNCIL,2029901615,"109,025"
Department for Work & Pensions,Corporate,28-Jun-13,PRIME FACILITY PRICE,F&C CD SHEFFIELD PORTERBROOK HOUSE,TELEREAL TRILLIUM,2030061230,"108,694"
Department for Work & Pensions,Corporate,17-Jun-13,CONTRACTORS & STAFF SUBSTITUTIONS,CIO ADC DIRECTOR,CAPITA RESOURCING LTD,2029905778,"108,678"
Department for Work & Pensions,Housing Benefits,14-Jun-13,HOUSING BENEFIT ADMINISTRATION,HB ENGLAND,NORWICH CITY COUNCIL,2029901474,"107,849"
Department for Work & Pensions,Housing Benefits,14-Jun-13,HOUSING BENEFIT ADMINISTRATION,HB ENGLAND,TENDRING DISTRICT COUNCIL,2029901546,"107,739"
Department for Work & Pensions,Employment Programmes,12-Jun-13,SERVICE FEE,"WWEG EP SUPPORT CHESHIRE, HALTON AND WARR, MERSEYSIDE",REED IN PARTNERSHIP LTD,2029852354,"107,713"
Department for Work & Pensions,Employment Programmes,03-Jun-13,WP JSA 25+ SUSTAINMENT OUTCOME PAYMENT,WWEG EP SOUTH EAST SURR SUSSX AND KENT G4S,G4S REGIONAL MANAGEMENT UK & I LTD,2029748439,"107,285"
Department for Work & Pensions,Housing Benefits,14-Jun-13,HOUSING BENEFIT ADMINISTRATION,HB ENGLAND,CENTRAL BEDFORDSHIRE DISTRICT COUNCIL,2029901428,"106,628"
Department for Work & Pensions,Housing Benefits,14-Jun-13,HOUSING BENEFIT ADMINISTRATION,HB ENGLAND,NORTH LINCOLNSHIRE COUNCIL,2029901359,"106,239"
Department for Work & Pensions,Corporate,28-Jun-13,NEW ENTERPRISE ALLOWANCE MENTOR MATCHING,OPS WDC WSD LN WEST LONDON DISTRICT OFFICE,GLE ONE LONDON LTD,2030061659,"106,163"
Department for Work & Pensions,Housing Benefits,14-Jun-13,HOUSING BENEFIT ADMINISTRATION,HB ENGLAND,BLACKBURN BOROUGH COUNCIL,2029901432,"105,706"
Department for Work & Pensions,Housing Benefits,14-Jun-13,HOUSING BENEFIT ADMINISTRATION,HB SCOTLAND,WEST LOTHIAN COUNCIL,2029901490,"105,457"
Department for Work & Pensions,Employment Programmes,13-Jun-13,WP JSA 25+ SUSTAINMENT OUTCOME PAYMENT,WWEG EP EAST LONDON CAREERS DEVELOPMENT GROUP,CAREERS DEVELOPMENT GROUP,2029901158,"104,920"
Department for Work & Pensions,Housing Benefits,14-Jun-13,HOUSING BENEFIT ADMINISTRATION,HB WALES,CARMARTHENSHIRE COUNTY COUNCIL,2029901475,"104,603"
Department for Work & Pensions,Housing Benefits,14-Jun-13,HOUSING BENEFIT ADMINISTRATION,HB WALES,NEATH PORT TALBOT COUNTY BOROUGH COUNCIL,2029901560,"104,223"
Department for Work & Pensions,Corporate,12-Jun-13,SOFTWARE LICENCES,CHG CP DWP ENQUIRY SERVICE,SPECIALIST COMPUTER CENTRES PLC,2029896810,"103,656"
Department for Work & Pensions,Housing Benefits,14-Jun-13,HOUSING BENEFIT ADMINISTRATION,HB SCOTLAND,ABERDEEN CITY COUNCIL,2029901422,"103,466"
Department for Work & Pensions,Employment Programmes,12-Jun-13,SERVICE FEE,"WWEG EP SUPPORT GRTR MANCHESTER CNTRL, GRTR MANCHESTER E AND W",STANDGUIDE LTD,2029896840,"103,229"
Department for Work & Pensions,Housing Benefits,14-Jun-13,HOUSING BENEFIT ADMINISTRATION,HB ENGLAND,READING BOROUGH COUNCIL,2029901538,"103,013"
Department for Work & Pensions,Corporate,11-Jun-13,TREDDS APPS DEV MANDAYS,CHG APPEALS REFORM,HP ENTERPRISE SERVICES UK LTD,2029832125,"102,823"
Department for Work & Pensions,Employment Programmes,05-Jun-13,RESIDENTIAL TRAINING COSTS,WWEG EP DELIVERY WELFARE TO WORK PRODUCT SUPPORT,PORTLAND COLLEGE,2029806861,"102,788"
Department for Work & Pensions,Corporate,19-Jun-13,NON PRIME PROPERTY COSTS,OPS OPE ESTATES RECESSION,HMRC,2029948467,"101,758"
Department for Work & Pensions,Housing Benefits,14-Jun-13,HOUSING BENEFIT ADMINISTRATION,HB ENGLAND,ISLE OF WIGHT COUNTY COUNCIL,2029901458,"101,467"
Department for Work & Pensions,Corporate,28-Jun-13,UNBILLED RECEIVABLE ACCOUNT,BALANCE SHEET,TELEREAL TRILLIUM,2030061228,"101,323"
Department for Work & Pensions,Employment Programmes,03-Jun-13,WP JSA 25+ SUSTAINMENT OUTCOME PAYMENT,WWEG EP NORTH WEST GM CHES AND WARR G4S,G4S REGIONAL MANAGEMENT UK & I LTD,2029748439,"100,835"
Department for Work & Pensions,Employment Programmes,12-Jun-13,SERVICE FEE,"WWEG EP SUPPORT KENT, SURREY AND SUSSEX",PINNACLE PEOPLE,2029874646,"100,021"
Department for Work & Pensions,Corporate,20-Jun-13,ACCOUNTS PAYABLE UNAPPROVED INVOICES,OPS WDC WSD CE MERCIA DISTRICT OFFICE,COVENTRY CITY COUNCIL,2029981211,"100,000"
Department for Work & Pensions,Corporate,19-Jun-13,NEW ENTERPRISE ALLOWANCE LOAN PAYMENT (DEL CAPITAL),OPS WDC WSD DEL PROG REPORTING,TEN SIXTY SIX ENTERPRISE,2029975555,"100,000"
Department for Work & Pensions,Housing Benefits,14-Jun-13,HOUSING BENEFIT ADMINISTRATION,HB WALES,NEWPORT CITY COUNCIL,2029901421,"99,944"
Department for Work & Pensions,Housing Benefits,14-Jun-13,HOUSING BENEFIT ADMINISTRATION,HB SCOTLAND,DUMFRIES & GALLOWAY COUNCIL,2029901604,"99,883"
Department for Work & Pensions,Housing Benefits,14-Jun-13,HOUSING BENEFIT ADMINISTRATION,HB ENGLAND,SOLIHULL METROPOLITAN BOROUGH COUNCIL,2029901512,"99,127"
Department for Work & Pensions,Housing Benefits,14-Jun-13,HOUSING BENEFIT ADMINISTRATION,HB ENGLAND,SLOUGH BOROUGH COUNCIL,2029901472,"98,766"
Department for Work & Pensions,Corporate,21-Jun-13,FSF - SUPPORT CONTRACT MODULES FOR JSA JOBSEEKERS,OPS WDC WSD NW MERSEYSIDE DISTRICT OFFICE,REED IN PARTNERSHIP LTD,2029984623,"98,716"
Department for Work & Pensions,Child Maintenance and Enforcement Commission,04-Jun-13,SOFTWARE LICENCES,LEGACY SYSTEMS IT RUNNING COSTS - DIRECT,SPECIALIST COMPUTER CENTRES PLC,1000179301,"97,260"
Department for Work & Pensions,Housing Benefits,14-Jun-13,HOUSING BENEFIT ADMINISTRATION,HB ENGLAND,HALTON BOROUGH COUNCIL,2029901401,"97,185"
Department for Work & Pensions,Corporate,18-Jun-13,CONTRACTED OUT OFFICE SERVICES,CHG SCANNING & DIGITAL STORAGE - AGILITY,BALFOUR BEATTY WORKPLACE LTD,2029911091,"96,704"
Department for Work & Pensions,Employment Programmes,03-Jun-13,WP JSA 25+ SUSTAINMENT OUTCOME PAYMENT,WWEG EP SCOTLAND INGEUS UK,INGEUS UK LTD,2029744835,"96,320"
Department for Work & Pensions,Housing Benefits,14-Jun-13,HOUSING BENEFIT ADMINISTRATION,HB ENGLAND,BEDFORD BOROUGH COUNCIL,2029901514,"95,871"
Department for Work & Pensions,Employment Programmes,19-Jun-13,RESIDENTIAL TRAINING COSTS,WWEG EP DELIVERY WELFARE TO WORK PRODUCT SUPPORT,RNCB ROYAL NATIONAL COLLEGE FOR BLIND,2029939209,"95,372"
Department for Work & Pensions,Housing Benefits,14-Jun-13,HOUSING BENEFIT ADMINISTRATION,HB ENGLAND,EAST LINDSEY DISTRICT COUNCIL,2029901557,"95,212"
Department for Work & Pensions,Employment Programmes,12-Jun-13,SERVICE FEE,"WWEG EP SUPPORT N AND E YORKSHIRE AND HUMBER, TEES VALLEY",PERTEMPS,2029881060,"94,737"
Department for Work & Pensions,Corporate,12-Jun-13,NON-TREDDS IS IT SERVICES (HOSTING),CIO GG SERVICE DELIVERY,ATOS ORIGIN IT SERVICES UK LTD,2029883317,"94,542"
Department for Work & Pensions,Corporate,07-Jun-13,TREDDS APPS DEV MANDAYS,CHG UC PROJECT LEDGER CC,HP ENTERPRISE SERVICES UK LTD,2029825703,"94,287"
Department for Work & Pensions,Corporate,03-Jun-13,SOFTWARE LICENCES,CIO INFRASTRUCTURE & SERVICE REMEDIATION,SPECIALIST COMPUTER CENTRES PLC,2029747436,"93,647"
Department for Work & Pensions,Housing Benefits,14-Jun-13,HOUSING BENEFIT ADMINISTRATION,HB SCOTLAND,FALKIRK DISTRICT COUNCIL,2029901330,"93,599"
Department for Work & Pensions,Employment Programmes,12-Jun-13,SERVICE FEE,"WWEG EP SUPPORT HAMPSHIRE AND ISLE OF WIGHT, BERKS, BUCKS AND OXON",A4E LTD,2029869166,"93,043"
Department for Work & Pensions,Housing Benefits,14-Jun-13,HOUSING BENEFIT ADMINISTRATION,HB SCOTLAND,ABERDEENSHIRE COUNCIL,2029901492,"92,501"
Department for Work & Pensions,Housing Benefits,14-Jun-13,HOUSING BENEFIT ADMINISTRATION,HB WALES,BRIDGEND COUNTY BOROUGH COUNCIL,2029901643,"92,020"
Department for Work & Pensions,Housing Benefits,14-Jun-13,HOUSING BENEFIT ADMINISTRATION,HB ENGLAND,THURROCK BOROUGH COUNCIL,2029901617,"91,695"
Department for Work & Pensions,Child Maintenance and Enforcement Commission,14-Jun-13,TREDDS APPS DEV MANDAYS,FUTURE SCHEME SERVICE MANAGEMENT,HP ENTERPRISE SERVICES UK LTD,1000180433,"91,317"
Department for Work & Pensions,Corporate,17-Jun-13,DESKTOP SERVICES,CIO ITLR DESKTOP,HP ENTERPRISE SERVICES UK LTD,2029908581,"90,866"
Department for Work & Pensions,Employment Programmes,12-Jun-13,SERVICE FEE,WWEG EP SUPPORT WEST YORKSHIRE,A4E LTD,2029869166,"90,807"
Department for Work & Pensions,Corporate,14-Jun-13,DESKTOP FIXED PRICE CONTRACTS,CIO ITLR DESKTOP,HP ENTERPRISE SERVICES UK LTD,2029901912,"90,745"
Department for Work & Pensions,Housing Benefits,14-Jun-13,HOUSING BENEFIT ADMINISTRATION,HB ENGLAND,PRESTON BOROUGH COUNCIL,2029901559,"90,569"
Department for Work & Pensions,Employment Programmes,03-Jun-13,WP JSA 25+ SUSTAINMENT OUTCOME PAYMENT,WWEG EP EAST OF ENGLAND INGEUS UK,INGEUS UK LTD,2029744835,"90,300"
Department for Work & Pensions,Employment Programmes,12-Jun-13,SERVICE FEE,"WWEG EP SUPPORT NORTHUMBRIA, SOUTH TYNE AND WEAR VALLEY",ESG HOLDINGS LTD,2029874645,"89,927"
Department for Work & Pensions,Corporate,10-Jun-13,TREDDS APPS DEV MANDAYS,OPS OPE IT REL - JSAPS,HP ENTERPRISE SERVICES UK LTD,2029827045,"89,826"
Department for Work & Pensions,Housing Benefits,14-Jun-13,HOUSING BENEFIT ADMINISTRATION,HB ENGLAND,HEREFORDSHIRE COUNCIL,2029901669,"89,630"
Department for Work & Pensions,Corporate,26-Jun-13,NON-TREDDS IS IT SERVICES (AMS),CIO ITPD AM PROTOTYPE & STANDALONE SYS,CAPGEMINI UK PLC,2030039656,"89,542"
Department for Work & Pensions,Corporate,07-Jun-13,OFFICE EQUIPMENT - CURRENT,OPS OPE FS DISCRETE BUGET CONTROL,SONIC COMMUNICATIONS INT LTD,2029821972,"89,026"
Department for Work & Pensions,Corporate,28-Jun-13,PRIME FACILITY PRICE,F&C CD BRADFORD AMBLER MILL,TELEREAL TRILLIUM,2030061230,"88,815"
Department for Work & Pensions,Housing Benefits,14-Jun-13,HOUSING BENEFIT ADMINISTRATION,HB ENGLAND,HARTLEPOOL BOROUGH COUNCIL,2029901636,"88,726"
Department for Work & Pensions,Housing Benefits,14-Jun-13,HOUSING BENEFIT ADMINISTRATION,HB SCOTLAND,WEST DUNBARTONSHIRE COUNCIL,2029901426,"88,083"
Department for Work & Pensions,Child Maintenance and Enforcement Commission,11-Jun-13,NON-TREDDS IS IT SERVICES (AMS),MI PROJECT WAREHOUSE,CAPGEMINI UK PLC,1000179897,"88,004"
Department for Work & Pensions,Housing Benefits,14-Jun-13,HOUSING BENEFIT ADMINISTRATION,HB ENGLAND,HASTINGS BOROUGH COUNCIL,2029901645,"87,896"
Department for Work & Pensions,Corporate,28-Jun-13,PRIME FACILITY PRICE,F&C CD DEARNE VALLEY DISCOVERY HOUSE,TELEREAL TRILLIUM,2030061230,"87,560"
Department for Work & Pensions,Employment Programmes,03-Jun-13,WP JSA CLAIMING 22 OF 24MTHS SUSTAINMENT OUTCOME PAYMENT,WWEG EP SOUTH EAST SURR SUSSX AND KENT G4S,G4S REGIONAL MANAGEMENT UK & I LTD,2029748439,"87,500"
Department for Work & Pensions,Housing Benefits,14-Jun-13,HOUSING BENEFIT ADMINISTRATION,HB SCOTLAND,EAST AYRSHIRE COUNCIL FINANCE DEPARTMENT,2029901325,"87,106"
Department for Work & Pensions,Housing Benefits,14-Jun-13,HOUSING BENEFIT ADMINISTRATION,HB ENGLAND,COLCHESTER BOROUGH COUNCIL,2029901536,"87,081"
Department for Work & Pensions,Corporate,17-Jun-13,NON PRIME PROPERTY COSTS,OPS OPE ESTATES BASELINE,COPELAND BOROUGH COUNCIL,2029906273,"87,062"
Department for Work & Pensions,Corporate,28-Jun-13,PRIME FACILITY PRICE,F&C CD MANCHESTER ANCHORAGE HOUSE,TELEREAL TRILLIUM,2030061230,"86,835"
Department for Work & Pensions,Housing Benefits,14-Jun-13,HOUSING BENEFIT ADMINISTRATION,HB ENGLAND,ARUN DISTRICT COUNCIL,2029901607,"86,833"
Department for Work & Pensions,Employment Programmes,21-Jun-13,WP JSA 25+ SUSTAINMENT OUTCOME PAYMENT,WWEG EP SCOTLAND INGEUS UK,INGEUS UK LTD,2029986790,"86,430"
Department for Work & Pensions,Housing Benefits,14-Jun-13,HOUSING BENEFIT ADMINISTRATION,HB ENGLAND,BATH & NORTH EAST SOMERSET COUNCIL,2029901517,"86,330"
Department for Work & Pensions,Housing Benefits,14-Jun-13,HOUSING BENEFIT ADMINISTRATION,HB ENGLAND,CITY OF YORK COUNCIL,2029901616,"86,301"
Department for Work & Pensions,Housing Benefits,14-Jun-13,HOUSING BENEFIT ADMINISTRATION,HB ENGLAND,IPSWICH BOROUGH COUNCIL,2029901529,"86,020"
Department for Work & Pensions,Employment Programmes,12-Jun-13,SERVICE FEE,"WWEG EP SUPPORT DERBYSHIRE, SOUTH YORKSHIRE",A4E LTD,2029869166,"84,600"
Department for Work & Pensions,Housing Benefits,14-Jun-13,HOUSING BENEFIT ADMINISTRATION,HB ENGLAND,SCARBOROUGH BOROUGH COUNCIL,2029901360,"84,345"
Department for Work & Pensions,Corporate,28-Jun-13,PRIME FACILITY PRICE,F&C CD SHEFFIELD ROCKINGHAM HOUSE,TELEREAL TRILLIUM,2030061230,"84,126"
Department for Work & Pensions,Child Maintenance and Enforcement Commission,10-Jun-13,DWP COURT FEES & RELATED EXPENSES,EXTERNAL CONTRACTS HARPER MACLEOD,HARPER MACLEOD LLP,1000179743,"83,725"
Department for Work & Pensions,Corporate,19-Jun-13,IPC FOREIGN ARREARS PAYMENTS,BALANCE SHEET,M GRANT,2029928367,"83,497"
Department for Work & Pensions,Employment Programmes,19-Jun-13,RESIDENTIAL TRAINING COSTS,WWEG EP DELIVERY WELFARE TO WORK PRODUCT SUPPORT,DONCASTER DEAF TRUST,2029931008,"83,495"
Department for Work & Pensions,Housing Benefits,14-Jun-13,HOUSING BENEFIT ADMINISTRATION,HB ENGLAND,SOUTH SOMERSET DISTRICT COUNCIL,2029901573,"83,472"
Department for Work & Pensions,Housing Benefits,14-Jun-13,HOUSING BENEFIT ADMINISTRATION,HB ENGLAND,KINGS LYNN & WEST NORFOLK BOROUGH COUNCIL,2029901343,"83,464"
Department for Work & Pensions,Corporate,19-Jun-13,NEW ENTERPRISE ALLOWANCE MENTOR MATCHING,OPS WDC WSD NW GTR MANCHESTER CENTRAL AND CHESHIRE DO,BLUE ORCHID SUPPORT SERVICES,2029945706,"83,341"
Department for Work & Pensions,Corporate,18-Jun-13,MOTABILITY ADMINISTRATION GRANT,STR MOTABILITY,MOTABILITY,1005839,"83,330"
Department for Work & Pensions,Corporate,21-Jun-13,CONTRACTED OUT OFFICE SERVICES,OPS OPE OIS CENTRAL CONTRACTS,XEROX UK LTD 3W,2029984817,"83,048"
Department for Work & Pensions,Housing Benefits,14-Jun-13,HOUSING BENEFIT ADMINISTRATION,HB ENGLAND,SWALE BOROUGH COUNCIL,2029901435,"82,962"
Department for Work & Pensions,Corporate,13-Jun-13,FSF - SUPPORT CONTRACT MODULES FOR JSA JOBSEEKERS,OPS WDC WSD LN WEST LONDON DISTRICT OFFICE,A4E LTD,2029898881,"81,797"
Department for Work & Pensions,Corporate,28-Jun-13,FSF - SUPPORT CONTRACT MODULES FOR JSA JOBSEEKERS,OPS WDC WSD LN WEST LONDON DISTRICT OFFICE,A4E LTD,2030061253,"81,797"
Department for Work & Pensions,Employment Programmes,12-Jun-13,SERVICE FEE,WWEG EP SUPPORT BIRMINGHAM AND SOLIHULL,INGEUS UK LTD,2029875249,"81,483"
Department for Work & Pensions,Housing Benefits,14-Jun-13,HOUSING BENEFIT ADMINISTRATION,HB ENGLAND,LONDON BOROUGH OF RICHMOND UPON THAMES,2029901486,"81,441"
Department for Work & Pensions,Employment Programmes,12-Jun-13,SERVICE FEE,"WWEG EP SUPPORT COVENTRY AND WARWICKSHIRE, MARCHES, STAFFORDSHIRE",JHP GROUP LTD,2029874949,"81,209"
Department for Work & Pensions,Housing Benefits,14-Jun-13,HOUSING BENEFIT ADMINISTRATION,HB ENGLAND,ROYAL BOROUGH OF KINGSTON UPON THAMES,2029901487,"80,833"
Department for Work & Pensions,Housing Benefits,14-Jun-13,HOUSING BENEFIT ADMINISTRATION,HB ENGLAND,GREAT YARMOUTH COUNCIL,2029901345,"80,056"
Department for Work & Pensions,Housing Benefits,14-Jun-13,HOUSING BENEFIT ADMINISTRATION,HB ENGLAND,GLOUCESTER CITY COUNCIL,2029901427,"79,390"
Department for Work & Pensions,Corporate,04-Jun-13,SOFTWARE LICENCES,CIO ITLR IGS,SPECIALIST COMPUTER CENTRES PLC,2029751765,"79,296"
Department for Work & Pensions,Child Maintenance and Enforcement Commission,05-Jun-13,SOC SEC RESEARCH BUDGET,FAMILY SUPPORT SERVICES,TNS UK LTD,1000179346,"79,200"
Department for Work & Pensions,Corporate,26-Jun-13,PROFESSIONAL ADVICE & OPINION VAT RECOVERABLE,IFD ORC,ORC INTERNATIONAL LTD,2030036186,"79,176"
Department for Work & Pensions,Housing Benefits,14-Jun-13,HOUSING BENEFIT ADMINISTRATION,HB ENGLAND,OXFORD CITY COUNCIL,2029901696,"78,712"
Department for Work & Pensions,Housing Benefits,14-Jun-13,HOUSING BENEFIT ADMINISTRATION,HB ENGLAND,BURNLEY BOROUGH COUNCIL,2029901495,"78,442"
Department for Work & Pensions,Corporate,28-Jun-13,PRIME FACILITY PRICE,F&C CD NUNEATON DISCOVERY HOUSE,TELEREAL TRILLIUM,2030061230,"78,156"
Department for Work & Pensions,Corporate,21-Jun-13,FSF - TRAINING PAYMENTS TO PROVIDERS - JSA JOBSEEKERS,OPS WDC WSD SC NORTH OF SCOTLAND DO,JHP GROUP LTD,2029986408,"77,903"
Department for Work & Pensions,Corporate,14-Jun-13,PRIME VARIABLE CHARGE,OPS OPE ESTATES RECESSION,TELEREAL TRILLIUM,2029905624,"77,895"
Department for Work & Pensions,European Social Fund,04-Jun-13,MA ESF(D) PROGRAMME EXPENDITURE EC PREFUNDED DWP,WWEG EUROPEAN SOCIAL FUND PROGRAMME 2007-2013,NORTH EAST DWP,5000001385,"77,469"
Department for Work & Pensions,Corporate,28-Jun-13,PRIME BUSINESS RATES,F&C CD NORCROSS,TELEREAL TRILLIUM,2030061229,"77,393"
Department for Work & Pensions,Housing Benefits,14-Jun-13,HOUSING BENEFIT ADMINISTRATION,HB ENGLAND,BRAINTREE DISTRICT COUNCIL,2029901638,"77,279"
Department for Work & Pensions,Housing Benefits,14-Jun-13,HOUSING BENEFIT ADMINISTRATION,HB ENGLAND,LANCASTER CITY COUNCIL,2029901661,"77,033"
Department for Work & Pensions,Corporate,25-Jun-13,NON-TREDDS IS IT SERVICES (HOSTING),CIO ITLR NETWORK,PORTCULLIS COMPUTER SECURITY LTD,2029989737,"77,000"
Department for Work & Pensions,Housing Benefits,14-Jun-13,HOUSING BENEFIT ADMINISTRATION,HB WALES,FLINTSHIRE COUNTY COUNCIL,2029901605,"76,714"
Department for Work & Pensions,Housing Benefits,14-Jun-13,HOUSING BENEFIT ADMINISTRATION,HB ENGLAND,WAVENEY DISTRICT COUNCIL,2029901400,"76,617"
Department for Work & Pensions,Housing Benefits,14-Jun-13,HOUSING BENEFIT ADMINISTRATION,HB WALES,WREXHAM COUNTY BOROUGH COUNCIL,2029901496,"75,790"
Department for Work & Pensions,Housing Benefits,14-Jun-13,HOUSING BENEFIT ADMINISTRATION,HB ENGLAND,POOLE BOROUGH COUNCIL,2029901595,"75,491"
Department for Work & Pensions,Employment Programmes,14-Jun-13,WP JSA 25+ SUSTAINMENT OUTCOME PAYMENT,WWEG EP SCOTLAND INGEUS UK,INGEUS UK LTD,2029903449,"75,250"
Department for Work & Pensions,Corporate,25-Jun-13,CONSULTANTS VAT RECOVERABLE,CIO INFRASTRUCTURE & SERVICE REMEDIATION,DELOITTE MCS LTD,2029995076,"74,928"
Department for Work & Pensions,Employment Programmes,07-Jun-13,WP JSA 25+ SUSTAINMENT OUTCOME PAYMENT,WWEG EP SCOTLAND INGEUS UK,INGEUS UK LTD,2029823251,"74,820"
Department for Work & Pensions,Corporate,07-Jun-13,TREDDS APPS DEV MANDAYS,CHG PIP DELIVERY,HP ENTERPRISE SERVICES UK LTD,2029825703,"74,817"
Department for Work & Pensions,Housing Benefits,14-Jun-13,HOUSING BENEFIT ADMINISTRATION,HB ENGLAND,BASINGSTOKE DISTRICT COUNCIL,2029901542,"74,811"
Department for Work & Pensions,Housing Benefits,14-Jun-13,HOUSING BENEFIT ADMINISTRATION,HB ENGLAND,WYCOMBE DISTRICT COUNCIL,2029901395,"74,705"
Department for Work & Pensions,Corporate,26-Jun-13,NON-TREDDS IS IT SERVICES (DESKTOP),CIO ITLR SUSTAINABLE PRINT SERVICE,XEROX UK LTD 3W,2030046780,"74,367"
Department for Work & Pensions,Corporate,14-Jun-13,SIAM MANAGEMENT SERVICES,CIO ITLR SIAM,HP ENTERPRISE SERVICES UK LTD,2029901912,"74,268"
Department for Work & Pensions,Housing Benefits,14-Jun-13,HOUSING BENEFIT ADMINISTRATION,HB ENGLAND,EASTBOURNE BOROUGH COUNCIL,2029901591,"74,173"
Department for Work & Pensions,Housing Benefits,14-Jun-13,HOUSING BENEFIT ADMINISTRATION,HB ENGLAND,HUNTINGDON DISTRICT COUNCIL,2029901393,"73,994"
Department for Work & Pensions,Child Maintenance and Enforcement Commission,04-Jun-13,NON-TREDDS IS IT APPS DEV MANDAY,FS PHASE 2 - TCS COSTS,TATA CONSULTANCY SERVICES LTD,1000179201,"73,817"
Department for Work & Pensions,Corporate,10-Jun-13,STAFF RELATED COSTS VAT RECOVERABLE,HR WELLBEING AND PRODUCTIVITY,RIGHT CORECARE,2029827858,"73,791"
Department for Work & Pensions,Employment Programmes,14-Jun-13,WP JSA 25+ SUSTAINMENT OUTCOME PAYMENT,WWEG EP EAST OF ENGLAND SEETEC,SEETEC BUSINESS TECHNOLOGY CENTRE LTD,2029902883,"73,745"
Department for Work & Pensions,Corporate,19-Jun-13,NON-TREDDS IS IT APPS DEV MANDAY,CHG BENEFIT CAP,CAPGEMINI UK PLC,2029944187,"72,734"
Department for Work & Pensions,Housing Benefits,14-Jun-13,HOUSING BENEFIT ADMINISTRATION,HB WALES,CONWY COUNTY BOROUGH  COUNCIL,2029901385,"72,534"
Department for Work & Pensions,Housing Benefits,14-Jun-13,HOUSING BENEFIT ADMINISTRATION,HB SCOTLAND,SOUTH AYRSHIRE COUNCIL,2029901602,"72,476"
Department for Work & Pensions,Housing Benefits,14-Jun-13,HOUSING BENEFIT ADMINISTRATION,HB ENGLAND,DARLINGTON BOROUGH COUNCIL,2029901553,"72,383"
Department for Work & Pensions,Housing Benefits,14-Jun-13,HOUSING BENEFIT ADMINISTRATION,HB SCOTLAND,PERTH & KINROSS COUNCIL,2029901358,"72,359"
Department for Work & Pensions,Employment Programmes,21-Jun-13,WP JSA 25+ SUSTAINMENT OUTCOME PAYMENT,WWEG EP EAST LONDON A4E,A4E LTD,2029986046,"72,240"
Department for Work & Pensions,Corporate,18-Jun-13,NETWORK SERVICES,CIO ITLR NETWORK,BT GLOBAL SERVICES,2029911918,"72,175"
Department for Work & Pensions,Housing Benefits,14-Jun-13,HOUSING BENEFIT ADMINISTRATION,HB ENGLAND,NUNEATON BOROUGH COUNCIL,2029901439,"72,043"
Department for Work & Pensions,Corporate,18-Jun-13,NON-TREDDS IS IT APPS DEV MANDAY,PSG DH LEGAL SERVICES FLDM,IBM UNITED KINGDOM LTD,2029910613,"71,991"
Department for Work & Pensions,Employment Programmes,03-Jun-13,WP JSA 25+ SUSTAINMENT OUTCOME PAYMENT,WWEG EP NORTH WEST MERS HAL CUMB AND LANCS A4E,A4E LTD,2029745821,"71,810"
Department for Work & Pensions,Corporate,18-Jun-13,NEW ENTERPRISE ALLOWANCE MENTOR MATCHING,OPS WDC WSD LN SOUTH LONDON DISTRICT OFFICE,IXION HOLDINGS LTD,2029911481,"71,803"
Department for Work & Pensions,Employment Programmes,18-Jun-13,RESIDENTIAL TRAINING COSTS,WWEG EP DELIVERY WELFARE TO WORK PRODUCT SUPPORT,QUEEN ALEXANDRA COLLEGE,2029915322,"71,674"
Department for Work & Pensions,Housing Benefits,14-Jun-13,HOUSING BENEFIT ADMINISTRATION,HB SCOTLAND,INVERCLYDE DISTRICT COUNCIL,2029901326,"71,384"
Department for Work & Pensions,Housing Benefits,14-Jun-13,HOUSING BENEFIT ADMINISTRATION,HB ENGLAND,AYLESBURY VALE DISTRICT COUNCIL,2029901377,"71,298"
Department for Work & Pensions,Housing Benefits,14-Jun-13,HOUSING BENEFIT ADMINISTRATION,HB ENGLAND,ASHFIELD DISTRICT COUNCIL,2029901510,"71,292"
Department for Work & Pensions,Corporate,26-Jun-13,FSF - SUPPORT CONTRACT MODULES FOR JSA JOBSEEKERS,OPS WDC WSD LN NORTH LONDON DISTRICT OFFICE,A4E LTD,2030055138,"71,284"
Department for Work & Pensions,Corporate,04-Jun-13,NON ICONS NETWORK SERVICES,CIO ITLR NETWORK,ORANGE PCS LTD,2029752516,"71,170"
Department for Work & Pensions,Employment Programmes,12-Jun-13,SERVICE FEE,"WWEG EP SUPPORT ADGI,EDIN,LOTH AND BORDRS,LNRK AND EAST DUN",JHP GROUP LTD,2029874949,"71,121"
Department for Work & Pensions,Child Maintenance and Enforcement Commission,25-Jun-13,NON-TREDDS IS IT SERVICES (DESKTOP),LEGACY SYSTEMS IT RUNNING COSTS - IOL,DWP,2000962,"70,964"
Department for Work & Pensions,Housing Benefits,14-Jun-13,HOUSING BENEFIT ADMINISTRATION,HB ENGLAND,SHEPWAY DISTRICT COUNCIL,2029901658,"70,903"
Department for Work & Pensions,Housing Benefits,14-Jun-13,HOUSING BENEFIT ADMINISTRATION,HB ENGLAND,NEW FOREST DISTRICT COUNCIL,2029901519,"70,782"
Department for Work & Pensions,Corporate,28-Jun-13,PRIME BUSINESS RATES,F&C CD PEEL PARK,TELEREAL TRILLIUM,2030061229,"70,645"
Department for Work & Pensions,Housing Benefits,14-Jun-13,HOUSING BENEFIT ADMINISTRATION,HB WALES,GWYNEDD COUNCIL,2029901468,"70,498"
Department for Work & Pensions,Housing Benefits,14-Jun-13,HOUSING BENEFIT ADMINISTRATION,HB ENGLAND,CRAWLEY BOROUGH COUNCIL,2029901417,"70,408"
Department for Work & Pensions,Housing Benefits,14-Jun-13,HOUSING BENEFIT ADMINISTRATION,HB ENGLAND,CANTERBURY CITY COUNCIL,2029901456,"70,324"
Department for Work & Pensions,Housing Benefits,14-Jun-13,HOUSING BENEFIT ADMINISTRATION,HB ENGLAND,MANSFIELD DISTRICT COUNCIL,2029901633,"69,977"
Department for Work & Pensions,Employment Programmes,12-Jun-13,SERVICE FEE,"WWEG EP SUPP H ISLS,C COAST AND GRAM,F VALL,FIFE AND TSID",JHP GROUP LTD,2029874949,"69,918"
Department for Work & Pensions,Housing Benefits,14-Jun-13,HOUSING BENEFIT ADMINISTRATION,HB ENGLAND,CHESTERFIELD BOROUGH COUNCIL,2029901634,"69,901"
Department for Work & Pensions,Employment Programmes,21-Jun-13,WP JSA 25+ SUSTAINMENT OUTCOME PAYMENT,WWEG EP EAST OF ENGLAND INGEUS UK,INGEUS UK LTD,2029986790,"69,875"
Department for Work & Pensions,Housing Benefits,14-Jun-13,HOUSING BENEFIT ADMINISTRATION,HB ENGLAND,CHARNWOOD BOROUGH COUNCIL,2029901386,"69,600"
Department for Work & Pensions,Housing Benefits,14-Jun-13,HOUSING BENEFIT ADMINISTRATION,HB ENGLAND,MAIDSTONE BOROUGH COUNCIL,2029901454,"69,552"
Department for Work & Pensions,Housing Benefits,14-Jun-13,HOUSING BENEFIT ADMINISTRATION,HB ENGLAND,BRECKLAND DISTRICT COUNCIL,2029901364,"69,432"
Department for Work & Pensions,Corporate,21-Jun-13,CONSULTANTS VAT RECOVERABLE,CHG UNIVERSAL CREDIT PROG DIRECTOR & PMO,CAPGEMINI UK PLC,2029984861,"69,175"
Department for Work & Pensions,Corporate,18-Jun-13,TREDDS APPS DEV MANDAYS,CHG ACCESS TO WORK,HP ENTERPRISE SERVICES UK LTD,2029912401,"69,090"
Department for Work & Pensions,Housing Benefits,14-Jun-13,HOUSING BENEFIT ADMINISTRATION,HB ENGLAND,CHELMSFORD BOROUGH COUNCIL,2029901565,"68,999"
Department for Work & Pensions,Corporate,14-Jun-13,SOC SEC RESEARCH BUDGET,PSG ANALYSIS CAD,RS CONSULTING LTD,2029901911,"68,961"
Department for Work & Pensions,Housing Benefits,14-Jun-13,HOUSING BENEFIT ADMINISTRATION,HB ENGLAND,HAVANT BOROUGH COUNCIL,2029901540,"68,865"
Department for Work & Pensions,Housing Benefits,14-Jun-13,HOUSING BENEFIT ADMINISTRATION,HB ENGLAND,DOVER DISTRICT COUNCIL,2029901455,"68,587"
Department for Work & Pensions,Housing Benefits,14-Jun-13,HOUSING BENEFIT ADMINISTRATION,HB ENGLAND,WYRE BOROUGH COUNCIL,2029901663,"68,366"
Department for Work & Pensions,Corporate,21-Jun-13,CONTRACTORS & STAFF SUBSTITUTIONS,CHG UC PROJECT LEDGER CC,CAPITA RESOURCING LTD,2029983441,"68,241"
Department for Work & Pensions,Housing Benefits,14-Jun-13,HOUSING BENEFIT ADMINISTRATION,HB WALES,TORFAEN BOROUGH COUNCIL,2029901370,"68,056"
Department for Work & Pensions,Corporate,19-Jun-13,FSF - SUPPORT CONTRACT MODULES FOR JSA JOBSEEKERS,OPS WDC WSD SE SURREY AND SUSSEX EXTERNAL RELATIONS TEAM,PINNACLE PEOPLE,2029936587,"67,677"
Department for Work & Pensions,Housing Benefits,14-Jun-13,HOUSING BENEFIT ADMINISTRATION,HB ENGLAND,EXETER CITY COUNCIL,2029901649,"67,606"
Department for Work & Pensions,Housing Benefits,14-Jun-13,HOUSING BENEFIT ADMINISTRATION,HB SCOTLAND,SCOTTISH BORDERS COUNCIL,2029901659,"67,387"
Department for Work & Pensions,Housing Benefits,14-Jun-13,HOUSING BENEFIT ADMINISTRATION,HB ENGLAND,SEDGEMOOR DISTRICT COUNCIL,2029901611,"67,203"
Department for Work & Pensions,Corporate,17-Jun-13,SOC SEC RESEARCH BUDGET,PSG ANALYSIS CAD,MARKET & OPINION RESEARCH INTERNATIONAL T/A IPSOS MORI,2029908845,"67,161"
Department for Work & Pensions,Housing Benefits,14-Jun-13,HOUSING BENEFIT ADMINISTRATION,HB ENGLAND,LINCOLN CITY COUNCIL,2029901367,"67,100"
Department for Work & Pensions,Corporate,11-Jun-13,NON-TREDDS IS IT APPS DEV MANDAY,CIO GTS,IBM UNITED KINGDOM LTD,2029836707,"66,987"
Department for Work & Pensions,Housing Benefits,14-Jun-13,HOUSING BENEFIT ADMINISTRATION,HB ENGLAND,DACORUM BOROUGH COUNCIL,2029901610,"66,636"
Department for Work & Pensions,Housing Benefits,14-Jun-13,HOUSING BENEFIT ADMINISTRATION,HB ENGLAND,TEIGNBRIDGE DISTRICT COUNCIL,2029901624,"66,455"
Department for Work & Pensions,Housing Benefits,14-Jun-13,HOUSING BENEFIT ADMINISTRATION,HB WALES,VALE OF GLAMORGAN COUNCIL,2029901431,"66,283"
Department for Work & Pensions,Housing Benefits,14-Jun-13,HOUSING BENEFIT ADMINISTRATION,HB ENGLAND,PENDLE BOROUGH COUNCIL,2029901644,"66,219"
Department for Work & Pensions,Corporate,21-Jun-13,NON ICONS NETWORK SERVICES,CIO ITLR NETWORK,TESCO MOBILE LTD,2029984956,"66,118"
Department for Work & Pensions,Corporate,14-Jun-13,FSF - TRAINING PAYMENTS TO PROVIDERS - JSA JOBSEEKERS,OPS WDC WSD NW GREATER MANCHESTER E AND W DO,SENCIA LTD,2029902704,"66,000"
Department for Work & Pensions,Housing Benefits,14-Jun-13,HOUSING BENEFIT ADMINISTRATION,HB ENGLAND,NEWCASTLE UNDER LYME BOROUGH COUNCIL,2029901552,"65,966"
Department for Work & Pensions,Corporate,05-Jun-13,NEW ENTERPRISE ALLOWANCE MENTOR MATCHING,OPS WDC WSD NE N AND E YORKS AND HUMBER DISTRICT OFFICE,COLLEGE AT THE GRANGE,2029786177,"65,848"
Department for Work & Pensions,Corporate,20-Jun-13,NEW ENTERPRISE ALLOWANCE MENTOR MATCHING,OPS WDC WSD LN EAST LONDON DISTRICT OFFICE,NETWORK PROJECTS LTD,2029980489,"65,813"
Department for Work & Pensions,Corporate,05-Jun-13,NEW ENTERPRISE ALLOWANCE MENTOR MATCHING,OPS WDC WSD LN EAST LONDON DISTRICT OFFICE,NETWORK PROJECTS LTD,2029786176,"65,813"
Department for Work & Pensions,Employment Programmes,28-Jun-13,WP JSA 25+ SUSTAINMENT OUTCOME PAYMENT,WWEG EP SCOTLAND INGEUS UK,INGEUS UK LTD,2030061092,"65,790"
Department for Work & Pensions,Corporate,19-Jun-13,NEW ENTERPRISE ALLOWANCE MENTOR MATCHING,OPS WDC WSD NE DURHAM AND TEES VALLEY DISTRICT OFFICE,NORTH EAST ENTERPRISE AGENCIES LTD,2029945233,"65,695"
Department for Work & Pensions,Housing Benefits,14-Jun-13,HOUSING BENEFIT ADMINISTRATION,HB WALES,PEMBROKESHIRE COUNTY COUNCIL,2029901556,"65,574"
Department for Work & Pensions,Corporate,11-Jun-13,AMS STAT MANDAYS,CIO ITLR AMS,HP ENTERPRISE SERVICES UK LTD,2029832125,"65,357"
Department for Work & Pensions,Corporate,13-Jun-13,NEW ENTERPRISE ALLOWANCE MENTOR MATCHING,OPS WDC WSD CE BLACK COUNTRY DISTRICT OFFICE,BLACK COUNTRY CHAMBER OF COMMERCE,2029898904,"65,191"
Department for Work & Pensions,Corporate,14-Jun-13,NEW ENTERPRISE ALLOWANCE MENTOR MATCHING,OPS WDC WSD SE SURREY AND SUSSEX DISTRICT OFFICE,LETS DO BUSINESS,2029903618,"65,137"
Department for Work & Pensions,Housing Benefits,14-Jun-13,HOUSING BENEFIT ADMINISTRATION,HB ENGLAND,HYNDBURN BOROUGH COUNCIL,2029901413,"65,120"
Department for Work & Pensions,Corporate,26-Jun-13,NON-TREDDS IS IT SERVICES (AMS),CIO GG CORE,ATOS ORIGIN IT SERVICES UK LTD,2030036064,"65,110"
Department for Work & Pensions,Housing Benefits,14-Jun-13,HOUSING BENEFIT ADMINISTRATION,HB ENGLAND,NORTH HERTFORDSHIRE DISTRICT COUNCIL,2029901471,"65,071"
Department for Work & Pensions,Housing Benefits,14-Jun-13,HOUSING BENEFIT ADMINISTRATION,HB ENGLAND,BASSETLAW DISTRICT COUNCIL,2029901630,"64,888"
Department for Work & Pensions,Housing Benefits,14-Jun-13,HOUSING BENEFIT ADMINISTRATION,HB WALES,POWYS COUNTY COUNCIL,2029901694,"64,558"
Department for Work & Pensions,Corporate,14-Jun-13,PRINTING/BINDING,F&C CD CORPORATE CHARGES,XEROX UK LTD 3W,2029905075,"64,477"
Department for Work & Pensions,Corporate,03-Jun-13,CONTRACTORS & STAFF SUBSTITUTIONS,CIO ADC DIRECTOR,CAPITA RESOURCING LTD,2029744998,"64,456"
Department for Work & Pensions,Child Maintenance and Enforcement Commission,13-Jun-13,NON-TREDDS IS IT CONSULTANCY (HOSTING) NON ADVICE,NEW SCHEME CLIENT FACING TECHNOLOGIES,SPECIALIST COMPUTER CENTRES PLC,1000180185,"64,393"
Department for Work & Pensions,Housing Benefits,14-Jun-13,HOUSING BENEFIT ADMINISTRATION,HB ENGLAND,CHERWELL DISTRICT COUNCIL,2029901397,"64,297"
Department for Work & Pensions,Employment Programmes,14-Jun-13,WP JSA 25+ SUSTAINMENT OUTCOME PAYMENT,WWEG EP EAST OF ENGLAND INGEUS UK,INGEUS UK LTD,2029903449,"64,285"
Department for Work & Pensions,Corporate,25-Jun-13,NON-TREDDS IS IT SERVICES (AMS),OPS CCS TUO NEW BUSINESS,ATOS ORIGIN IT SERVICES UK LTD,2029990708,"64,251"
Department for Work & Pensions,Housing Benefits,14-Jun-13,HOUSING BENEFIT ADMINISTRATION,HB ENGLAND,AMBER VALLEY BOROUGH COUNCIL,2029901404,"64,202"
Department for Work & Pensions,European Social Fund,12-Jun-13,MA ESF(D) PROGRAMME EXPENDITURE EC PREFUNDED L A's,WWEG EUROPEAN SOCIAL FUND PROGRAMME 2007-2013,CORNWALL COUNTY COUNCIL,5000001390,"64,137"
Department for Work & Pensions,Corporate,11-Jun-13,ADEP AM SERVICES - VAT NON-RECOVERABLE,CHG UC PROJECT LEDGER CC,IBM UNITED KINGDOM LTD,2029836707,"64,094"
Department for Work & Pensions,Child Maintenance and Enforcement Commission,24-Jun-13,NON-TREDDS IS IT SERVICES (HOSTING),FS PHASE 2 - HPES COSTS,SPECIALIST COMPUTER CENTRES PLC,1000181077,"63,908"
Department for Work & Pensions,Corporate,13-Jun-13,NEW ENTERPRISE ALLOWANCE MENTOR MATCHING,OPS WDC WSD NE SOUTH YORKSHIRE DISTRICT OFFICE,DONCASTER CHAMBER,2029898299,"63,803"
Department for Work & Pensions,Employment Programmes,03-Jun-13,WP JSA 25+ SUSTAINMENT OUTCOME PAYMENT,WWEG EP NORTH WEST MERS HAL CUMB AND LANCS INGEUS UK,INGEUS UK LTD,2029744835,"63,425"
Department for Work & Pensions,Housing Benefits,14-Jun-13,HOUSING BENEFIT ADMINISTRATION,HB ENGLAND,FENLAND DISTRICT COUNCIL,2029901618,"63,403"
Department for Work & Pensions,Housing Benefits,14-Jun-13,HOUSING BENEFIT ADMINISTRATION,HB ENGLAND,WEST BERKSHIRE COUNCIL,2029901484,"63,221"
Department for Work & Pensions,Corporate,18-Jun-13,COST VARIANCE ACCOUNT,CHG ERSP COMMS,M4C,2029910417,"63,084"
Department for Work & Pensions,Child Maintenance and Enforcement Commission,13-Jun-13,PRIME VARIABLE CHARGE,PRIME,DEPARTMENT FOR WORK & PENSIONS,2000954,"62,606"
Department for Work & Pensions,Employment Programmes,21-Jun-13,WP JSA 25+ SUSTAINMENT OUTCOME PAYMENT,WWEG EP NORTH WEST MERS HAL CUMB AND LANCS A4E,A4E LTD,2029986046,"62,565"
Department for Work & Pensions,Employment Programmes,12-Jun-13,WP JSA 25+ SUSTAINMENT OUTCOME PAYMENT,WWEG EP EAST LONDON CAREERS DEVELOPMENT GROUP,CAREERS DEVELOPMENT GROUP,2029883560,"62,350"
Department for Work & Pensions,Employment Programmes,12-Jun-13,SERVICE FEE,WWEG EP SUPPORT BLACK COUNTRY,A4E LTD,2029869166,"62,320"
Department for Work & Pensions,Corporate,04-Jun-13,SOFTWARE LICENCES,CIO ITLR HOSTING,HP ENTERPRISE SERVICES UK LTD,2029752852,"62,304"
Department for Work & Pensions,Corporate,25-Jun-13,NON-TREDDS IS IT APPS DEV MANDAY,CIO INFRASTRUCTURE & SERVICE REMEDIATION,ACCENTURE UK LTD,2029989612,"62,070"
Department for Work & Pensions,Housing Benefits,14-Jun-13,HOUSING BENEFIT ADMINISTRATION,HB ENGLAND,EREWASH BOROUGH COUNCIL,2029901677,"61,998"
Department for Work & Pensions,Employment Programmes,07-Jun-13,WP JSA 25+ SUSTAINMENT OUTCOME PAYMENT,WWEG EP EAST OF ENGLAND INGEUS UK,INGEUS UK LTD,2029823251,"61,920"
Department for Work & Pensions,Corporate,19-Jun-13,NETWORK SERVICES,CIO ITLR NETWORK,BT GLOBAL SERVICES,2029944518,"61,679"
Department for Work & Pensions,Housing Benefits,14-Jun-13,HOUSING BENEFIT ADMINISTRATION,HB ENGLAND,HARROGATE BOROUGH COUNCIL,2029901319,"61,468"
Department for Work & Pensions,Housing Benefits,14-Jun-13,HOUSING BENEFIT ADMINISTRATION,HB WALES,DENBIGHSHIRE COUNTY COUNCIL,2029901561,"61,339"
Department for Work & Pensions,Corporate,19-Jun-13,TREDDS APPS DEV MANDAYS,CHG TRANSFORMING LABOUR MARKET SERVICES,HP ENTERPRISE SERVICES UK LTD,2029945247,"61,213"
Department for Work & Pensions,Housing Benefits,14-Jun-13,HOUSING BENEFIT ADMINISTRATION,HB SCOTLAND,ANGUS COUNCIL,2029901666,"61,044"
Department for Work & Pensions,Corporate,24-Jun-13,NEW ENTERPRISE ALLOWANCE MENTOR MATCHING,OPS WDC WSD CE LINCOLNSHIRE NOTTINGHAMSHIRE RUTLAND DO,NBV ENTERPRISE SOLUTIONS LTD,2029987131,"60,945"
Department for Work & Pensions,Housing Benefits,14-Jun-13,HOUSING BENEFIT ADMINISTRATION,HB ENGLAND,SOUTH KESTEVEN DISTRICT COUNCIL,2029901366,"60,930"
Department for Work & Pensions,Employment Programmes,24-Jun-13,WP JSA 25+ SUSTAINMENT OUTCOME PAYMENT,WWEG EP EAST LONDON SEETEC,SEETEC BUSINESS TECHNOLOGY CENTRE LTD,2029988598,"60,845"
Department for Work & Pensions,Employment Programmes,03-Jun-13,WP JSA 18-24 JOB SUSTAINMENT OUTCOME PAYMENT,WWEG EP NORTH WEST GM CHES AND WARR G4S,G4S REGIONAL MANAGEMENT UK & I LTD,2029748439,"60,690"
Department for Work & Pensions,Housing Benefits,14-Jun-13,HOUSING BENEFIT ADMINISTRATION,HB WALES,BLAENAU GWENT COUNTY BOROUGH COUNCIL,2029901473,"60,575"
Department for Work & Pensions,Corporate,25-Jun-13,POSTAGE,F&C CD NEWCASTLE ESTATE,UK MAIL,2029990080,"60,412"
Department for Work & Pensions,Housing Benefits,14-Jun-13,HOUSING BENEFIT ADMINISTRATION,HB ENGLAND,WYRE FOREST DISTRICT COUNCIL,2029901499,"60,257"
Department for Work & Pensions,Employment Programmes,28-Jun-13,WP JSA 25+ SUSTAINMENT OUTCOME PAYMENT,WWEG EP EAST OF ENGLAND INGEUS UK,INGEUS UK LTD,2030061092,"60,200"
Department for Work & Pensions,Housing Benefits,14-Jun-13,HOUSING BENEFIT ADMINISTRATION,HB ENGLAND,GEDLING BOROUGH COUNCIL,2029901628,"60,122"
Department for Work & Pensions,Corporate,25-Jun-13,FSF - LOCAL INITIATIVES TO HELP JSA CLIENTS INTO WORK,OPS WDC WSD NW GREATER MANCHESTER E AND W DO,STOCKPORT MBC,2029989355,"60,000"
Department for Work & Pensions,Employment Programmes,24-Jun-13,WP JSA 25+ SUSTAINMENT OUTCOME PAYMENT,WWEG EP SCOTLAND WORKING LINKS,WORKING LINKS,2029987588,"59,985"
Department for Work & Pensions,Housing Benefits,14-Jun-13,HOUSING BENEFIT ADMINISTRATION,HB ENGLAND,WORTHING BOROUGH COUNCIL,2029901415,"59,852"
Department for Work & Pensions,Employment Programmes,25-Jun-13,WP JSA 25+ SUSTAINMENT OUTCOME PAYMENT,WWEG EP EAST OF ENGLAND SEETEC,SEETEC BUSINESS TECHNOLOGY CENTRE LTD,2029990368,"59,770"
Department for Work & Pensions,Housing Benefits,14-Jun-13,HOUSING BENEFIT ADMINISTRATION,HB ENGLAND,HARLOW DISTRICT COUNCIL,2029901586,"59,409"
Department for Work & Pensions,Housing Benefits,14-Jun-13,HOUSING BENEFIT ADMINISTRATION,HB ENGLAND,EAST STAFFORDSHIRE DISTRICT COUNCIL,2029901571,"59,378"
Department for Work & Pensions,Employment Programmes,03-Jun-13,WP JSA 25+ SUSTAINMENT OUTCOME PAYMENT,WWEG EP EAST LONDON A4E,A4E LTD,2029745821,"59,125"
Department for Work & Pensions,Housing Benefits,14-Jun-13,HOUSING BENEFIT ADMINISTRATION,HB ENGLAND,EAST DEVON DISTRICT COUNCIL,2029901650,"59,107"
Department for Work & Pensions,Housing Benefits,14-Jun-13,HOUSING BENEFIT ADMINISTRATION,HB ENGLAND,ASHFORD BOROUGH COUNCIL,2029901457,"59,047"
Department for Work & Pensions,Corporate,20-Jun-13,FSF - TRAINING PAYMENTS TO PROVIDERS - SICK/DISABLED CLIENTS,OPS WDC WSD SE WESSEX DISTRICT OFFICE,THE PLUSS ORGANISATION,2029979768,"59,000"
Department for Work & Pensions,Corporate,05-Jun-13,PRIME BILLABLE EXTRAS PRIME CONTRACT MANAGEMENT (PCM),CHG ESTATES RATIONALISATION SHEFFIELD,TELEREAL TRILLIUM,2029805362,"59,000"
Department for Work & Pensions,Housing Benefits,14-Jun-13,HOUSING BENEFIT ADMINISTRATION,HB ENGLAND,CHELTENHAM BOROUGH COUNCIL,2029901445,"58,687"
Department for Work & Pensions,Corporate,28-Jun-13,PRIME FACILITY PRICE,F&C CD PRESTON HOLBORN HOUSE,TELEREAL TRILLIUM,2030061230,"58,685"
Department for Work & Pensions,Corporate,14-Jun-13,SOC SEC RESEARCH BUDGET,PSG ANALYSIS CAD,IFF RESEARCH LTD,2029903178,"58,677"
Department for Work & Pensions,Housing Benefits,14-Jun-13,HOUSING BENEFIT ADMINISTRATION,HB ENGLAND,CANNOCK CHASE DISTRICT COUNCIL,2029901572,"58,533"
Department for Work & Pensions,Housing Benefits,14-Jun-13,HOUSING BENEFIT ADMINISTRATION,HB ENGLAND,WEST LANCASHIRE DISTRICT COUNCIL,2029901409,"58,411"
Department for Work & Pensions,Employment Programmes,03-Jun-13,WP JSA 25+ SUSTAINMENT OUTCOME PAYMENT,WWEG EP EAST MIDLANDS INGEUS UK,INGEUS UK LTD,2029744835,"58,265"
Department for Work & Pensions,Housing Benefits,14-Jun-13,HOUSING BENEFIT ADMINISTRATION,HB ENGLAND,GRAVESHAM BOROUGH COUNCIL,2029901582,"58,074"
Department for Work & Pensions,Housing Benefits,14-Jun-13,HOUSING BENEFIT ADMINISTRATION,HB ENGLAND,MENDIP DISTRICT COUNCIL,2029901598,"57,771"
Department for Work & Pensions,Housing Benefits,14-Jun-13,HOUSING BENEFIT ADMINISTRATION,HB ENGLAND,REIGATE & BANSTEAD BOROUGH COUNCIL,2029901461,"57,717"
Department for Work & Pensions,Employment Programmes,12-Jun-13,SERVICE FEE,WWEG EP SUPPORT CUMBRIA AND LANCASHIRE,JHP GROUP LTD,2029874949,"57,676"
Department for Work & Pensions,Housing Benefits,14-Jun-13,HOUSING BENEFIT ADMINISTRATION,HB ENGLAND,TAUNTON DEANE BOROUGH COUNCIL,2029901597,"57,652"
Department for Work & Pensions,Corporate,04-Jun-13,POSTAGE,OPS BEN DD BENEFITS GROUP 3 SUPPORT,ROYAL MAIL GROUP PLC,2029751845,"57,534"
Department for Work & Pensions,Child Maintenance and Enforcement Commission,12-Jun-13,DNA TESTING,EXTERNAL CONTRACTS CENTRALLY HELD DNA,CELLMARK,1000179950,"57,482"
Department for Work & Pensions,Corporate,07-Jun-13,STAFF TRAINING VAT RECOVERABLE,HR CONTRACTUAL L AND D,CAPITA CIVIL SERVICE LEARNING,2029825122,"57,428"
Department for Work & Pensions,Housing Benefits,14-Jun-13,HOUSING BENEFIT ADMINISTRATION,HB ENGLAND,WORCESTER CITY COUNCIL,2029901516,"57,416"
Department for Work & Pensions,Corporate,28-Jun-13,PRIME FACILITY PRICE,F&C CD CORBY DISCOVERY HOUSE,TELEREAL TRILLIUM,2030061230,"57,340"
Department for Work & Pensions,Housing Benefits,14-Jun-13,HOUSING BENEFIT ADMINISTRATION,HB ENGLAND,NORTH DEVON DISTRICT COUNCIL,2029901648,"57,094"
Department for Work & Pensions,Corporate,28-Jun-13,PRIME UTILITIES,OPS OPE ESTATES RECESSION,TELEREAL TRILLIUM,2030061228,"56,933"
Department for Work & Pensions,Corporate,28-Jun-13,CONTRACTORS & STAFF SUBSTITUTIONS,CHG IT TRANSFORMATION PROG,CAPITA RESOURCING LTD,2030061082,"56,872"
Department for Work & Pensions,Housing Benefits,14-Jun-13,HOUSING BENEFIT ADMINISTRATION,HB ENGLAND,CITY OF CARLISLE DISTRICT COUNCIL,2029901680,"56,718"
Department for Work & Pensions,Employment Programmes,28-Jun-13,WP JSA 25+ SUSTAINMENT OUTCOME PAYMENT,WWEG EP EAST LONDON CAREERS DEVELOPMENT GROUP,CAREERS DEVELOPMENT GROUP,2030061574,"56,545"
Department for Work & Pensions,Employment Programmes,12-Jun-13,SERVICE FEE,"WWEG EP SUPPORT SOUTH EAST WALES, NORTH AND MID WALES",A4E LTD,2029869166,"56,174"
Department for Work & Pensions,Employment Programmes,03-Jun-13,WP JSA 25+ SUSTAINMENT OUTCOME PAYMENT,WWEG EP WEST LONDON INGEUS UK,INGEUS UK LTD,2029744835,"56,115"
Department for Work & Pensions,Housing Benefits,14-Jun-13,HOUSING BENEFIT ADMINISTRATION,HB ENGLAND,BROXBOURNE BOROUGH COUNCIL,2029901498,"56,069"
Department for Work & Pensions,Employment Programmes,18-Jun-13,WP JSA 25+ SUSTAINMENT OUTCOME PAYMENT,WWEG EP EAST OF ENGLAND SEETEC,SEETEC BUSINESS TECHNOLOGY CENTRE LTD,2029911545,"55,685"
Department for Work & Pensions,Employment Programmes,03-Jun-13,WP JSA CLAIMING 22 OF 24MTHS SUSTAINMENT OUTCOME PAYMENT,WWEG EP NORTH WEST GM CHES AND WARR G4S,G4S REGIONAL MANAGEMENT UK & I LTD,2029748439,"55,500"
Department for Work & Pensions,Corporate,20-Jun-13,NEW ENTERPRISE ALLOWANCE MENTOR MATCHING,OPS WDC WSD NW MERSEYSIDE DISTRICT OFFICE,BLUE ORCHID SUPPORT SERVICES,2029979055,"55,470"
Department for Work & Pensions,Housing Benefits,14-Jun-13,HOUSING BENEFIT ADMINISTRATION,HB ENGLAND,WELWYN HATFIELD DISTRICT COUNCIL,2029901478,"55,447"
Department for Work & Pensions,Housing Benefits,14-Jun-13,HOUSING BENEFIT ADMINISTRATION,HB ENGLAND,GOSPORT BOROUGH COUNCIL,2029901521,"55,363"
Department for Work & Pensions,Housing Benefits,14-Jun-13,HOUSING BENEFIT ADMINISTRATION,HB ENGLAND,NORTH NORFOLK DISTRICT COUNCIL,2029901344,"55,255"
Department for Work & Pensions,Employment Programmes,14-Jun-13,WP JSA 25+ SUSTAINMENT OUTCOME PAYMENT,WWEG EP EAST LONDON SEETEC,SEETEC BUSINESS TECHNOLOGY CENTRE LTD,2029902883,"54,825"
Department for Work & Pensions,SHARED SERVICES,12-Jun-13,CONTRACTED OUT OFFICE SERVICES,OFFICE SERVICES,BALFOUR BEATTY WORKPLACE LTD,2029883720,"54,820"
Department for Work & Pensions,Housing Benefits,14-Jun-13,HOUSING BENEFIT ADMINISTRATION,HB ENGLAND,GUILDFORD BOROUGH COUNCIL,2029901463,"54,800"
Department for Work & Pensions,Housing Benefits,14-Jun-13,HOUSING BENEFIT ADMINISTRATION,HB ENGLAND,WARWICK DISTRICT COUNCIL,2029901448,"54,430"
Department for Work & Pensions,Housing Benefits,14-Jun-13,HOUSING BENEFIT ADMINISTRATION,HB ENGLAND,CAMBRIDGE CITY COUNCIL,2029901660,"54,412"
Department for Work & Pensions,Housing Benefits,14-Jun-13,HOUSING BENEFIT ADMINISTRATION,HB ENGLAND,WEALDEN DISTRICT COUNCIL,2029901568,"54,292"
Department for Work & Pensions,Housing Benefits,14-Jun-13,HOUSING BENEFIT ADMINISTRATION,HB ENGLAND,BRACKNELL FOREST BOROUGH COUNCIL,2029901485,"54,283"
Department for Work & Pensions,Corporate,04-Jun-13,TREDDS APPS DEV FIXED PRICE CONTRACTS,CHG PIP DELIVERY,HP ENTERPRISE SERVICES UK LTD,2029752852,"54,130"
Department for Work & Pensions,Corporate,19-Jun-13,NEW ENTERPRISE ALLOWANCE MENTOR MATCHING,OPS WDC WSD LN BEDS AND HERTS DISTRICT OFFICE,WENTA,2029936596,"53,996"
Department for Work & Pensions,Employment Programmes,03-Jun-13,WP JSA 25+ SUSTAINMENT OUTCOME PAYMENT,WWEG EP WEST LONDON REED IN PARTNERSHIP,REED IN PARTNERSHIP LTD,2029747011,"53,965"
Department for Work & Pensions,Employment Programmes,03-Jun-13,WP JSA 18-24 JOB SUSTAINMENT OUTCOME PAYMENT,WWEG EP SOUTH EAST SURR SUSSX AND KENT G4S,G4S REGIONAL MANAGEMENT UK & I LTD,2029748439,"53,720"
Department for Work & Pensions,Housing Benefits,14-Jun-13,HOUSING BENEFIT ADMINISTRATION,HB ENGLAND,EPPING FOREST DISTRICT COUNCIL,2029901564,"53,718"
Department for Work & Pensions,Housing Benefits,14-Jun-13,HOUSING BENEFIT ADMINISTRATION,HB ENGLAND,NEWARK DISTRICT COUNCIL,2029901627,"53,592"
Department for Work & Pensions,Employment Programmes,05-Jun-13,WP JSA 25+ SUSTAINMENT OUTCOME PAYMENT,WWEG EP EAST OF ENGLAND SEETEC,SEETEC BUSINESS TECHNOLOGY CENTRE LTD,2029790853,"53,535"
Department for Work & Pensions,Employment Programmes,27-Jun-13,WP JSA 25+ SUSTAINMENT OUTCOME PAYMENT,WWEG EP NORTH WEST MERS HAL CUMB AND LANCS A4E,A4E LTD,2030055907,"53,105"
Department for Work & Pensions,Employment Programmes,19-Jun-13,WP JSA 25+ SUSTAINMENT OUTCOME PAYMENT,WWEG EP EAST LONDON CAREERS DEVELOPMENT GROUP,CAREERS DEVELOPMENT GROUP,2029946113,"53,105"
Department for Work & Pensions,Employment Programmes,03-Jun-13,WP JSA 25+ SUSTAINMENT OUTCOME PAYMENT,WWEG EP WEST YORKSHIRE INGEUS UK,INGEUS UK LTD,2029744835,"52,890"
Department for Work & Pensions,Housing Benefits,14-Jun-13,HOUSING BENEFIT ADMINISTRATION,HB ENGLAND,CHICHESTER DISTRICT COUNCIL,2029901418,"52,832"
Department for Work & Pensions,Housing Benefits,14-Jun-13,HOUSING BENEFIT ADMINISTRATION,HB ENGLAND,WINDSOR & MAIDENHEAD BOROUGH COUNCIL,2029901483,"52,807"
Department for Work & Pensions,Housing Benefits,14-Jun-13,HOUSING BENEFIT ADMINISTRATION,HB ENGLAND,WATFORD BOROUGH COUNCIL,2029901689,"52,720"
Department for Work & Pensions,Housing Benefits,14-Jun-13,HOUSING BENEFIT ADMINISTRATION,HB ENGLAND,EAST HERTFORDSHIRE DISTRICT COUNCIL,2029901555,"52,705"
Department for Work & Pensions,Housing Benefits,14-Jun-13,HOUSING BENEFIT ADMINISTRATION,HB ENGLAND,HERTSMERE BOROUGH COUNCIL,2029901481,"52,615"
Department for Work & Pensions,Housing Benefits,14-Jun-13,HOUSING BENEFIT ADMINISTRATION,HB ENGLAND,SOUTH NORFOLK DISTRICT COUNCIL,2029901375,"52,545"
Department for Work & Pensions,Housing Benefits,14-Jun-13,HOUSING BENEFIT ADMINISTRATION,HB SCOTLAND,ARGYLL & BUTE COUNCIL,2029901531,"52,274"
Department for Work & Pensions,Corporate,19-Jun-13,NON PRIME PROPERTY COSTS,F&C CD DURHAM HOUSE,HM REVENUE & CUSTOMS,2003925,"52,118"
Department for Work & Pensions,Corporate,19-Jun-13,NON PRIME PROPERTY COSTS,F&C CD BENTON PARK VIEW,HM REVENUE & CUSTOMS,2003925,"52,118"
Department for Work & Pensions,Housing Benefits,14-Jun-13,HOUSING BENEFIT ADMINISTRATION,HB ENGLAND,ALLERDALE DISTRICT COUNCIL,2029901372,"51,791"
Department for Work & Pensions,Housing Benefits,14-Jun-13,HOUSING BENEFIT ADMINISTRATION,HB ENGLAND,RUSHMOOR BOROUGH COUNCIL,2029901503,"51,567"
Department for Work & Pensions,Child Maintenance and Enforcement Commission,04-Jun-13,POSTAGE,CS CENTRALLY HELD BUDGETS FACILITIES CONTRACTS,ROYAL MAIL GROUP PLC,1000179208,"51,525"
Department for Work & Pensions,Housing Benefits,14-Jun-13,HOUSING BENEFIT ADMINISTRATION,HB ENGLAND,STEVENAGE BOROUGH COUNCIL,2029901480,"51,443"
Department for Work & Pensions,Employment Programmes,03-Jun-13,WP JSA 25+ SUSTAINMENT OUTCOME PAYMENT,WWEG EP SOUTH EAST TV HANTS AND IOW MAXIMUS EMPLOYMENT,MAXIMUS EMPLOYMENT UK LTD,2029748048,"51,385"
Department for Work & Pensions,Housing Benefits,14-Jun-13,HOUSING BENEFIT ADMINISTRATION,HB ENGLAND,CHORLEY BOROUGH COUNCIL,2029901414,"51,351"
Department for Work & Pensions,Employment Programmes,06-Jun-13,WP JSA 25+ JOB OUTCOME PAYMENTWP JSA 25+ JOB OUTCOME PAYMENT,WWEG EP EAST LONDON A4E,A4E LTD,2029817289,"51,300"
Department for Work & Pensions,Corporate,04-Jun-13,TREDDS APPS DEV MANDAYS,CHG PIP DELIVERY,ATOS IT SERVICES UK LTD,2029749405,"51,221"
Department for Work & Pensions,Corporate,17-Jun-13,CONTRACTORS & STAFF SUBSTITUTIONS,CHG UC PROJECT LEDGER CC,CAPITA RESOURCING LTD,2029905778,"51,179"
Department for Work & Pensions,Employment Programmes,12-Jun-13,SERVICE FEE,WWEG EP SUPPORT LEICESTERSHIRE AND NORTHAMPTONSHIRE,INGEUS UK LTD,2029875249,"50,998"
Department for Work & Pensions,Housing Benefits,14-Jun-13,HOUSING BENEFIT ADMINISTRATION,HB ENGLAND,TONBRIDGE & MALLING DISTRICT COUNCIL,2029901434,"50,959"
Department for Work & Pensions,Housing Benefits,14-Jun-13,HOUSING BENEFIT ADMINISTRATION,HB ENGLAND,STAFFORD BOROUGH COUNCIL,2029901466,"50,952"
Department for Work & Pensions,Housing Benefits,14-Jun-13,HOUSING BENEFIT ADMINISTRATION,HB SCOTLAND,EAST LOTHIAN DISTRICT COUNCIL,2029901329,"50,720"
Department for Work & Pensions,Corporate,10-Jun-13,TREDDS APPS DEV MANDAYS,CHG ELECTRONIC SIGNING,HP ENTERPRISE SERVICES UK LTD,2029827045,"50,257"
Department for Work & Pensions,Housing Benefits,14-Jun-13,HOUSING BENEFIT ADMINISTRATION,HB ENGLAND,ROTHER DISTRICT COUNCIL,2029901569,"50,085"
Department for Work & Pensions,Housing Benefits,14-Jun-13,HOUSING BENEFIT ADMINISTRATION,HB ENGLAND,RUGBY BOROUGH COUNCIL,2029901438,"50,016"
Department for Work & Pensions,Corporate,19-Jun-13,SOC SEC RESEARCH BUDGET,EG CPAD RESEARCH AND EVALUATION,OFFICE FOR NATIONAL STATISTICS,2029950416,"50,000"
Department for Work & Pensions,Housing Benefits,14-Jun-13,HOUSING BENEFIT ADMINISTRATION,HB ENGLAND,BROXTOWE BOROUGH COUNCIL,2029901629,"49,796"
Department for Work & Pensions,Corporate,18-Jun-13,NEW ENTERPRISE ALLOWANCE MENTOR MATCHING,OPS WDC WSD CE EAST ANGLIA DISTRICT OFFICE,IXION HOLDINGS LTD,2029911481,"49,789"
Department for Work & Pensions,Corporate,04-Jun-13,NON ICONS NETWORK SERVICES,CIO ITLR NETWORK,HUTCHINSON 3G UK LTD,2029750438,"49,787"
Department for Work & Pensions,Corporate,26-Jun-13,CONTRACTED OUT OFFICE SERVICES,OPS NET CC SERCO NBFH,SERCO PUBLIC SERVICES LTD,2030033756,"49,748"
Department for Work & Pensions,Corporate,25-Jun-13,NETWORK SERVICES,CIO ITLR NETWORK,BT GLOBAL SERVICES,2029990076,"49,679"
Department for Work & Pensions,Employment Programmes,14-Jun-13,WP JSA 25+ SUSTAINMENT OUTCOME PAYMENT,WWEG EP NORTH WEST MERS HAL CUMB AND LANCS INGEUS UK,INGEUS UK LTD,2029903449,"49,665"
Department for Work & Pensions,Employment Programmes,21-Jun-13,WP JSA 25+ SUSTAINMENT OUTCOME PAYMENT,WWEG EP WEST LONDON REED IN PARTNERSHIP,REED IN PARTNERSHIP LTD,2029984394,"49,665"
Department for Work & Pensions,Housing Benefits,14-Jun-13,HOUSING BENEFIT ADMINISTRATION,HB ENGLAND,EASTLEIGH BOROUGH COUNCIL,2029901523,"49,662"
Department for Work & Pensions,Housing Benefits,14-Jun-13,HOUSING BENEFIT ADMINISTRATION,HB ENGLAND,WYCHAVON DISTRICT COUNCIL,2029901589,"49,587"
Department for Work & Pensions,Corporate,07-Jun-13,NEW ENTERPRISE ALLOWANCE MENTOR MATCHING,OPS WDC WSD SE GLOUCESTERSHIRE AND WEST OF ENGLAND DO,GLOUCESTERSHIRE ENTERPRISE LTD,2029825139,"49,560"
Department for Work & Pensions,Housing Benefits,14-Jun-13,HOUSING BENEFIT ADMINISTRATION,HB ENGLAND,LEWES DISTRICT COUNCIL,2029901399,"49,415"
Department for Work & Pensions,Housing Benefits,14-Jun-13,HOUSING BENEFIT ADMINISTRATION,HB ENGLAND,SUFFOLK COASTAL DISTRICT COUNCIL,2029901527,"49,330"
Department for Work & Pensions,Employment Programmes,07-Jun-13,WP JSA 25+ SUSTAINMENT OUTCOME PAYMENT,WWEG EP NORTH WEST MERS HAL CUMB AND LANCS A4E,A4E LTD,2029822921,"49,235"
Department for Work & Pensions,Employment Programmes,21-Jun-13,WP JSA 25+ SUSTAINMENT OUTCOME PAYMENT,WWEG EP SOUTH EAST TV HANTS AND IOW A4E,A4E LTD,2029986046,"49,235"
Department for Work & Pensions,Housing Benefits,14-Jun-13,HOUSING BENEFIT ADMINISTRATION,HB ENGLAND,KETTERING BOROUGH COUNCIL,2029901323,"49,039"
Department for Work & Pensions,Corporate,10-Jun-13,TREDDS IS IT CONSULTANCY (HOSTING) NON ADVICE,CHG DELIVERING THE IRIS ORGANISATION,HP ENTERPRISE SERVICES UK LTD,2029827045,"48,858"
Department for Work & Pensions,Housing Benefits,14-Jun-13,HOUSING BENEFIT ADMINISTRATION,HB ENGLAND,STRATFORD ON AVON DISTRICT COUNCIL,2029901420,"48,849"
Department for Work & Pensions,Employment Programmes,10-Jun-13,WP JSA 25+ SUSTAINMENT OUTCOME PAYMENT,WWEG EP SCOTLAND WORKING LINKS,WORKING LINKS,2029827112,"48,805"
Department for Work & Pensions,Housing Benefits,14-Jun-13,HOUSING BENEFIT ADMINISTRATION,HB ENGLAND,WEST LINDSEY DISTRICT COUNCIL,2029901365,"48,690"
Department for Work & Pensions,Corporate,21-Jun-13,VOCA Charges,F&C FIN CONT COBAP BANKING,VOCALINK,2029986710,"48,626"
Department for Work & Pensions,Employment Programmes,21-Jun-13,WP JSA 25+ SUSTAINMENT OUTCOME PAYMENT,WWEG EP EAST MIDLANDS A4E,A4E LTD,2029986046,"48,590"
Department for Work & Pensions,Corporate,04-Jun-13,TREDDS APPS DEV MANDAYS,CHG PIP DELIVERY,HP ENTERPRISE SERVICES UK LTD,2029752852,"48,512"
Department for Work & Pensions,Corporate,11-Jun-13,TREDDS APPS DEV MANDAYS,CIO ADEP ITLR ADEP TRANSITION,HP ENTERPRISE SERVICES UK LTD,2029832125,"48,392"
Department for Work & Pensions,Housing Benefits,14-Jun-13,HOUSING BENEFIT ADMINISTRATION,HB ENGLAND,HIGH PEAK BOROUGH COUNCIL,2029901676,"48,032"
Department for Work & Pensions,Housing Benefits,14-Jun-13,HOUSING BENEFIT ADMINISTRATION,HB ENGLAND,BOROUGH OF REDDITCH,2029901500,"47,994"
Department for Work & Pensions,Employment Programmes,21-Jun-13,WP JSA 25+ SUSTAINMENT OUTCOME PAYMENT,WWEG EP EAST MIDLANDS INGEUS UK,INGEUS UK LTD,2029986790,"47,945"
Department for Work & Pensions,Housing Benefits,14-Jun-13,HOUSING BENEFIT ADMINISTRATION,HB ENGLAND,DARTFORD BOROUGH COUNCIL,2029901376,"47,934"
Department for Work & Pensions,Corporate,17-Jun-13,CONTRACTORS & STAFF SUBSTITUTIONS,CHG IT TRANSFORMATION PROG,CAPITA RESOURCING LTD,2029905778,"47,885"
Department for Work & Pensions,Employment Programmes,06-Jun-13,WP JSA 25+ JOB OUTCOME PAYMENTWP JSA 25+ JOB OUTCOME PAYMENT,WWEG EP EAST LONDON CAREERS DEVELOPMENT GROUP,CAREERS DEVELOPMENT GROUP,2029818685,"47,880"
Department for Work & Pensions,Employment Programmes,12-Jun-13,SERVICE FEE,"WWEG EP SUPPORT SOUTH WEST WALES, SOUTH WALES VALLEYS",CAPITAL TRAINING GROUP LTD,2029867006,"47,730"
Department for Work & Pensions,Housing Benefits,14-Jun-13,HOUSING BENEFIT ADMINISTRATION,HB SCOTLAND,MIDLOTHIAN COUNCIL,2029901491,"47,657"
Department for Work & Pensions,Housing Benefits,14-Jun-13,HOUSING BENEFIT ADMINISTRATION,HB ENGLAND,BOROUGH OF WELLINGBOROUGH,2029901321,"47,596"
Department for Work & Pensions,Corporate,06-Jun-13,PACS INTER-VOTE CREDITOR,BALANCE SHEET,DWP MANUAL PAYMENTS,2003905,"47,592"
Department for Work & Pensions,Housing Benefits,14-Jun-13,HOUSING BENEFIT ADMINISTRATION,HB ENGLAND,ST EDMUNDSBURY BOROUGH COUNCIL,2029901587,"47,536"
Department for Work & Pensions,Housing Benefits,14-Jun-13,HOUSING BENEFIT ADMINISTRATION,HB ENGLAND,ELMBRIDGE BOROUGH COUNCIL,2029901526,"47,523"
Department for Work & Pensions,Housing Benefits,14-Jun-13,HOUSING BENEFIT ADMINISTRATION,HB ENGLAND,SOUTH RIBBLE BOROUGH COUNCIL C,2029901410,"47,517"
Department for Work & Pensions,Employment Programmes,11-Jun-13,WP JSA 25+ SUSTAINMENT OUTCOME PAYMENT,WWEG EP EAST LONDON CAREERS DEVELOPMENT GROUP,CAREERS DEVELOPMENT GROUP,2029831226,"47,515"
Department for Work & Pensions,Housing Benefits,14-Jun-13,HOUSING BENEFIT ADMINISTRATION,HB ENGLAND,TUNBRIDGE WELLS BOROUGH COUNCIL,2029901433,"47,393"
Department for Work & Pensions,Corporate,17-Jun-13,NEW ENTERPRISE ALLOWANCE MENTOR MATCHING,OPS WDC WSD LN KENT DISTRICT OFFICE,NETWORK PROJECTS LTD,2029907292,"47,253"
Department for Work & Pensions,Corporate,28-Jun-13,PRIME FACILITY PRICE,F&C CD CLARKE HOUSE,TELEREAL TRILLIUM,2030061230,"47,175"
Department for Work & Pensions,Employment Programmes,14-Jun-13,WP JSA 25+ SUSTAINMENT OUTCOME PAYMENT,WWEG EP WEST LONDON INGEUS UK,INGEUS UK LTD,2029903449,"47,085"
Department for Work & Pensions,Employment Programmes,03-Jun-13,WP JSA 25+ SUSTAINMENT OUTCOME PAYMENT,WWEG EP WEST LONDON MAXIMUS EMPLOYMENT UK,MAXIMUS EMPLOYMENT UK LTD,2029748048,"47,085"
Department for Work & Pensions,Employment Programmes,03-Jun-13,WP JSA 25+ SUSTAINMENT OUTCOME PAYMENT,WWEG EP EAST MIDLANDS A4E,A4E LTD,2029745821,"47,085"
Department for Work & Pensions,Housing Benefits,14-Jun-13,HOUSING BENEFIT ADMINISTRATION,HB ENGLAND,TEST VALLEY BOROUGH COUNCIL,2029901541,"46,899"
Department for Work & Pensions,Employment Programmes,24-Jun-13,WP JSA 25+ SUSTAINMENT OUTCOME PAYMENT,WWEG EP EAST OF ENGLAND SEETEC,SEETEC BUSINESS TECHNOLOGY CENTRE LTD,2029988598,"46,870"
Department for Work & Pensions,Housing Benefits,14-Jun-13,HOUSING BENEFIT ADMINISTRATION,HB ENGLAND,NORTH EAST DERBYSHIRE DISTRICT COUNCIL,2029901652,"46,806"
Department for Work & Pensions,Corporate,07-Jun-13,TREDDS APPS DEV MANDAYS,CHG CP SERVICE ORIENTATED ARCHITECTURE,HP ENTERPRISE SERVICES UK LTD,2029825703,"46,513"
Department for Work & Pensions,Housing Benefits,14-Jun-13,HOUSING BENEFIT ADMINISTRATION,HB WALES,MERTHYR TYDFIL BOROUGH COUNCIL,2029901350,"46,473"
Department for Work & Pensions,Employment Programmes,14-Jun-13,WP JSA 25+ SUSTAINMENT OUTCOME PAYMENT,WWEG EP EAST MIDLANDS INGEUS UK,INGEUS UK LTD,2029903449,"46,440"
Department for Work & Pensions,Corporate,06-Jun-13,PRINTING/BINDING,OPS CCS MEDICAL SERVICES,XEROX UK LTD 3W,2029819508,"46,415"
Department for Work & Pensions,Housing Benefits,14-Jun-13,HOUSING BENEFIT ADMINISTRATION,HB ENGLAND,CORBY BOROUGH COUNCIL,2029901489,"46,344"
Department for Work & Pensions,Housing Benefits,14-Jun-13,HOUSING BENEFIT ADMINISTRATION,HB ENGLAND,WEST DORSET DISTRICT COUNCIL,2029901593,"46,270"
Department for Work & Pensions,Employment Programmes,05-Jun-13,WP JSA 25+ SUSTAINMENT OUTCOME PAYMENT,WWEG EP NORTH WEST GM CHES AND WARR AVANTA ENTERPRISE,AVANTA ENTERPRISE LTD,2029799280,"46,225"
Department for Work & Pensions,Corporate,21-Jun-13,STAFF TRAINING VAT RECOVERABLE,HR CONTRACTUAL L AND D,CAPITA CIVIL SERVICE LEARNING,2029986145,"46,097"
Department for Work & Pensions,Housing Benefits,14-Jun-13,HOUSING BENEFIT ADMINISTRATION,HB ENGLAND,WEYMOUTH & PORTLAND BOROUGH COUNCIL,2029901592,"46,031"
Department for Work & Pensions,Housing Benefits,14-Jun-13,HOUSING BENEFIT ADMINISTRATION,HB ENGLAND,BOLSOVER DISTRICT COUNCIL,2029901446,"45,901"
Department for Work & Pensions,Corporate,25-Jun-13,SOC SEC RESEARCH BUDGET,STR AGEING SOC DIRECTOR AND SUPPORT,TNS BMRB,2029993574,"45,800"
Department for Work & Pensions,Employment Programmes,27-Jun-13,WP JSA 25+ SUSTAINMENT OUTCOME PAYMENT,WWEG EP EAST LONDON A4E,A4E LTD,2030055907,"45,795"
Department for Work & Pensions,Employment Programmes,12-Jun-13,SERVICE FEE,WWEG EP SUPPORT CORNWALL AND DEVON,WORKING LINKS,2029875252,"45,743"
Department for Work & Pensions,European Social Fund,19-Jun-13,MA ESF(D) PROGRAMME EXPENDITURE EC PREFUNDED DWP,WWEG EUROPEAN SOCIAL FUND PROGRAMME 2007-2013,SOUTH WEST DWP,5000001394,"45,620"
Department for Work & Pensions,Employment Programmes,05-Jun-13,WP JSA 25+ JOB OUTCOME PAYMENTWP JSA 25+ JOB OUTCOME PAYMENT,WWEG EP SCOTLAND WORKING LINKS,WORKING LINKS,2029816885,"45,600"
Department for Work & Pensions,Corporate,03-Jun-13,NEW ENTERPRISE ALLOWANCE MENTOR MATCHING,OPS WDC WSD CE DERBYSHIRE DISTRICT OFFICE,BUSINESS IN THE COMMUNITY,2029745571,"45,496"
Department for Work & Pensions,Housing Benefits,14-Jun-13,HOUSING BENEFIT ADMINISTRATION,HB ENGLAND,STROUD DISTRICT COUNCIL,2029901544,"45,234"
Department for Work & Pensions,Corporate,28-Jun-13,PRIME FACILITY PRICE,F&C CD BIRMINGHAM CITY C POD IRS,TELEREAL TRILLIUM,2030061230,"45,204"
Department for Work & Pensions,Housing Benefits,14-Jun-13,HOUSING BENEFIT ADMINISTRATION,HB ENGLAND,SEVENOAKS DISTRICT COUNCIL,2029901436,"45,162"
Department for Work & Pensions,Housing Benefits,14-Jun-13,HOUSING BENEFIT ADMINISTRATION,HB ENGLAND,BROADLAND DISTRICT COUNCIL,2029901346,"44,780"
Department for Work & Pensions,Employment Programmes,21-Jun-13,WP JSA 25+ SUSTAINMENT OUTCOME PAYMENT,WWEG EP EAST LONDON CAREERS DEVELOPMENT GROUP,CAREERS DEVELOPMENT GROUP,2029982125,"44,720"
Department for Work & Pensions,Employment Programmes,07-Jun-13,WP JSA 25+ SUSTAINMENT OUTCOME PAYMENT,WWEG EP EAST LONDON A4E,A4E LTD,2029822921,"44,720"
Department for Work & Pensions,Corporate,11-Jun-13,NON-TREDDS APPS DEV FIXED PRICE CONTRACTS,CIO CENTRAL MISCELLANANEOUS,HM REVENUE & CUSTOMS,2003913,"44,693"
Department for Work & Pensions,Corporate,03-Jun-13,CONTRACTED OUT OFFICE SERVICES,F&C FIN CONT DEBT CONTROL,COMMERCIAL COLLECTION SERVICES LTD,2029747522,"44,663"
Department for Work & Pensions,Housing Benefits,14-Jun-13,HOUSING BENEFIT ADMINISTRATION,HB ENGLAND,BARROW BOROUGH COUNCIL,2029901444,"44,625"
Department for Work & Pensions,Housing Benefits,14-Jun-13,HOUSING BENEFIT ADMINISTRATION,HB ENGLAND,FOREST OF DEAN DISTRICT COUNCIL,2029901545,"44,519"
Department for Work & Pensions,Employment Programmes,03-Jun-13,WP JSA 25+ SUSTAINMENT OUTCOME PAYMENT,WWEG EP SOUTH EAST TV HANTS AND IOW A4E,A4E LTD,2029745821,"44,505"
Department for Work & Pensions,Housing Benefits,14-Jun-13,HOUSING BENEFIT ADMINISTRATION,HB ENGLAND,MID SUSSEX DISTRICT COUNCIL,2029901583,"44,247"
Department for Work & Pensions,Housing Benefits,14-Jun-13,HOUSING BENEFIT ADMINISTRATION,HB ENGLAND,SOUTH STAFFORDSHIRE DISTRICT COUNCIL,2029901551,"44,243"
Department for Work & Pensions,Housing Benefits,14-Jun-13,HOUSING BENEFIT ADMINISTRATION,HB ENGLAND,ST ALBANS DISTRICT COUNCIL,2029901698,"44,073"
Department for Work & Pensions,Housing Benefits,14-Jun-13,HOUSING BENEFIT ADMINISTRATION,HB ENGLAND,CASTLE POINT DISTRICT COUNCIL,2029901566,"43,633"
Department for Work & Pensions,Corporate,25-Jun-13,NON PRIME PROPERTY COSTS,OPS OPE OIS ESTATES BASELINE,COPELAND BOROUGH COUNCIL,2029990191,"43,531"
Department for Work & Pensions,Housing Benefits,14-Jun-13,HOUSING BENEFIT ADMINISTRATION,HB ENGLAND,SOUTH HOLLAND DISTRICT COUNCIL,2029901467,"43,503"
Department for Work & Pensions,Employment Programmes,05-Jun-13,WP JSA 25+ SUSTAINMENT OUTCOME PAYMENT,WWEG EP SCOTLAND WORKING LINKS,WORKING LINKS,2029816885,"43,430"
Department for Work & Pensions,Housing Benefits,14-Jun-13,HOUSING BENEFIT ADMINISTRATION,HB ENGLAND,HORSHAM DISTRICT COUNCIL,2029901416,"43,329"
Department for Work & Pensions,Employment Programmes,24-Jun-13,WP JSA 25+ SUSTAINMENT OUTCOME PAYMENT,WWEG EP NORTH WEST GM CHES AND WARR AVANTA ENTERPRISE,AVANTA ENTERPRISE LTD,2029987831,"43,000"
Department for Work & Pensions,Employment Programmes,04-Jun-13,WP JSA 25+ SUSTAINMENT OUTCOME PAYMENT,WWEG EP SCOTLAND WORKING LINKS,WORKING LINKS,2029750934,"43,000"
Department for Work & Pensions,Corporate,03-Jun-13,CONTRACTORS & STAFF SUBSTITUTIONS,CHG IT TRANSFORMATION PROG,CAPITA RESOURCING LTD,2029744998,"42,928"
Department for Work & Pensions,Housing Benefits,14-Jun-13,HOUSING BENEFIT ADMINISTRATION,HB ENGLAND,NORTH KESTEVEN DISTRICT COUNCIL,2029901697,"42,895"
Department for Work & Pensions,Housing Benefits,14-Jun-13,HOUSING BENEFIT ADMINISTRATION,HB ENGLAND,EAST HAMPSHIRE DISTRICT COUNCIL,2029901524,"42,746"
Department for Work & Pensions,Housing Benefits,14-Jun-13,HOUSING BENEFIT ADMINISTRATION,HB ENGLAND,HINCKLEY & BOSWORTH BOROUGH COUNCIL,2029901390,"42,577"
Department for Work & Pensions,Corporate,19-Jun-13,STAFF TRAINING VAT RECOVERABLE,HR CONTRACTUAL L AND D,CAPITA CIVIL SERVICE LEARNING,2029939300,"42,574"
Department for Work & Pensions,Employment Programmes,14-Jun-13,WP JSA 25+ SUSTAINMENT OUTCOME PAYMENT,WWEG EP WEST YORKSHIRE INGEUS UK,INGEUS UK LTD,2029903449,"42,570"
Department for Work & Pensions,Corporate,03-Jun-13,CONTRACTORS & STAFF SUBSTITUTIONS,CHG UC PROJECT LEDGER CC,CAPITA RESOURCING LTD,2029744998,"42,369"
Department for Work & Pensions,Employment Programmes,07-Jun-13,WP JSA 25+ SUSTAINMENT OUTCOME PAYMENT,WWEG EP EAST MIDLANDS INGEUS UK,INGEUS UK LTD,2029823251,"42,355"
Department for Work & Pensions,Employment Programmes,21-Jun-13,WP JSA 25+ SUSTAINMENT OUTCOME PAYMENT,WWEG EP WEST YORKSHIRE INGEUS UK,INGEUS UK LTD,2029986790,"42,355"
Department for Work & Pensions,Corporate,04-Jun-13,POSTAGE,F&C CD NEWCASTLE ESTATE,ROYAL MAIL GROUP PLC,2029751845,"42,260"
Department for Work & Pensions,Housing Benefits,14-Jun-13,HOUSING BENEFIT ADMINISTRATION,HB ENGLAND,SOUTH CAMBRIDGESHIRE DISTRICT COUNCIL,2029901392,"42,208"
Department for Work & Pensions,Housing Benefits,14-Jun-13,HOUSING BENEFIT ADMINISTRATION,HB ENGLAND,VALE OF WHITE HORSE DISTRICT COUNCIL,2029901601,"42,178"
Department for Work & Pensions,Employment Programmes,28-Jun-13,WP JSA 25+ SUSTAINMENT OUTCOME PAYMENT,WWEG EP EAST MIDLANDS INGEUS UK,INGEUS UK LTD,2030061092,"42,140"
Department for Work & Pensions,Employment Programmes,21-Jun-13,WP JSA 25+ SUSTAINMENT OUTCOME PAYMENT,WWEG EP WEST LONDON MAXIMUS EMPLOYMENT UK,MAXIMUS EMPLOYMENT UK LTD,2029986192,"42,140"
Department for Work & Pensions,Housing Benefits,14-Jun-13,HOUSING BENEFIT ADMINISTRATION,HB ENGLAND,SOUTH OXFORDSHIRE DISTRICT COUNCIL,2029901626,"41,899"
Department for Work & Pensions,Housing Benefits,14-Jun-13,HOUSING BENEFIT ADMINISTRATION,HB SCOTLAND,THE MORAY COUNCIL,2029901603,"41,888"
Department for Work & Pensions,Housing Benefits,14-Jun-13,HOUSING BENEFIT ADMINISTRATION,HB ENGLAND,ROSSENDALE BOROUGH COUNCIL,2029901411,"41,884"
Department for Work & Pensions,Corporate,17-Jun-13,FSF - PARTNERSHIP GRANTS - TO HELP JSA CLIENTS INTO WORK,OPS WDC WSD NE DURHAM AND TEES VALLEY DISTRICT OFFICE,HARTLEPOOL BOROUGH COUNCIL,2029906345,"41,674"
Department for Work & Pensions,Employment Programmes,21-Jun-13,WP JSA 25+ SUSTAINMENT OUTCOME PAYMENT,WWEG EP NORTH EAST INGEUS UK,INGEUS UK LTD,2029986790,"41,495"
Department for Work & Pensions,Corporate,18-Jun-13,UNBILLED RECEIVABLE ACCOUNT,BALANCE SHEET,SCOTTISH GOVERNMENT,2003916,"41,305"
Department for Work & Pensions,Employment Programmes,07-Jun-13,WP JSA 25+ SUSTAINMENT OUTCOME PAYMENT,WWEG EP SOUTH EAST TV HANTS AND IOW A4E,A4E LTD,2029822921,"41,280"
Department for Work & Pensions,Housing Benefits,14-Jun-13,HOUSING BENEFIT ADMINISTRATION,HB ENGLAND,SPELTHORNE BOROUGH COUNCIL,2029901443,"41,278"
Department for Work & Pensions,Corporate,04-Jun-13,FSF - SUPPORT CONTRACT MODULES FOR JSA JOBSEEKERS,OPS WDC WSD LN WEST LONDON DISTRICT OFFICE,A4E LTD,2029751717,"41,200"
Department for Work & Pensions,Housing Benefits,14-Jun-13,HOUSING BENEFIT ADMINISTRATION,HB ENGLAND,BOSTON BOROUGH COUNCIL,2029901368,"41,111"
Department for Work & Pensions,Housing Benefits,14-Jun-13,HOUSING BENEFIT ADMINISTRATION,HB ENGLAND,WEST OXFORDSHIRE DISTRICT COUNCIL,2029901600,"41,003"
Department for Work & Pensions,Employment Programmes,13-Jun-13,Youth Contract Wage Incentive Payment,WWEG EP W MIDLANDS BIRM SOL BC FOURSTAR EMP AND SKILLS,STAFFLINE GROUP,2029897899,"40,950"
Department for Work & Pensions,Housing Benefits,14-Jun-13,HOUSING BENEFIT ADMINISTRATION,HB WALES,ISLE OF ANGLESEY COUNTY COUNCIL,2029901351,"40,856"
Department for Work & Pensions,Housing Benefits,14-Jun-13,HOUSING BENEFIT ADMINISTRATION,HB ENGLAND,NORTH WEST LEICESTER DISTRICT COUNCIL,2029901388,"40,850"
Department for Work & Pensions,Employment Programmes,03-Jun-13,WP JSA 25+ JOB OUTCOME PAYMENTWP JSA 25+ JOB OUTCOME PAYMENT,WWEG EP SCOTLAND INGEUS UK,INGEUS UK LTD,2029744835,"40,850"
Department for Work & Pensions,Employment Programmes,14-Jun-13,WP JSA 25+ SUSTAINMENT OUTCOME PAYMENT,WWEG EP NORTH WEST MERS HAL CUMB AND LANCS A4E,A4E LTD,2029904436,"40,850"
Department for Work & Pensions,Employment Programmes,06-Jun-13,WP JSA 25+ JOB OUTCOME PAYMENTWP JSA 25+ JOB OUTCOME PAYMENT,WWEG EP WEST LONDON MAXIMUS EMPLOYMENT UK,MAXIMUS EMPLOYMENT UK LTD,2029819150,"40,800"
Department for Work & Pensions,Housing Benefits,14-Jun-13,HOUSING BENEFIT ADMINISTRATION,HB ENGLAND,WINCHESTER CITY COUNCIL,2029901502,"40,793"
Department for Work & Pensions,Corporate,27-Jun-13,REMOTE STORAGE COSTS VAT RECOV,OPS OPE OIS CENTRAL CONTRACTS,CAPITA BUSINESS SERVICES LTD,2030059129,"40,792"
Department for Work & Pensions,Corporate,10-Jun-13,CONTRACTED OUT OFFICE SERVICES,OPS NET CC SERCO NBFH,SERCO PUBLIC SERVICES LTD,2029826806,"40,741"
Department for Work & Pensions,Corporate,04-Jun-13,POSTAGE,OPS BEN BD DIRECTORS RESIDUAL,ROYAL MAIL GROUP PLC,2029751845,"40,712"
Department for Work & Pensions,Employment Programmes,03-Jun-13,WP JSA 25+ SUSTAINMENT OUTCOME PAYMENT,WWEG EP NORTH EAST INGEUS UK,INGEUS UK LTD,2029744835,"40,635"
Department for Work & Pensions,Corporate,21-Jun-13,NON ICONS NETWORK SERVICES,CIO ITLR NETWORK,TMOBILE LTD,2029986385,"40,630"
Department for Work & Pensions,Housing Benefits,14-Jun-13,HOUSING BENEFIT ADMINISTRATION,HB ENGLAND,WAVERLEY BOROUGH COUNCIL,2029901575,"40,318"
Department for Work & Pensions,Corporate,21-Jun-13,NON-TREDDS IS IT APPS DEV MANDAY,CHG APPLICATION DEVELOPMENT ADEP IMP,ACCENTURE UK LTD,2029983014,"40,280"
Department for Work & Pensions,Corporate,12-Jun-13,SERVICE FEE,CHG RIGHT TO CONTROL DELP,LEICESTER CITY COUNCIL,1005836,"40,147"
Department for Work & Pensions,Housing Benefits,14-Jun-13,HOUSING BENEFIT ADMINISTRATION,HB ENGLAND,SOUTH HAMS DISTRICT COUNCIL,2029901625,"40,139"
Department for Work & Pensions,Employment Programmes,12-Jun-13,SERVICE FEE,WWEG EP SUPPORT NOTTINGHAM,INGEUS UK LTD,2029875249,"40,087"
Department for Work & Pensions,Child Maintenance and Enforcement Commission,24-Jun-13,PRIME UTILITIES,PRIME,DEPARTMENT FOR WORK & PENSIONS,2000960,"39,993"
Department for Work & Pensions,Employment Programmes,03-Jun-13,WP JSA 25+ JOB OUTCOME PAYMENTWP JSA 25+ JOB OUTCOME PAYMENT,WWEG EP NORTH WEST MERS HAL CUMB AND LANCS INGEUS UK,INGEUS UK LTD,2029744835,"39,970"
Department for Work & Pensions,Housing Benefits,14-Jun-13,HOUSING BENEFIT ADMINISTRATION,HB ENGLAND,LICHFIELD DISTRICT COUNCIL,2029901570,"39,960"
Department for Work & Pensions,Housing Benefits,14-Jun-13,HOUSING BENEFIT ADMINISTRATION,HB WALES,MONMOUTHSHIRE COUNTY  COUNCIL,2029901371,"39,786"
Department for Work & Pensions,Employment Programmes,07-Jun-13,WP JSA 25+ SUSTAINMENT OUTCOME PAYMENT,WWEG EP SCOTLAND WORKING LINKS,WORKING LINKS,2029823254,"39,775"
Department for Work & Pensions,Corporate,11-Jun-13,FSF - SUPPORT CONTRACT MODULES FOR JSA JOBSEEKERS,OPS WDC WSD LN NORTH LONDON DISTRICT OFFICE,A4E LTD,2029833164,"39,696"
Department for Work & Pensions,Employment Programmes,27-Jun-13,WP JSA 25+ SUSTAINMENT OUTCOME PAYMENT,WWEG EP EAST MIDLANDS A4E,A4E LTD,2030055907,"39,560"
Department for Work & Pensions,Employment Programmes,14-Jun-13,WP JSA 25+ SUSTAINMENT OUTCOME PAYMENT,WWEG EP EAST LONDON A4E,A4E LTD,2029904436,"39,560"
Department for Work & Pensions,Corporate,27-Jun-13,NON-TREDDS IS IT APPS DEV MANDAY,CHG SCANNING & DIGITAL STORAGE,IBM UNITED KINGDOM LTD,2030059961,"39,544"
Department for Work & Pensions,Housing Benefits,14-Jun-13,HOUSING BENEFIT ADMINISTRATION,HB ENGLAND,TAMWORTH BOROUGH COUNCIL,2029901549,"39,467"
Department for Work & Pensions,Employment Programmes,28-Jun-13,WP JSA 25+ SUSTAINMENT OUTCOME PAYMENT,WWEG EP EAST LONDON SEETEC,SEETEC BUSINESS TECHNOLOGY CENTRE LTD,2030061295,"39,345"
Department for Work & Pensions,Employment Programmes,10-Jun-13,WP JSA 25+ SUSTAINMENT OUTCOME PAYMENT,WWEG EP EAST LONDON CAREERS DEVELOPMENT GROUP,CAREERS DEVELOPMENT GROUP,2029830237,"39,345"
Department for Work & Pensions,Housing Benefits,14-Jun-13,HOUSING BENEFIT ADMINISTRATION,HB ENGLAND,COPELAND BOROUGH COUNCIL,2029901679,"39,201"
Department for Work & Pensions,Housing Benefits,14-Jun-13,HOUSING BENEFIT ADMINISTRATION,HB ENGLAND,WOKING BOROUGH COUNCIL,2029901441,"39,172"
Department for Work & Pensions,Housing Benefits,14-Jun-13,HOUSING BENEFIT ADMINISTRATION,HB SCOTLAND,STIRLING COUNCIL,2029901381,"39,167"
Department for Work & Pensions,Employment Programmes,21-Jun-13,WP JSA 25+ SUSTAINMENT OUTCOME PAYMENT,WWEG EP NORTH WEST MERS HAL CUMB AND LANCS INGEUS UK,INGEUS UK LTD,2029986790,"39,130"
Department for Work & Pensions,Corporate,17-Jun-13,NEW ENTERPRISE ALLOWANCE MENTOR MATCHING,OPS WDC WSD SE GREATER WESSEX DISTRICT OFFICE,ENTERPRISE FIRST,2029908393,"38,940"
Department for Work & Pensions,Employment Programmes,04-Jun-13,WP JSA 25+ SUSTAINMENT OUTCOME PAYMENT,WWEG EP EAST LONDON CAREERS DEVELOPMENT GROUP,CAREERS DEVELOPMENT GROUP,2029750200,"38,915"
Department for Work & Pensions,Housing Benefits,14-Jun-13,HOUSING BENEFIT ADMINISTRATION,HB SCOTLAND,EAST DUNBARTONSHIRE COUNCIL,2029901408,"38,732"
Department for Work & Pensions,Employment Programmes,11-Jun-13,WP JSA 25+ SUSTAINMENT OUTCOME PAYMENT,WWEG EP SOUTH EAST SURR SUSSX AND KENT AVANTA ENTERPRISE,AVANTA ENTERPRISE LTD,2029831653,"38,700"
Department for Work & Pensions,Employment Programmes,03-Jun-13,WP JSA 25+ SUSTAINMENT OUTCOME PAYMENT,WWEG EP SCOTLAND WORKING LINKS,WORKING LINKS,2029744837,"38,485"
Department for Work & Pensions,Employment Programmes,19-Jun-13,WP JSA 25+ SUSTAINMENT OUTCOME PAYMENT,WWEG EP NORTH EAST AVANTA ENTERPRISE,AVANTA ENTERPRISE LTD,2029951329,"38,485"
Department for Work & Pensions,Corporate,07-Jun-13,AMS FIXED PRICE CONTRACTS,CIO ITLR AMS,HP ENTERPRISE SERVICES UK LTD,2029825703,"38,460"
Department for Work & Pensions,Employment Programmes,06-Jun-13,WP JSA 25+ JOB OUTCOME PAYMENTWP JSA 25+ JOB OUTCOME PAYMENT,WWEG EP SCOTLAND WORKING LINKS,WORKING LINKS,2029818226,"38,400"
Department for Work & Pensions,Employment Programmes,27-Jun-13,WP JSA 25+ SUSTAINMENT OUTCOME PAYMENT,WWEG EP SOUTH EAST TV HANTS AND IOW A4E,A4E LTD,2030055907,"38,270"
Department for Work & Pensions,Corporate,20-Jun-13,CONTRACTED OUT OFFICE SERVICES,F&C FIN CONT DEBT CONTROL,IQOR RECOVERY SERVICES LTD,2029979021,"38,171"
Department for Work & Pensions,Housing Benefits,14-Jun-13,HOUSING BENEFIT ADMINISTRATION,HB ENGLAND,EAST NORTHANTS DISTRICT COUNCIL,2029901324,"38,162"
Department for Work & Pensions,Housing Benefits,14-Jun-13,HOUSING BENEFIT ADMINISTRATION,HB WALES,CEREDIGION COUNTY COUNCIL,2029901558,"38,152"
Department for Work & Pensions,Corporate,10-Jun-13,TREDDS IS IT CONSULTANCY (HOSTING) NON ADVICE,CHG SCANNING & DIGITAL STORAGE,HP ENTERPRISE SERVICES UK LTD,2029827045,"38,146"
Department for Work & Pensions,Housing Benefits,14-Jun-13,HOUSING BENEFIT ADMINISTRATION,HB ENGLAND,STAFFORDSHIRE MOORLANDS DISTRICT COUNCIL,2029901550,"38,125"
Department for Work & Pensions,Employment Programmes,28-Jun-13,WP JSA 25+ SUSTAINMENT OUTCOME PAYMENT,WWEG EP NORTH WEST MERS HAL CUMB AND LANCS INGEUS UK,INGEUS UK LTD,2030061092,"38,055"
Department for Work & Pensions,Corporate,19-Jun-13,NEW ENTERPRISE ALLOWANCE MENTOR MATCHING,OPS WDC WSD SE DEVON CORNWALL & SOMERSET DISTRICT,WEST DEVON BUSINESS INFORMATION POINT LTD,2029951721,"37,844"
Department for Work & Pensions,Employment Programmes,04-Jun-13,WP JSA 25+ SUSTAINMENT OUTCOME PAYMENT,WWEG EP EAST OF ENGLAND SEETEC,SEETEC BUSINESS TECHNOLOGY CENTRE LTD,2029751834,"37,840"
Department for Work & Pensions,Housing Benefits,14-Jun-13,HOUSING BENEFIT ADMINISTRATION,HB ENGLAND,TORRIDGE DISTRICT COUNCIL,2029901621,"37,828"
Department for Work & Pensions,Housing Benefits,14-Jun-13,HOUSING BENEFIT ADMINISTRATION,HB ENGLAND,BABERGH DISTRICT COUNCIL,2029901548,"37,666"
Department for Work & Pensions,Corporate,10-Jun-13,TREDDS APPS DEV MANDAYS,CIO NISSA OGD,HP ENTERPRISE SERVICES UK LTD,2029827045,"37,533"
Department for Work & Pensions,Corporate,06-Jun-13,CONSULTANTS VAT RECOVERABLE,CHG UC PROJECT LEDGER CC,COMPASS MANAGEMENT CONSULTING,2029818902,"37,500"
Department for Work & Pensions,Employment Programmes,14-Jun-13,WP JSA 25+ SUSTAINMENT OUTCOME PAYMENT,WWEG EP NORTH EAST INGEUS UK,INGEUS UK LTD,2029903449,"37,410"
Department for Work & Pensions,Employment Programmes,21-Jun-13,WP JSA 25+ SUSTAINMENT OUTCOME PAYMENT,WWEG EP SOUTH EAST TV HANTS AND IOW MAXIMUS EMPLOYMENT,MAXIMUS EMPLOYMENT UK LTD,2029986192,"37,410"
Department for Work & Pensions,Employment Programmes,17-Jun-13,WP JSA 25+ SUSTAINMENT OUTCOME PAYMENT,WWEG EP SOUTH EAST SURR SUSSX AND KENT AVANTA ENTERPRISE,AVANTA ENTERPRISE LTD,2029908291,"37,410"
Department for Work & Pensions,Employment Programmes,07-Jun-13,WP JSA 25+ SUSTAINMENT OUTCOME PAYMENT,WWEG EP WEST YORKSHIRE INGEUS UK,INGEUS UK LTD,2029823251,"37,410"
Department for Work & Pensions,Housing Benefits,14-Jun-13,HOUSING BENEFIT ADMINISTRATION,HB ENGLAND,WOKINGHAM DISTRICT COUNCIL,2029901640,"37,367"
Department for Work & Pensions,Housing Benefits,14-Jun-13,HOUSING BENEFIT ADMINISTRATION,HB ENGLAND,FAREHAM BOROUGH COUNCIL,2029901522,"37,274"
Department for Work & Pensions,Employment Programmes,12-Jun-13,WP JSA 25+ JOB OUTCOME PAYMENTWP JSA 25+ JOB OUTCOME PAYMENT,WWEG EP NORTH WEST GM CHES AND WARR G4S,G4S REGIONAL MANAGEMENT UK & I LTD,2029893423,"37,200"
Department for Work & Pensions,Employment Programmes,05-Jun-13,WP JSA 25+ JOB OUTCOME PAYMENTWP JSA 25+ JOB OUTCOME PAYMENT,WWEG EP EAST MIDLANDS INGEUS UK,INGEUS UK LTD,2029816515,"37,200"
Department for Work & Pensions,Housing Benefits,14-Jun-13,HOUSING BENEFIT ADMINISTRATION,HB ENGLAND,THREE RIVERS DISTRICT COUNCIL,2029901479,"37,106"
Department for Work & Pensions,Housing Benefits,14-Jun-13,HOUSING BENEFIT ADMINISTRATION,HB ENGLAND,MID DEVON DISTRICT COUNCIL,2029901623,"37,040"
Department for Work & Pensions,Corporate,06-Jun-13,PUBLICITY RES'H/EVAL,PSG STRATEGIC COMMS PRESS OFFICE,NLA NEWS PAPER LICENSING AGENCY,2029818643,"36,970"
Department for Work & Pensions,Corporate,27-Jun-13,VALUATION OFFICE,OPS BEN BD NE SPECIAL OPERATIONS,VALUATION OFFICE AGENCY,2030057442,"36,940"
Department for Work & Pensions,Employment Programmes,03-Jun-13,WP JSA 25+ SUSTAINMENT OUTCOME PAYMENT,WWEG EP EAST LONDON CAREERS DEVELOPMENT GROUP,CAREERS DEVELOPMENT GROUP,2029745778,"36,765"
Department for Work & Pensions,Employment Programmes,03-Jun-13,WP JSA 18-24 JOB SUSTAINMENT OUTCOME PAYMENT,WWEG EP SCOTLAND INGEUS UK,INGEUS UK LTD,2029744835,"36,720"
Department for Work & Pensions,Housing Benefits,14-Jun-13,HOUSING BENEFIT ADMINISTRATION,HB ENGLAND,SOUTH LAKELAND DISTRICT COUNCIL,2029901357,"36,658"
Department for Work & Pensions,Employment Programmes,28-Jun-13,WP JSA 25+ SUSTAINMENT OUTCOME PAYMENT,WWEG EP WEST YORKSHIRE INGEUS UK,INGEUS UK LTD,2030061092,"36,550"
Department for Work & Pensions,Employment Programmes,28-Jun-13,WP JSA 25+ JOB OUTCOME PAYMENTWP JSA 25+ JOB OUTCOME PAYMENT,WWEG EP SCOTLAND INGEUS UK,INGEUS UK LTD,2030061092,"36,550"
Department for Work & Pensions,Employment Programmes,28-Jun-13,WP JSA 25+ SUSTAINMENT OUTCOME PAYMENT,WWEG EP WEST LONDON INGEUS UK,INGEUS UK LTD,2030061092,"36,550"
Department for Work & Pensions,Corporate,20-Jun-13,CONTRACTED OUT WINTER FUEL PAYMENTS SERVICES,OPS OPE OIS CENT CONT WFPS,PROMOTIONAL LOGISTICS LTD,2029978957,"36,529"
Department for Work & Pensions,Employment Programmes,05-Jun-13,WP JSA 25+ JOB OUTCOME PAYMENTWP JSA 25+ JOB OUTCOME PAYMENT,WWEG EP EAST LONDON CAREERS DEVELOPMENT GROUP,CAREERS DEVELOPMENT GROUP,2029804113,"36,480"
Department for Work & Pensions,Employment Programmes,12-Jun-13,WP JSA 25+ JOB OUTCOME PAYMENTWP JSA 25+ JOB OUTCOME PAYMENT,WWEG EP EAST LONDON CAREERS DEVELOPMENT GROUP,CAREERS DEVELOPMENT GROUP,2029883560,"36,480"
Department for Work & Pensions,Employment Programmes,21-Jun-13,WP JSA 18-24 JOB SUSTAINMENT OUTCOME PAYMENT,WWEG EP SCOTLAND INGEUS UK,INGEUS UK LTD,2029986790,"36,380"
Department for Work & Pensions,Employment Programmes,04-Jun-13,WP JSA 25+ SUSTAINMENT OUTCOME PAYMENT,WWEG EP EAST LONDON SEETEC,SEETEC BUSINESS TECHNOLOGY CENTRE LTD,2029751834,"36,335"
Department for Work & Pensions,Corporate,10-Jun-13,TREDDS APPS DEV MANDAYS,CHG TRANSFORMING LABOUR MARKET SERVICES,HP ENTERPRISE SERVICES UK LTD,2029827045,"36,331"
Department for Work & Pensions,Housing Benefits,14-Jun-13,HOUSING BENEFIT ADMINISTRATION,HB ENGLAND,RUSHCLIFFE BOROUGH COUNCIL,2029901430,"36,197"
Department for Work & Pensions,Corporate,26-Jun-13,RAPID RESPONSE - PROVIDER TRAINING,OPS WDC WSD NE HULL SOUTH HUMBER EMPLOYERS AND PARTNERS,PERTEMPS,2030032259,"36,135"
Department for Work & Pensions,Corporate,26-Jun-13,NEW ENTERPRISE ALLOWANCE SERVICE FEE TO PROVIDERS (DEL P),OPS WDC WSD DEL PROG REPORTING,THE FIVE LAMPS ORGANISATION,2030052036,"36,099"
Department for Work & Pensions,Corporate,28-Jun-13,NEW ENTERPRISE ALLOWANCE LOAN PAYMENT (DEL CAPITAL),OPS WDC WSD DEL PROG REPORTING,GREATER LONDON ENTERPRISE,2030061301,"36,000"
Department for Work & Pensions,Employment Programmes,18-Jun-13,WP JSA 25+ SUSTAINMENT OUTCOME PAYMENT,WWEG EP EAST LONDON SEETEC,SEETEC BUSINESS TECHNOLOGY CENTRE LTD,2029911545,"35,905"
Department for Work & Pensions,Employment Programmes,19-Jun-13,WP JSA 25+ SUSTAINMENT OUTCOME PAYMENT,WWEG EP EAST OF ENGLAND SEETEC,SEETEC BUSINESS TECHNOLOGY CENTRE LTD,2029930296,"35,905"
Department for Work & Pensions,Corporate,25-Jun-13,STAFF TRAVEL,CHG FRAUD & ERROR STRATEGY,REDFERN TRAVEL LTD,2029991251,"35,744"
Department for Work & Pensions,Housing Benefits,14-Jun-13,HOUSING BENEFIT ADMINISTRATION,HB ENGLAND,EAST CAMBRIDGESHIRE DISTRICT COUNCIL,2029901394,"35,737"
Department for Work & Pensions,Corporate,18-Jun-13,MEDICAL SERVICES FIXED COSTS,OPS CCS MEDICAL SERVICES,ATOS HEALTHCARE,2029910167,"35,718"
Department for Work & Pensions,Corporate,07-Jun-13,TREDDS APPS DEV MANDAYS,CHG BENEFIT CAP,HP ENTERPRISE SERVICES UK LTD,2029825703,"35,685"
Department for Work & Pensions,Housing Benefits,14-Jun-13,HOUSING BENEFIT ADMINISTRATION,HB ENGLAND,FYLDE BOROUGH COUNCIL,2029901354,"35,570"
Department for Work & Pensions,Employment Programmes,04-Jun-13,ACCESS TO WORK - PAYMENT FOR SUPPORT WORKERS,WWEG EP LONDON REGION,REMARK,2029750230,"35,521"
Department for Work & Pensions,Employment Programmes,21-Jun-13,WP JSA 25+ SUSTAINMENT OUTCOME PAYMENT,WWEG EP W MIDLANDS BIRM SOL BC FOURSTAR EMP AND SKILLS,EOS WORKS LTD,2029986247,"35,475"
Department for Work & Pensions,Housing Benefits,14-Jun-13,HOUSING BENEFIT ADMINISTRATION,HB ENGLAND,HAMBLETON DISTRICT COUNCIL,2029901320,"35,436"
Department for Work & Pensions,Employment Programmes,18-Jun-13,WP JSA 25+ JOB OUTCOME PAYMENTWP JSA 25+ JOB OUTCOME PAYMENT,WWEG EP SOUTH EAST SURR SUSSX AND KENT AVANTA ENTERPRISE,AVANTA ENTERPRISE LTD,2029911736,"35,340"
Department for Work & Pensions,Corporate,26-Jun-13,STAFF TRAINING VAT RECOVERABLE,HR CONTRACTUAL L AND D,CAPITA CIVIL SERVICE LEARNING,2030033486,"35,323"
Department for Work & Pensions,Employment Programmes,07-Jun-13,WP JSA 25+ SUSTAINMENT OUTCOME PAYMENT,WWEG EP NORTH WEST MERS HAL CUMB AND LANCS INGEUS UK,INGEUS UK LTD,2029823251,"35,260"
Department for Work & Pensions,Housing Benefits,14-Jun-13,HOUSING BENEFIT ADMINISTRATION,HB ENGLAND,RUNNYMEDE BOROUGH COUNCIL,2029901460,"35,225"
Department for Work & Pensions,Child Maintenance and Enforcement Commission,14-Jun-13,TREDDS APPS DEV MANDAYS,NEW SCHEME HOSTING - DEVELOPMENT,HP ENTERPRISE SERVICES UK LTD,1000180433,"35,213"
Department for Work & Pensions,Child Maintenance and Enforcement Commission,13-Jun-13,PRIME UTILITIES,PRIME,DEPARTMENT FOR WORK & PENSIONS,2000954,"35,104"
Department for Work & Pensions,Housing Benefits,14-Jun-13,HOUSING BENEFIT ADMINISTRATION,HB ENGLAND,COTSWOLD DISTRICT COUNCIL,2029901469,"35,098"
Department for Work & Pensions,Housing Benefits,14-Jun-13,HOUSING BENEFIT ADMINISTRATION,HB ENGLAND,SOUTH DERBYSHIRE DISTRICT COUNCIL,2029901554,"34,965"
Department for Work & Pensions,Employment Programmes,21-Jun-13,WP JSA 25+ SUSTAINMENT OUTCOME PAYMENT,WWEG EP WEST LONDON INGEUS UK,INGEUS UK LTD,2029986790,"34,830"
Department for Work & Pensions,Employment Programmes,05-Jun-13,WP JSA 25+ JOB OUTCOME PAYMENTWP JSA 25+ JOB OUTCOME PAYMENT,WWEG EP EAST OF ENGLAND INGEUS UK,INGEUS UK LTD,2029816515,"34,800"
Department for Work & Pensions,Housing Benefits,14-Jun-13,HOUSING BENEFIT ADMINISTRATION,HB ENGLAND,TEWKESBURY BOROUGH COUNCIL,2029901543,"34,702"
Department for Work & Pensions,Employment Programmes,17-Jun-13,WP JSA 25+ SUSTAINMENT OUTCOME PAYMENT,WWEG EP SCOTLAND WORKING LINKS,WORKING LINKS,2029908388,"34,615"
Department for Work & Pensions,Employment Programmes,06-Jun-13,WP JSA 25+ SUSTAINMENT OUTCOME PAYMENT,WWEG EP EAST LONDON CAREERS DEVELOPMENT GROUP,CAREERS DEVELOPMENT GROUP,2029818685,"34,615"
Department for Work & Pensions,Corporate,04-Jun-13,TREDDS APPS DEV FIXED PRICE CONTRACTS,CHG ELECTRONIC SIGNING,HP ENTERPRISE SERVICES UK LTD,2029752852,"34,585"
Department for Work & Pensions,Employment Programmes,03-Jun-13,WP JSA 18-24 JOB SUSTAINMENT OUTCOME PAYMENT,WWEG EP EAST MIDLANDS INGEUS UK,INGEUS UK LTD,2029744835,"34,510"
Department for Work & Pensions,Employment Programmes,07-Jun-13,WP JSA 25+ SUSTAINMENT OUTCOME PAYMENT,WWEG EP NORTH EAST INGEUS UK,INGEUS UK LTD,2029823251,"34,400"
Department for Work & Pensions,Corporate,18-Jun-13,FSF - SUPPORT CONTRACT MODULES FOR JSA JOBSEEKERS,OPS WDC WSD CE BLACK COUNTRY DISTRICT OFFICE,A4E LTD,2029912867,"34,120"
Department for Work & Pensions,Child Maintenance and Enforcement Commission,04-Jun-13,CONTRACTORS & STAFF SUBSTITUTIONS,NEW SCHEME PROJECT RESOURCE RECHARGE,CAPITA RESOURCING LTD,1000179191,"34,035"
Department for Work & Pensions,Corporate,17-Jun-13,FSF - PARTNERSHIP GRANTS - TO HELP JSA CLIENTS INTO WORK,OPS WDC WSD SE GREATER WESSEX DISTRICT OFFICE,SOUTHAMPTON CITY COUNCIL,2029906618,"34,000"
Department for Work & Pensions,Employment Programmes,21-Jun-13,WP JSA 25+ SUSTAINMENT OUTCOME PAYMENT,WWEG EP SOUTH EAST SURR SUSSX AND KENT G4S,G4S REGIONAL MANAGEMENT UK & I LTD,2029984326,"33,970"
Department for Work & Pensions,Employment Programmes,07-Jun-13,WP JSA 25+ SUSTAINMENT OUTCOME PAYMENT,WWEG EP WEST LONDON INGEUS UK,INGEUS UK LTD,2029823251,"33,970"
Department for Work & Pensions,Corporate,25-Jun-13,NON-TREDDS IS IT SERVICES (HOSTING),CIO ITLR HOSTING,HMRC,2029989768,"33,967"
Department for Work & Pensions,Corporate,14-Jun-13,NEW ENTERPRISE ALLOWANCE MENTOR MATCHING,OPS WDC WSD LN ESSEX DISTRICT OFFICE,IXION HOLDINGS LTD,2029903155,"33,900"
Department for Work & Pensions,Corporate,07-Jun-13,TREDDS APPS DEV MANDAYS,OPS OPE IT REL - ISCS,HP ENTERPRISE SERVICES UK LTD,2029825703,"33,756"
Department for Work & Pensions,Employment Programmes,07-Jun-13,WP JSA 25+ SUSTAINMENT OUTCOME PAYMENT,WWEG EP EAST OF ENGLAND SEETEC,SEETEC BUSINESS TECHNOLOGY CENTRE LTD,2029826311,"33,755"
Department for Work & Pensions,Employment Programmes,04-Jun-13,WP JSA 25+ JOB OUTCOME PAYMENTWP JSA 25+ JOB OUTCOME PAYMENT,WWEG EP SCOTLAND WORKING LINKS,WORKING LINKS,2029750934,"33,600"
Department for Work & Pensions,Employment Programmes,06-Jun-13,WP JSA 25+ JOB OUTCOME PAYMENTWP JSA 25+ JOB OUTCOME PAYMENT,WWEG EP SOUTH EAST SURR SUSSX AND KENT G4S,G4S REGIONAL MANAGEMENT UK & I LTD,2029819487,"33,600"
Department for Work & Pensions,Housing Benefits,14-Jun-13,HOUSING BENEFIT ADMINISTRATION,HB ENGLAND,EAST DORSET DISTRICT COUNCIL,2029901537,"33,596"
Department for Work & Pensions,Child Maintenance and Enforcement Commission,07-Jun-13,CONTRACTORS & STAFF SUBSTITUTIONS,NEW SCHEME PROJECT RESOURCE RECHARGE,CAPITA RESOURCING LTD,1000179645,"33,559"
Department for Work & Pensions,Employment Programmes,04-Jun-13,WP JSA 25+ SUSTAINMENT OUTCOME PAYMENT,WWEG EP NORTH EAST AVANTA ENTERPRISE,AVANTA ENTERPRISE LTD,2029749800,"33,540"
Department for Work & Pensions,Employment Programmes,03-Jun-13,WP JSA CLAIMING 22 OF 24MTHS SUSTAINMENT OUTCOME PAYMENT,WWEG EP EAST MIDLANDS A4E,A4E LTD,2029745821,"33,500"
Department for Work & Pensions,Housing Benefits,14-Jun-13,HOUSING BENEFIT ADMINISTRATION,HB ENGLAND,SELBY DISTRICT COUNCIL,2029901695,"33,303"
Department for Work & Pensions,Housing Benefits,14-Jun-13,HOUSING BENEFIT ADMINISTRATION,HB SCOTLAND,CLACKMANNANSHIRE COUNCIL,2029901693,"33,249"
Department for Work & Pensions,Corporate,28-Jun-13,PRIME BUSINESS RATES,F&C CD SHEFFIELD KINGS COURT,TELEREAL TRILLIUM,2030061229,"33,005"
Department for Work & Pensions,Housing Benefits,14-Jun-13,HOUSING BENEFIT ADMINISTRATION,HB ENGLAND,BLABY DISTRICT COUNCIL,2029901403,"32,922"
Department for Work & Pensions,Corporate,06-Jun-13,CONTRACTORS & STAFF SUBSTITUTIONS,CHG UC PROJECT LEDGER CC,CAPITA RESOURCING LTD,2029817593,"32,820"
Department for Work & Pensions,Employment Programmes,18-Jun-13,ACCESS TO WORK - PAYMENT FOR SUPPORT WORKERS,WWEG EP LONDON REGION,GENERATE,2029912406,"32,728"
Department for Work & Pensions,Employment Programmes,19-Jun-13,RESIDENTIAL TRAINING COSTS,WWEG EP DELIVERY WELFARE TO WORK PRODUCT SUPPORT,RNIB ROYAL NATIONAL INSTITUTE FOR THE BLIND,2029918498,"32,694"
Department for Work & Pensions,Employment Programmes,05-Jun-13,WP JSA 25+ SUSTAINMENT OUTCOME PAYMENT,WWEG EP EAST LONDON SEETEC,SEETEC BUSINESS TECHNOLOGY CENTRE LTD,2029790853,"32,680"
Department for Work & Pensions,Corporate,21-Jun-13,FSF - SUPPORT CONTRACT MODULES FOR JSA JOBSEEKERS,OPS WDC WSD SC WEST OF SCOTLAND DO,JHP GROUP LTD,2029986408,"32,623"
Department for Work & Pensions,Employment Programmes,03-Jun-13,WP JSA 25+ JOB OUTCOME PAYMENTWP JSA 25+ JOB OUTCOME PAYMENT,WWEG EP WEST LONDON INGEUS UK,INGEUS UK LTD,2029744835,"32,400"
Department for Work & Pensions,Housing Benefits,14-Jun-13,HOUSING BENEFIT ADMINISTRATION,HB ENGLAND,BROMSGROVE DISTRICT COUNCIL,2029901501,"32,335"
Department for Work & Pensions,Employment Programmes,28-Jun-13,INNOVATION FUND,WWEG EP NATIONAL,ENERGISE INNOVATION LTD,2030061599,"32,310"
Department for Work & Pensions,Corporate,06-Jun-13,NON-TREDDS IS IT APPS DEV MANDAY,CHG DELIVERING THE IRIS ORGANISATION,CAPGEMINI UK PLC,2029818169,"32,273"
Department for Work & Pensions,Employment Programmes,17-Jun-13,WP JSA 25+ SUSTAINMENT OUTCOME PAYMENT,WWEG EP WEST LONDON REED IN PARTNERSHIP,REED IN PARTNERSHIP LTD,2029908068,"32,250"
Department for Work & Pensions,Housing Benefits,14-Jun-13,HOUSING BENEFIT ADMINISTRATION,HB ENGLAND,MALVERN HILLS DISTRICT COUNCIL,2029901382,"32,192"
Department for Work & Pensions,Employment Programmes,06-Jun-13,WP JSA 25+ JOB OUTCOME PAYMENTWP JSA 25+ JOB OUTCOME PAYMENT,WWEG EP SOUTH EAST TV HANTS AND IOW MAXIMUS EMPLOYMENT,MAXIMUS EMPLOYMENT UK LTD,2029819150,"32,190"
Department for Work & Pensions,Corporate,18-Jun-13,CONTRACTED OUT OFFICE SERVICES,F&C FIN CONT DEBT CONTROL,CREDIT SOLUTIONS LTD,2029910308,"32,107"
Department for Work & Pensions,Employment Programmes,07-Jun-13,WP JSA 25+ SUSTAINMENT OUTCOME PAYMENT,WWEG EP EAST LONDON SEETEC,SEETEC BUSINESS TECHNOLOGY CENTRE LTD,2029826311,"32,035"
Department for Work & Pensions,Employment Programmes,21-Jun-13,WP JSA CLAIMING 22 OF 24MTHS SUSTAINMENT OUTCOME PAYMENT,WWEG EP W MIDLANDS BIRM SOL BC FOURSTAR EMP AND SKILLS,EOS WORKS LTD,2029986247,"32,000"
Department for Work & Pensions,Housing Benefits,14-Jun-13,HOUSING BENEFIT ADMINISTRATION,HB ENGLAND,MID SUFFOLK DISTRICT COUNCIL,2029901528,"31,976"
Department for Work & Pensions,Corporate,19-Jun-13,ACCOUNTS PAYABLE UNAPPROVED INVOICES,OPS WDC WSD NE NORTHUMBRIA TYNE AND WEAR DISTRICT OFFICE,NORTH TYNESIDE COUNCIL,2029976775,"31,916"
Department for Work & Pensions,Employment Programmes,13-Jun-13,FSF - TRAINING PAYMENTS TO PROVIDERS - JSA JOBSEEKERS,WWEG EP WALES COUNTRY,WORKING LINKS,2029898317,"31,852"
Department for Work & Pensions,Employment Programmes,19-Jun-13,WP JSA 25+ SUSTAINMENT OUTCOME PAYMENT,WWEG EP NORTH WEST GM CHES AND WARR SEETEC,SEETEC BUSINESS TECHNOLOGY CENTRE LTD,2029930296,"31,820"
Department for Work & Pensions,Employment Programmes,12-Jun-13,WP JSA 25+ SUSTAINMENT OUTCOME PAYMENT,WWEG EP WEST YORKSHIRE BEST LTD,INTERSERVE WORKING FUTURES,2029864126,"31,820"
Department for Work & Pensions,Corporate,05-Jun-13,DEPARTMENTAL SUBSCRIPTIONS,STR PRIVATE PENS DIRECTOR AND SUPPORT,PENDRAGON,2029814217,"31,800"
Department for Work & Pensions,Corporate,06-Jun-13,PROFESSIONAL SERVICES NON VAT RECOVERABLE,PSG LEGAL SERVICES LITIGATION & EMPLOYMENT,FIELD FISHER WATERHOUSE LLP,2029818507,"31,699"
Department for Work & Pensions,Corporate,04-Jun-13,FSF - SUPPORT CONTRACT MODULES FOR JSA JOBSEEKERS,OPS WDC WSD LN NORTH LONDON DISTRICT OFFICE,A4E LTD,2029751717,"31,588"
Department for Work & Pensions,Employment Programmes,28-Jun-13,OUTCOME FEE,WWEG EP WORK CHOICE DEVON AND CORNWALL,THE PLUSS ORGANISATION,2030061178,"31,561"
Department for Work & Pensions,Housing Benefits,14-Jun-13,HOUSING BENEFIT ADMINISTRATION,HB ENGLAND,ADUR DISTRICT COUNCIL,2029901419,"31,515"
Department for Work & Pensions,Corporate,05-Jun-13,SOC SEC RESEARCH BUDGET,PSG ANALYSIS CAD,TNS BMRB,2029802836,"31,500"
Department for Work & Pensions,Corporate,20-Jun-13,NEW ENTERPRISE ALLOWANCE SERVICE FEE TO PROVIDERS (DEL P),OPS WDC WSD DEL PROG REPORTING,CDFA,2029979261,"31,488"
Department for Work & Pensions,Housing Benefits,14-Jun-13,HOUSING BENEFIT ADMINISTRATION,HB ENGLAND,ROCHFORD DISTRICT COUNCIL,2029901547,"31,486"
Department for Work & Pensions,Corporate,17-Jun-13,POSTAGE,F&C CD NEWCASTLE ESTATE,G3 WORLDWIDE MAIL UK LTD,2029907555,"31,482"
Department for Work & Pensions,Employment Programmes,07-Jun-13,WP JSA 25+ SUSTAINMENT OUTCOME PAYMENT,WWEG EP EAST MIDLANDS A4E,A4E LTD,2029822921,"31,390"
Department for Work & Pensions,Corporate,28-Jun-13,CONTRACTORS & STAFF SUBSTITUTIONS,CHG UC PROJECT LEDGER CC,CAPITA RESOURCING LTD,2030061082,"31,308"
Department for Work & Pensions,Employment Programmes,18-Jun-13,RESIDENTIAL TRAINING COSTS,WWEG EP DELIVERY WELFARE TO WORK PRODUCT SUPPORT,ENHAM,2029912689,"31,257"
Department for Work & Pensions,Employment Programmes,03-Jun-13,WP JSA 25+ JOB OUTCOME PAYMENTWP JSA 25+ JOB OUTCOME PAYMENT,WWEG EP SCOTLAND WORKING LINKS,WORKING LINKS,2029744837,"31,200"
Department for Work & Pensions,Employment Programmes,28-Jun-13,WP JSA 25+ SUSTAINMENT OUTCOME PAYMENT,WWEG EP SCOTLAND WORKING LINKS,WORKING LINKS,2030061096,"31,175"
Department for Work & Pensions,Employment Programmes,12-Jun-13,SERVICE FEE,WWEG EP SUPPORT GLASGOW,REED IN PARTNERSHIP LTD,2029852354,"31,164"
Department for Work & Pensions,Employment Programmes,14-Jun-13,WP JSA 18-24 JOB SUSTAINMENT OUTCOME PAYMENT,WWEG EP EAST MIDLANDS INGEUS UK,INGEUS UK LTD,2029903449,"31,110"
Department for Work & Pensions,Child Maintenance and Enforcement Commission,14-Jun-13,TREDDS APPS DEV MANDAYS,MI PROJECT WAREHOUSE,HP ENTERPRISE SERVICES UK LTD,1000180433,"31,052"
Department for Work & Pensions,Housing Benefits,14-Jun-13,HOUSING BENEFIT ADMINISTRATION,HB ENGLAND,FOREST HEATH DISTRICT COUNCIL,2029901530,"30,974"
Department for Work & Pensions,Employment Programmes,17-Jun-13,WP JSA 25+ SUSTAINMENT OUTCOME PAYMENT,WWEG EP NORTH WEST GM CHES AND WARR AVANTA ENTERPRISE,AVANTA ENTERPRISE LTD,2029908291,"30,960"
Department for Work & Pensions,Corporate,25-Jun-13,CONTRACTED OUT OFFICE SERVICES,F&C FIN CONT DEBT CONTROL,DRYDENS FAIRFAX SOLICITORS,2029994335,"30,880"
Department for Work & Pensions,Corporate,27-Jun-13,Inter DWP debtor - Payments to Foreign bank accounts,BALANCE SHEET,A COOK,2030056740,"30,819"
Department for Work & Pensions,Employment Programmes,17-Jun-13,WP JSA 25+ SUSTAINMENT OUTCOME PAYMENT,WWEG EP WEST LONDON MAXIMUS EMPLOYMENT UK,MAXIMUS EMPLOYMENT UK LTD,2029907617,"30,745"
Department for Work & Pensions,Employment Programmes,06-Jun-13,WP JSA 25+ SUSTAINMENT OUTCOME PAYMENT,WWEG EP S WEST DEV COR DOR AND SOM PROSPECTS SERVICES,PROSPECTS SERVICES LTD,2029818435,"30,745"
Department for Work & Pensions,Corporate,13-Jun-13,VOCA Charges,F&C FIN CONT COBAP BANKING,VOCALINK,2029898023,"30,715"
Department for Work & Pensions,Corporate,10-Jun-13,AGENCY PAYMENTS TO LOCAL AUTHORITIES,CHG UC PATHFINDER DELIVERY MANAGEMENT,OLDHAM MBC,2029826777,"30,546"
Department for Work & Pensions,Employment Programmes,24-Jun-13,WP JSA 25+ SUSTAINMENT OUTCOME PAYMENT,WWEG EP EAST LONDON CAREERS DEVELOPMENT GROUP,CAREERS DEVELOPMENT GROUP,2029988458,"30,530"
Department for Work & Pensions,Employment Programmes,05-Jun-13,WP JSA 18-24 JOB SUSTAINMENT OUTCOME PAYMENT,WWEG EP NORTH WEST GM CHES AND WARR AVANTA ENTERPRISE,AVANTA ENTERPRISE LTD,2029799280,"30,430"
Department for Work & Pensions,Corporate,14-Jun-13,FSF - SUPPORT CONTRACT MODULES FOR JSA JOBSEEKERS,OPS WDC WSD LN KENT DISTRICT OFFICE,PINNACLE PEOPLE,2029904923,"30,421"
Department for Work & Pensions,Housing Benefits,14-Jun-13,HOUSING BENEFIT ADMINISTRATION,HB ENGLAND,TANDRIDGE DISTRICT COUNCIL,2029901576,"30,380"
Department for Work & Pensions,Corporate,14-Jun-13,PUBLICITY TRANS/ALT,OPS PEN PS INTERNATIONAL FUTURE AND SPECIALIST PC,XEROX UK LTD 3W,2029905075,"30,357"
Department for Work & Pensions,Corporate,25-Jun-13,FSF - TRAINING PAYMENTS TO PROVIDERS - JSA JOBSEEKERS,OPS WDC WSD LN EAST LONDON DISTRICT OFFICE,SEETEC BUSINESS TECHNOLOGY CENTRE LTD,2029990367,"30,225"
Department for Work & Pensions,Corporate,20-Jun-13,STAFF TRAINING VAT RECOVERABLE,HR CONTRACTUAL L AND D,ELISHA TRAINING LTD,2029981354,"30,135"
Department for Work & Pensions,Housing Benefits,14-Jun-13,HOUSING BENEFIT ADMINISTRATION,HB ENGLAND,CHILTERN DISTRICT COUNCIL,2029901465,"30,120"
Department for Work & Pensions,Employment Programmes,14-Jun-13,WP JSA 25+ SUSTAINMENT OUTCOME PAYMENT,WWEG EP SCOTLAND WORKING LINKS,WORKING LINKS,2029903452,"30,100"
Department for Work & Pensions,Corporate,11-Jun-13,AGENCY PAYMENTS TO LOCAL AUTHORITIES,CHG UC PATHFINDER DELIVERY MANAGEMENT,CAERPHILLY COUNTY BOROUGH COUNCIL,2029836556,"30,010"
Department for Work & Pensions,Employment Programmes,28-Jun-13,WP JSA 25+ JOB OUTCOME PAYMENTWP JSA 25+ JOB OUTCOME PAYMENT,WWEG EP EAST MIDLANDS INGEUS UK,INGEUS UK LTD,2030061092,"30,000"
Department for Work & Pensions,Corporate,14-Jun-13,SOC SEC RESEARCH BUDGET,PSG ANALYSIS CAD,WARWICK INSTITUTE FOR EMPLOYMENT RESEARCH,2029903179,"30,000"
Department for Work & Pensions,Corporate,11-Jun-13,BANK COMMISSION & CHARGES,F&C FIN CONT COBAP BANKING,CITIBANK GLOBAL CORPORATE BANKING,2029835823,"30,000"
Department for Work & Pensions,Corporate,19-Jun-13,FSF - PARTNERSHIP GRANTS - TO HELP JSA CLIENTS INTO WORK,OPS WDC WSD SE DEVON CORNWALL & SOMERSET DISTRICT,CORNWALL COUNCIL,2029941146,"30,000"
Department for Work & Pensions,Corporate,28-Jun-13,NEW ENTERPRISE ALLOWANCE LOAN PAYMENT (DEL CAPITAL),OPS WDC WSD DEL PROG REPORTING,EAST LANCS MONEYLINE,2030061608,"30,000"
Department for Work & Pensions,Employment Programmes,03-Jun-13,WP JSA 25+ JOB OUTCOME PAYMENTWP JSA 25+ JOB OUTCOME PAYMENT,WWEG EP S WEST DEV COR DOR AND SOM WORKING LINKS,WORKING LINKS,2029744837,"30,000"
Department for Work & Pensions,Housing Benefits,14-Jun-13,HOUSING BENEFIT ADMINISTRATION,HB ENGLAND,DAVENTRY DISTRICT COUNCIL,2029901342,"29,968"
Department for Work & Pensions,Employment Programmes,03-Jun-13,WP JSA 18-24 JOB SUSTAINMENT OUTCOME PAYMENT,WWEG EP NORTH WEST MERS HAL CUMB AND LANCS INGEUS UK,INGEUS UK LTD,2029744835,"29,920"
Department for Work & Pensions,Employment Programmes,27-Jun-13,WP JSA 25+ SUSTAINMENT OUTCOME PAYMENT,WWEG EP NORTH EAST AVANTA ENTERPRISE,AVANTA ENTERPRISE LTD,2030057419,"29,885"
Department for Work & Pensions,Employment Programmes,06-Jun-13,WP JSA 25+ SUSTAINMENT OUTCOME PAYMENT,WWEG EP SOUTH EAST TV HANTS AND IOW MAXIMUS EMPLOYMENT,MAXIMUS EMPLOYMENT UK LTD,2029819150,"29,885"
Department for Work & Pensions,Housing Benefits,14-Jun-13,HOUSING BENEFIT ADMINISTRATION,HB ENGLAND,MOLE VALLEY DISTRICT COUNCIL,2029901462,"29,868"
Department for Work & Pensions,Housing Benefits,14-Jun-13,HOUSING BENEFIT ADMINISTRATION,HB ENGLAND,NORTH WARWICKSHIRE DISTRICT COUNCIL,2029901440,"29,767"
Department for Work & Pensions,Employment Programmes,21-Jun-13,WP JSA 25+ SUSTAINMENT OUTCOME PAYMENT,WWEG EP SCOTLAND WORKING LINKS,WORKING LINKS,2029986337,"29,670"
Department for Work & Pensions,Employment Programmes,06-Jun-13,WP JSA 25+ JOB OUTCOME PAYMENTWP JSA 25+ JOB OUTCOME PAYMENT,WWEG EP NORTH EAST AVANTA ENTERPRISE,AVANTA ENTERPRISE LTD,2029821412,"29,640"
Department for Work & Pensions,Corporate,07-Jun-13,NON PRIME PROPERTY COSTS,CHG UC BUSINESS & IT SOLUTIONS,HP ENTERPRISE SERVICES UK LTD,2029825703,"29,511"
Department for Work & Pensions,Corporate,17-Jun-13,FSF - PARTNERSHIP GRANTS - TO HELP JSA CLIENTS INTO WORK,OPS WDC WSD SE GREATER WESSEX DISTRICT OFFICE,WILTSHIRE COUNCIL,2029909546,"29,400"
Department for Work & Pensions,Child Maintenance and Enforcement Commission,27-Jun-13,OVERTIME,CLIENT SERVICE AREA MANAGEMENT OFFICE,DSD GROUP ACCOUNT,1001360,"29,357"
Department for Work & Pensions,Corporate,13-Jun-13,SOFTWARE LICENCES,STR SOCIAL JUSTICE DIRECTOR AND SUPPORT - DEL A,SPECIALIST COMPUTER CENTRES PLC,2029900597,"29,300"
Department for Work & Pensions,Employment Programmes,03-Jun-13,WP JSA 18-24 JOB SUSTAINMENT OUTCOME PAYMENT,WWEG EP EAST OF ENGLAND INGEUS UK,INGEUS UK LTD,2029744835,"29,240"
Department for Work & Pensions,Employment Programmes,07-Jun-13,WP JSA 18-24 JOB SUSTAINMENT OUTCOME PAYMENT,WWEG EP SCOTLAND INGEUS UK,INGEUS UK LTD,2029823251,"29,240"
Department for Work & Pensions,Employment Programmes,10-Jun-13,WP JSA 25+ SUSTAINMENT OUTCOME PAYMENT,WWEG EP NORTH WEST GM CHES AND WARR AVANTA ENTERPRISE,AVANTA ENTERPRISE LTD,2029829929,"29,240"
Department for Work & Pensions,Employment Programmes,21-Jun-13,WP JSA 18-24 JOB SUSTAINMENT OUTCOME PAYMENT,WWEG EP NORTH EAST INGEUS UK,INGEUS UK LTD,2029986790,"29,070"
Department for Work & Pensions,Corporate,28-Jun-13,TREDDS APPS DEV MANDAYS,CHG CP BENEFIT ENQUIRY SERVICE ONLINE,HP ENTERPRISE SERVICES UK LTD,2030061469,"29,049"
Department for Work & Pensions,Employment Programmes,28-Jun-13,WP JSA 25+ SUSTAINMENT OUTCOME PAYMENT,WWEG EP NORTH EAST AVANTA ENTERPRISE,AVANTA ENTERPRISE LTD,2030061172,"29,025"
Department for Work & Pensions,Employment Programmes,13-Jun-13,WP JSA CLAIMING 22 OF 24MTHS SUSTAINMENT OUTCOME PAYMENT,WWEG EP EAST LONDON CAREERS DEVELOPMENT GROUP,CAREERS DEVELOPMENT GROUP,2029901158,"29,000"
Department for Work & Pensions,Corporate,07-Jun-13,TREDDS APPS DEV MANDAYS,CHG CONTRACTED EMPLOYMENT PROG MI,DWP,2029824970,"28,868"
Department for Work & Pensions,Corporate,17-Jun-13,FSF - TRAINING PAYMENTS TO PROVIDERS - JSA JOBSEEKERS,OPS WDC WSD SC EAST AND SOUTH EAST SCOTLAND DO,INGEUS UK LTD,2029908134,"28,800"
Department for Work & Pensions,Employment Programmes,03-Jun-13,WP JSA 25+ JOB OUTCOME PAYMENTWP JSA 25+ JOB OUTCOME PAYMENT,WWEG EP WEST YORKSHIRE INGEUS UK,INGEUS UK LTD,2029744835,"28,800"
Department for Work & Pensions,Employment Programmes,20-Jun-13,WP JSA 25+ JOB OUTCOME PAYMENTWP JSA 25+ JOB OUTCOME PAYMENT,WWEG EP SOUTH EAST SURR SUSSX AND KENT G4S,G4S REGIONAL MANAGEMENT UK & I LTD,2029978983,"28,800"
Department for Work & Pensions,Employment Programmes,03-Jun-13,WP JSA NEET SUSTAINMENT OUTCOME PAYMENT,WWEG EP NORTH WEST GM CHES AND WARR G4S,G4S REGIONAL MANAGEMENT UK & I LTD,2029748439,"28,750"
Department for Work & Pensions,Employment Programmes,14-Jun-13,WP JSA 18-24 JOB SUSTAINMENT OUTCOME PAYMENT,WWEG EP EAST OF ENGLAND INGEUS UK,INGEUS UK LTD,2029903449,"28,730"
Department for Work & Pensions,Housing Benefits,14-Jun-13,HOUSING BENEFIT ADMINISTRATION,HB ENGLAND,NORTH DORSET DISTRICT COUNCIL,2029901596,"28,644"
Department for Work & Pensions,Employment Programmes,26-Jun-13,WP JSA 25+ SUSTAINMENT OUTCOME PAYMENT,WWEG EP WEST YORKSHIRE BEST LTD,INTERSERVE WORKING FUTURES,2030037506,"28,595"
Department for Work & Pensions,Employment Programmes,25-Jun-13,WP JSA 25+ SUSTAINMENT OUTCOME PAYMENT,WWEG EP SCOTLAND WORKING LINKS,WORKING LINKS,2029991354,"28,595"
Department for Work & Pensions,Corporate,26-Jun-13,NEW ENTERPRISE ALLOWANCE MENTOR MATCHING,OPS WDC WSD CE LEICESTERSHIRE AND NORTHAMPTONSHIRE DO,PINNACLE PEOPLE,2030050365,"28,550"
Department for Work & Pensions,Corporate,28-Jun-13,PRIME FACILITY PRICE,F&C CD NOTTINGHAM EQUINOX HOUSE DEL A,TELEREAL TRILLIUM,2030061230,"28,530"
Department for Work & Pensions,Employment Programmes,21-Jun-13,WP JSA CLAIMING 22 OF 24MTHS SUSTAINMENT OUTCOME PAYMENT,WWEG EP SOUTH EAST SURR SUSSX AND KENT G4S,G4S REGIONAL MANAGEMENT UK & I LTD,2029984326,"28,500"
Department for Work & Pensions,Corporate,21-Jun-13,CONTRACTORS & STAFF SUBSTITUTIONS,CHG IT TRANSFORMATION PROG,CAPITA RESOURCING LTD,2029983441,"28,468"
Department for Work & Pensions,Employment Programmes,21-Jun-13,WP JSA 18-24 JOB SUSTAINMENT OUTCOME PAYMENT,WWEG EP EAST MIDLANDS A4E,A4E LTD,2029986046,"28,390"
Department for Work & Pensions,Employment Programmes,14-Jun-13,WP JSA 25+ SUSTAINMENT OUTCOME PAYMENT,WWEG EP EAST MIDLANDS A4E,A4E LTD,2029904436,"28,380"
Department for Work & Pensions,Corporate,19-Jun-13,DESKTOP SERVICES,CIO ITLR DESKTOP,HP ENTERPRISE SERVICES UK LTD,2029945247,"28,357"
Department for Work & Pensions,Housing Benefits,14-Jun-13,HOUSING BENEFIT ADMINISTRATION,HB ENGLAND,BRENTWOOD DISTRICT COUNCIL,2029901567,"28,277"
Department for Work & Pensions,Employment Programmes,05-Jun-13,WP JSA 25+ SUSTAINMENT OUTCOME PAYMENT,WWEG EP NORTH WEST GM CHES AND WARR SEETEC,SEETEC BUSINESS TECHNOLOGY CENTRE LTD,2029790853,"28,165"
Department for Work & Pensions,Housing Benefits,14-Jun-13,HOUSING BENEFIT ADMINISTRATION,HB ENGLAND,SURREY HEATH BOROUGH COUNCIL,2029901442,"28,137"
Department for Work & Pensions,Housing Benefits,14-Jun-13,HOUSING BENEFIT ADMINISTRATION,HB SCOTLAND,EAST RENFREWSHIRE COUNCIL,2029901635,"28,110"
Department for Work & Pensions,Corporate,10-Jun-13,OFFICE EQUIPMENT - CURRENT,OPS OPE FS DISCRETE BUGET CONTROL,SONIC COMMUNICATIONS INT LTD,2029830029,"28,080"
Department for Work & Pensions,Employment Programmes,11-Jun-13,WP JSA 25+ SUSTAINMENT OUTCOME PAYMENT,WWEG EP NORTH EAST AVANTA ENTERPRISE,AVANTA ENTERPRISE LTD,2029831653,"27,950"
Department for Work & Pensions,Employment Programmes,05-Jun-13,WP JSA 25+ JOB OUTCOME PAYMENTWP JSA 25+ JOB OUTCOME PAYMENT,WWEG EP SCOTLAND INGEUS UK,INGEUS UK LTD,2029816515,"27,950"
Department for Work & Pensions,Employment Programmes,17-Jun-13,WP JSA 25+ SUSTAINMENT OUTCOME PAYMENT,WWEG EP SOUTH EAST TV HANTS AND IOW MAXIMUS EMPLOYMENT,MAXIMUS EMPLOYMENT UK LTD,2029907617,"27,950"
Department for Work & Pensions,Corporate,10-Jun-13,FSF - PARTNERSHIP GRANTS - TO HELP JSA CLIENTS INTO WORK,OPS WDC WSD CE EMPLOYER AND PARTNERSHIPS STAFFS & SHROPS,NORTH STAFFORDSHIRE CHAMBER OF COMMERCE & INDUSTRY,2029826701,"27,823"
Department for Work & Pensions,Corporate,13-Jun-13,TREDDS IS IT CONSULTANCY (HOSTING) NON ADVICE,CHG TRANSFORMING LABOUR MARKET SERVICES,HP ENTERPRISE SERVICES UK LTD,2029900669,"27,664"
Department for Work & Pensions,Employment Programmes,26-Jun-13,INNOVATION FUND,WWEG EP NATIONAL,INDIGO PROJECT SOLUTIONS LTD,2030053440,"27,650"
Department for Work & Pensions,Employment Programmes,19-Jun-13,WP JSA 25+ JOB OUTCOME PAYMENTWP JSA 25+ JOB OUTCOME PAYMENT,WWEG EP NORTH WEST GM CHES AND WARR G4S,G4S REGIONAL MANAGEMENT UK & I LTD,2029975688,"27,600"
Department for Work & Pensions,Employment Programmes,06-Jun-13,WP JSA 18-24 JOB OUTCOME PAYMENT,WWEG EP SCOTLAND WORKING LINKS,WORKING LINKS,2029818226,"27,600"
Department for Work & Pensions,Employment Programmes,04-Jun-13,WP JSA 25+ JOB OUTCOME PAYMENTWP JSA 25+ JOB OUTCOME PAYMENT,WWEG EP EAST MIDLANDS INGEUS UK,INGEUS UK LTD,2029750601,"27,600"
Department for Work & Pensions,Employment Programmes,04-Jun-13,WP JSA 25+ JOB OUTCOME PAYMENTWP JSA 25+ JOB OUTCOME PAYMENT,WWEG EP EAST OF ENGLAND INGEUS UK,INGEUS UK LTD,2029750601,"27,600"
Department for Work & Pensions,Corporate,28-Jun-13,NON-TREDDS IS IT SERVICES (AMS),CIO GG SERVICE DELIVERY,ATOS ORIGIN IT SERVICES UK LTD,2030061135,"27,597"
Department for Work & Pensions,Child Maintenance and Enforcement Commission,14-Jun-13,ICONS IS IT CONSULTANCY NON ADVICE,NEW SCHEME PROJECT RESOURCE RECHARGE,BT GLOBAL SERVICES,1000180426,"27,569"
Department for Work & Pensions,Corporate,04-Jun-13,HPES IS IT CONSULTANCY (DESKTOP) NON ADVICE,CHG ELECTRONIC SIGNING,HP ENTERPRISE SERVICES UK LTD,2029752852,"27,522"
Department for Work & Pensions,Employment Programmes,21-Jun-13,WP JSA 25+ SUSTAINMENT OUTCOME PAYMENT,WWEG EP WEST YORKSHIRE BEST LTD,INTERSERVE WORKING FUTURES,2029984135,"27,520"
Department for Work & Pensions,Employment Programmes,06-Jun-13,WP JSA 25+ JOB OUTCOME PAYMENTWP JSA 25+ JOB OUTCOME PAYMENT,WWEG EP SOUTH EAST SURR SUSSX AND KENT AVANTA ENTERPRISE,AVANTA ENTERPRISE LTD,2029821412,"27,360"
Department for Work & Pensions,Housing Benefits,14-Jun-13,HOUSING BENEFIT ADMINISTRATION,HB ENGLAND,EPSOM & EWELL BOROUGH COUNCIL,2029901464,"27,305"
Department for Work & Pensions,Employment Programmes,14-Jun-13,WP JSA 25+ SUSTAINMENT OUTCOME PAYMENT,WWEG EP NORTH WEST GM CHES AND WARR SEETEC,SEETEC BUSINESS TECHNOLOGY CENTRE LTD,2029902883,"27,305"
Department for Work & Pensions,Employment Programmes,03-Jun-13,WP JSA NEET SUSTAINMENT OUTCOME PAYMENT,WWEG EP SOUTH EAST SURR SUSSX AND KENT G4S,G4S REGIONAL MANAGEMENT UK & I LTD,2029748439,"27,250"
Department for Work & Pensions,Corporate,05-Jun-13,NON PRIME PROPERTY COSTS,OPS OPE ESTATES BASELINE,WYCHAVON DISTRICT COUNCIL,2029756090,"27,151"
Department for Work & Pensions,Corporate,28-Jun-13,PRIME BUSINESS RATES,F&C CD SHEFFIELD STEEL CITY HOUSE,TELEREAL TRILLIUM,2030061229,"27,111"
Department for Work & Pensions,Employment Programmes,14-Jun-13,WP JSA 18-24 JOB SUSTAINMENT OUTCOME PAYMENT,WWEG EP SCOTLAND INGEUS UK,INGEUS UK LTD,2029903449,"27,030"
Department for Work & Pensions,Corporate,26-Jun-13,PUBLICITY PRODUCTION COST,OPS WDC WSD EURES,INITIAL INCENTIVES,2030046915,"26,970"
Department for Work & Pensions,Employment Programmes,25-Jun-13,WP JSA 25+ SUSTAINMENT OUTCOME PAYMENT,WWEG EP NORTH WEST GM CHES AND WARR SEETEC,SEETEC BUSINESS TECHNOLOGY CENTRE LTD,2029990368,"26,875"
Department for Work & Pensions,Employment Programmes,10-Jun-13,WP JSA 25+ SUSTAINMENT OUTCOME PAYMENT,WWEG EP EAST LONDON SEETEC,SEETEC BUSINESS TECHNOLOGY CENTRE LTD,2029828896,"26,875"
Department for Work & Pensions,Employment Programmes,03-Jun-13,WP JSA 18-24 JOB OUTCOME PAYMENT,WWEG EP SCOTLAND INGEUS UK,INGEUS UK LTD,2029744835,"26,875"
Department for Work & Pensions,Corporate,11-Jun-13,NON-TREDDS IS IT APPS DEV MANDAY,CHG IT FIXES EASD,IBM UNITED KINGDOM LTD,2029836707,"26,872"
Department for Work & Pensions,Corporate,07-Jun-13,FSF - SUPPORT CONTRACT MODULES FOR JSA JOBSEEKERS,OPS WDC WSD NE DURHAM AND TEES VALLEY DISTRICT OFFICE,SENCIA LTD,2029825764,"26,857"
Department for Work & Pensions,Corporate,28-Jun-13,PRIME BUSINESS RATES,F&C CD BIRCHWOOD,TELEREAL TRILLIUM,2030061229,"26,847"
Department for Work & Pensions,Corporate,10-Jun-13,TREDDS APPS DEV MANDAYS,CHG PIP DELIVERY,HP ENTERPRISE SERVICES UK LTD,2029827045,"26,831"
Department for Work & Pensions,Corporate,07-Jun-13,NON PRIME PROPERTY COSTS,CHG ESTATES RATIONALISATION FORMER JCP OPS,DERWENT & SOLWAY HOUSING ASSOCIATION,2029826669,"26,805"
Department for Work & Pensions,Employment Programmes,11-Jun-13,ACCESS TO WORK - PAYMENT FOR SUPPORT WORKERS,WWEG EP LONDON REGION,REMARK,2029836190,"26,735"
Department for Work & Pensions,Housing Benefits,14-Jun-13,HOUSING BENEFIT ADMINISTRATION,HB ENGLAND,MALDON DISTRICT COUNCIL,2029901580,"26,644"
Department for Work & Pensions,Housing Benefits,14-Jun-13,HOUSING BENEFIT ADMINISTRATION,HB ENGLAND,WEST DEVON BOROUGH COUNCIL,2029901608,"26,524"
Department for Work & Pensions,Employment Programmes,14-Jun-13,WP JSA 25+ SUSTAINMENT OUTCOME PAYMENT,WWEG EP SOUTH EAST TV HANTS AND IOW A4E,A4E LTD,2029904436,"26,445"
Department for Work & Pensions,Employment Programmes,14-Jun-13,WP JSA 25+ JOB OUTCOME PAYMENTWP JSA 25+ JOB OUTCOME PAYMENT,WWEG EP SOUTH EAST SURR SUSSX AND KENT G4S,G4S REGIONAL MANAGEMENT UK & I LTD,2029902842,"26,400"
Department for Work & Pensions,Employment Programmes,21-Jun-13,WP JSA 18-24 JOB SUSTAINMENT OUTCOME PAYMENT,WWEG EP EAST MIDLANDS INGEUS UK,INGEUS UK LTD,2029986790,"26,350"
Department for Work & Pensions,Child Maintenance and Enforcement Commission,07-Jun-13,TREDDS APPS DEV FIXED PRICE CONTRACTS,LEGACY SYSTEMS IT RUNNING COSTS - IOL,HP ENTERPRISE SERVICES UK LTD,1000179661,"26,300"
Department for Work & Pensions,Employment Programmes,05-Jun-13,WP JSA 25+ JOB OUTCOME PAYMENTWP JSA 25+ JOB OUTCOME PAYMENT,WWEG EP NORTH WEST MERS HAL CUMB AND LANCS INGEUS UK,INGEUS UK LTD,2029816515,"26,266"
Department for Work & Pensions,Employment Programmes,21-Jun-13,WP JSA 25+ JOB OUTCOME PAYMENTWP JSA 25+ JOB OUTCOME PAYMENT,WWEG EP WEST LONDON REED IN PARTNERSHIP,REED IN PARTNERSHIP LTD,2029984394,"26,220"
Department for Work & Pensions,Employment Programmes,05-Jun-13,WP JSA 25+ JOB OUTCOME PAYMENTWP JSA 25+ JOB OUTCOME PAYMENT,WWEG EP W MIDLANDS COV WARW STAFFS AND MARCHES ESG,ESG HOLDINGS LIMITED,2029812023,"26,220"
Department for Work & Pensions,Employment Programmes,06-Jun-13,WP JSA 25+ JOB OUTCOME PAYMENTWP JSA 25+ JOB OUTCOME PAYMENT,WWEG EP WEST LONDON REED IN PARTNERSHIP,REED IN PARTNERSHIP LTD,2029818520,"26,220"
Department for Work & Pensions,Employment Programmes,28-Jun-13,WP JSA 25+ SUSTAINMENT OUTCOME PAYMENT,WWEG EP NORTH EAST INGEUS UK,INGEUS UK LTD,2030061092,"26,015"
Department for Work & Pensions,Corporate,04-Jun-13,POSTAGE,OPS BEN BD SC GLASGOW NORTHGATE,ROYAL MAIL GROUP PLC,2029751845,"25,820"
Department for Work & Pensions,Employment Programmes,03-Jun-13,WP JSA 25+ SUSTAINMENT OUTCOME PAYMENT,WWEG EP W MIDLANDS BIRM SOL BC FOURSTAR EMP AND SKILLS,EOS WORKS LTD,2029748049,"25,800"
Department for Work & Pensions,Corporate,10-Jun-13,HOSTING GMS SERVICES,OPS OPE IT WINTER FUEL,HP ENTERPRISE SERVICES UK LTD,2029827045,"25,795"
Department for Work & Pensions,Employment Programmes,21-Jun-13,WP JSA 18-24 JOB SUSTAINMENT OUTCOME PAYMENT,WWEG EP NORTH WEST MERS HAL CUMB AND LANCS A4E,A4E LTD,2029986046,"25,670"
Department for Work & Pensions,Corporate,25-Jun-13,FSF - TRAINING PAYMENTS TO PROVIDERS - JSA JOBSEEKERS,OPS WDC WSD LN SOUTH LONDON DISTRICT OFFICE,TWIN TRAINING INTERNATIONAL LTD,2029990517,"25,600"
Department for Work & Pensions,Corporate,14-Jun-13,ICONS IS IT CONSULTANCY NON ADVICE,CHG PIP DELIVERY,BT GLOBAL SERVICES,2029904866,"25,594"
Department for Work & Pensions,Corporate,14-Jun-13,Inter DWP debtor - Payments to Foreign bank accounts,BALANCE SHEET,L AUSTIN,2029903729,"25,592"
Department for Work & Pensions,Employment Programmes,05-Jun-13,WP JSA 25+ SUSTAINMENT OUTCOME PAYMENT,WWEG EP SCOTLAND INGEUS UK,INGEUS UK LTD,2029816515,"25,585"
Department for Work & Pensions,Employment Programmes,17-Jun-13,WP JSA 25+ SUSTAINMENT OUTCOME PAYMENT,WWEG EP EAST LONDON CAREERS DEVELOPMENT GROUP,CAREERS DEVELOPMENT GROUP,2029907316,"25,585"
Department for Work & Pensions,Housing Benefits,14-Jun-13,HOUSING BENEFIT ADMINISTRATION,HB ENGLAND,DERBYSHIRE DALES DISTRICT COUNCIL,2029901651,"25,546"
Department for Work & Pensions,Employment Programmes,28-Jun-13,WP JSA 18-24 JOB SUSTAINMENT OUTCOME PAYMENT,WWEG EP SCOTLAND INGEUS UK,INGEUS UK LTD,2030061092,"25,500"
Department for Work & Pensions,Employment Programmes,21-Jun-13,WP JSA CLAIMING 22 OF 24MTHS SUSTAINMENT OUTCOME PAYMENT,WWEG EP EAST MIDLANDS A4E,A4E LTD,2029986046,"25,500"
Department for Work & Pensions,Employment Programmes,24-Jun-13,WP JSA 18-24 JOB SUSTAINMENT OUTCOME PAYMENT,WWEG EP SCOTLAND WORKING LINKS,WORKING LINKS,2029987588,"25,500"
Department for Work & Pensions,Employment Programmes,04-Jun-13,WP JSA 18-24 JOB SUSTAINMENT OUTCOME PAYMENT,WWEG EP NORTH EAST AVANTA ENTERPRISE,AVANTA ENTERPRISE LTD,2029749800,"25,500"
Department for Work & Pensions,Employment Programmes,06-Jun-13,WP JSA 25+ SUSTAINMENT OUTCOME PAYMENT,WWEG EP WEST YORKSHIRE BEST LTD,INTERSERVE WORKING FUTURES,2029817853,"25,370"
Department for Work & Pensions,Employment Programmes,21-Jun-13,WP JSA CLAIMING 22 OF 24MTHS SUSTAINMENT OUTCOME PAYMENT,WWEG EP SCOTLAND INGEUS UK,INGEUS UK LTD,2029986790,"25,250"
Department for Work & Pensions,Corporate,17-Jun-13,BANK COMMISSION & CHARGES,F&C FIN CONT COBAP BANKING,HSBC BANK PLC,2029909311,"25,200"
Department for Work & Pensions,Employment Programmes,05-Jun-13,WP JSA 18-24 JOB OUTCOME PAYMENT,WWEG EP EAST OF ENGLAND INGEUS UK,INGEUS UK LTD,2029816515,"25,200"
Department for Work & Pensions,Employment Programmes,03-Jun-13,WP JSA 25+ JOB OUTCOME PAYMENTWP JSA 25+ JOB OUTCOME PAYMENT,WWEG EP SOUTH EAST SURR SUSSX AND KENT G4S,G4S REGIONAL MANAGEMENT UK & I LTD,2029748439,"25,200"
Department for Work & Pensions,Corporate,27-Jun-13,Inter DWP debtor - Payments to Foreign bank accounts,BALANCE SHEET,V ADAMS,1005848,"25,177"
Department for Work & Pensions,Employment Programmes,11-Jun-13,WP JSA 25+ SUSTAINMENT OUTCOME PAYMENT,WWEG EP SCOTLAND INGEUS UK,INGEUS UK LTD,2029836721,"25,155"
Department for Work & Pensions,Employment Programmes,03-Jun-13,WP JSA 25+ SUSTAINMENT OUTCOME PAYMENT,WWEG EP W MIDLANDS COV WARW STAFFS AND MARCHES SERCO,SERCO LTD,2029745743,"25,155"
Department for Work & Pensions,Housing Benefits,14-Jun-13,HOUSING BENEFIT ADMINISTRATION,HB ENGLAND,SOUTH NORTHANTS COUNCIL,2029901322,"25,131"
Department for Work & Pensions,Employment Programmes,04-Jun-13,WP JSA 25+ JOB OUTCOME PAYMENTWP JSA 25+ JOB OUTCOME PAYMENT,WWEG EP NORTH WEST MERS HAL CUMB AND LANCS INGEUS UK,INGEUS UK LTD,2029750601,"25,124"
Department for Work & Pensions,Housing Benefits,14-Jun-13,HOUSING BENEFIT ADMINISTRATION,HB ENGLAND,HARBOROUGH DISTRICT COUNCIL,2029901391,"25,105"
Department for Work & Pensions,Employment Programmes,18-Jun-13,ACCESS TO WORK - PAYMENT FOR SUPPORT WORKERS,WWEG EP SOUTH EAST,UNIVERSITY OF BRISTOL,2029910539,"25,068"
Department for Work & Pensions,Employment Programmes,27-Jun-13,WP JSA CLAIMING 22 OF 24MTHS SUSTAINMENT OUTCOME PAYMENT,WWEG EP EAST MIDLANDS A4E,A4E LTD,2030055907,"25,000"
Department for Work & Pensions,SHARED SERVICES,27-Jun-13,NON-TREDDS IS IT APPS DEV MANDAY,TSOL DD,FUJITSU SERVICES LTD,2030058247,"24,963"
Department for Work & Pensions,Housing Benefits,14-Jun-13,HOUSING BENEFIT ADMINISTRATION,HB ENGLAND,CHRISTCHURCH BOROUGH COUNCIL,2029901620,"24,931"
Department for Work & Pensions,Employment Programmes,03-Jun-13,WP JSA 18-24 JOB SUSTAINMENT OUTCOME PAYMENT,WWEG EP NORTH EAST INGEUS UK,INGEUS UK LTD,2029744835,"24,820"
Department for Work & Pensions,Employment Programmes,06-Jun-13,WP JSA 25+ JOB OUTCOME PAYMENTWP JSA 25+ JOB OUTCOME PAYMENT,WWEG EP SCOTLAND INGEUS UK,INGEUS UK LTD,2029818224,"24,725"
Department for Work & Pensions,Employment Programmes,04-Jun-13,WP JSA 25+ JOB OUTCOME PAYMENTWP JSA 25+ JOB OUTCOME PAYMENT,WWEG EP SCOTLAND INGEUS UK,INGEUS UK LTD,2029750601,"24,725"
Department for Work & Pensions,Employment Programmes,10-Jun-13,WP JSA 25+ SUSTAINMENT OUTCOME PAYMENT,WWEG EP EAST OF ENGLAND SEETEC,SEETEC BUSINESS TECHNOLOGY CENTRE LTD,2029828896,"24,725"
Department for Work & Pensions,Employment Programmes,24-Jun-13,WP JSA 18-24 JOB SUSTAINMENT OUTCOME PAYMENT,WWEG EP NORTH WEST GM CHES AND WARR AVANTA ENTERPRISE,AVANTA ENTERPRISE LTD,2029987831,"24,650"
Department for Work & Pensions,Employment Programmes,14-Jun-13,WP JSA 18-24 JOB SUSTAINMENT OUTCOME PAYMENT,WWEG EP NORTH WEST MERS HAL CUMB AND LANCS INGEUS UK,INGEUS UK LTD,2029903449,"24,650"
Department for Work & Pensions,Employment Programmes,06-Jun-13,WP JSA 25+ SUSTAINMENT OUTCOME PAYMENT,WWEG EP SCOTLAND INGEUS UK,INGEUS UK LTD,2029818224,"24,510"
Department for Work & Pensions,Employment Programmes,11-Jun-13,WP JSA 25+ SUSTAINMENT OUTCOME PAYMENT,WWEG EP WEST YORKSHIRE BEST LTD,INTERSERVE WORKING FUTURES,2029830955,"24,510"
Department for Work & Pensions,Housing Benefits,14-Jun-13,HOUSING BENEFIT ADMINISTRATION,HB ENGLAND,UTTLESFORD DISTRICT COUNCIL,2029901407,"24,454"
Department for Work & Pensions,Employment Programmes,05-Jun-13,WP JSA 25+ SUSTAINMENT OUTCOME PAYMENT,WWEG EP EAST LONDON CAREERS DEVELOPMENT GROUP,CAREERS DEVELOPMENT GROUP,2029804113,"24,295"
Department for Work & Pensions,Employment Programmes,13-Jun-13,WP JSA 18-24 JOB SUSTAINMENT OUTCOME PAYMENT,WWEG EP EAST LONDON CAREERS DEVELOPMENT GROUP,CAREERS DEVELOPMENT GROUP,2029901158,"24,140"
Department for Work & Pensions,Housing Benefits,14-Jun-13,HOUSING BENEFIT ADMINISTRATION,HB ENGLAND,RYEDALE DISTRICT COUNCIL,2029901631,"24,112"
Department for Work & Pensions,Employment Programmes,28-Jun-13,ACCESS TO WORK - TRAVEL IN WORK,WWEG EP NORTH WEST,CAPITA SYMONDS LTD,2030061182,"24,106"
Department for Work & Pensions,Employment Programmes,14-Jun-13,WP JSA 25+ SUSTAINMENT OUTCOME PAYMENT,WWEG EP WEST LONDON MAXIMUS EMPLOYMENT UK,MAXIMUS EMPLOYMENT UK LTD,2029902957,"24,080"
Department for Work & Pensions,Corporate,28-Jun-13,PRIME BUSINESS RATES,F&C CD MANCHESTER ANCHORAGE HOUSE,TELEREAL TRILLIUM,2030061229,"24,021"
Department for Work & Pensions,Employment Programmes,03-Jun-13,WP JSA 25+ JOB OUTCOME PAYMENTWP JSA 25+ JOB OUTCOME PAYMENT,WWEG EP EAST OF ENGLAND INGEUS UK,INGEUS UK LTD,2029744835,"24,000"
Department for Work & Pensions,Employment Programmes,14-Jun-13,WP JSA CLAIMING 22 OF 24MTHS SUSTAINMENT OUTCOME PAYMENT,WWEG EP WALES WORKING LINKS WALES,WORKING LINKS,2029903452,"24,000"
Department for Work & Pensions,Employment Programmes,10-Jun-13,WP JSA 25+ SUSTAINMENT OUTCOME PAYMENT,WWEG EP WEST LONDON MAXIMUS EMPLOYMENT UK,MAXIMUS EMPLOYMENT UK LTD,2029830280,"23,865"
Department for Work & Pensions,Employment Programmes,21-Jun-13,WP JSA 18-24 JOB SUSTAINMENT OUTCOME PAYMENT,WWEG EP EAST OF ENGLAND INGEUS UK,INGEUS UK LTD,2029986790,"23,800"
Department for Work & Pensions,Corporate,21-Jun-13,CONTRACTORS & STAFF SUBSTITUTIONS,CIO ADC DIRECTOR,CAPITA RESOURCING LTD,2029983441,"23,667"
Department for Work & Pensions,Employment Programmes,04-Jun-13,WP JSA 25+ SUSTAINMENT OUTCOME PAYMENT,WWEG EP SCOTLAND INGEUS UK,INGEUS UK LTD,2029750601,"23,650"
Department for Work & Pensions,Employment Programmes,18-Jun-13,WP JSA 25+ SUSTAINMENT OUTCOME PAYMENT,WWEG EP SOUTH EAST SURR SUSSX AND KENT AVANTA ENTERPRISE,AVANTA ENTERPRISE LTD,2029911736,"23,650"
Department for Work & Pensions,Employment Programmes,10-Jun-13,WP JSA 25+ SUSTAINMENT OUTCOME PAYMENT,WWEG EP W MIDLANDS COV WARW STAFFS AND MARCHES SERCO,SERCO LTD,2029827016,"23,650"
Department for Work & Pensions,Employment Programmes,07-Jun-13,WP JSA 25+ SUSTAINMENT OUTCOME PAYMENT,WWEG EP SOUTH EAST SURR SUSSX AND KENT AVANTA ENTERPRISE,AVANTA ENTERPRISE LTD,2029826599,"23,650"
Department for Work & Pensions,Employment Programmes,11-Jun-13,WP JSA 25+ SUSTAINMENT OUTCOME PAYMENT,WWEG EP EAST OF ENGLAND INGEUS UK,INGEUS UK LTD,2029836721,"23,650"
Department for Work & Pensions,Employment Programmes,07-Jun-13,WP JSA 18-24 JOB SUSTAINMENT OUTCOME PAYMENT,WWEG EP EAST OF ENGLAND INGEUS UK,INGEUS UK LTD,2029823251,"23,630"
Department for Work & Pensions,Employment Programmes,18-Jun-13,WP JSA 18-24 JOB SUSTAINMENT OUTCOME PAYMENT,WWEG EP EAST OF ENGLAND SEETEC,SEETEC BUSINESS TECHNOLOGY CENTRE LTD,2029911545,"23,630"
Department for Work & Pensions,Employment Programmes,03-Jun-13,WP JSA 18-24 JOB SUSTAINMENT OUTCOME PAYMENT,WWEG EP EAST MIDLANDS A4E,A4E LTD,2029745821,"23,630"
Department for Work & Pensions,Corporate,04-Jun-13,REMOTE STORAGE COSTS VAT RECOV,F&C OPS FIN DM CONTRACTS,CAPITA BUSINESS SERVICES LTD,2029750904,"23,616"
Department for Work & Pensions,Corporate,14-Jun-13,VOCA Charges,F&C FIN CONT COBAP BANKING,VOCALINK,2029905127,"23,500"
Department for Work & Pensions,Employment Programmes,03-Jun-13,WP JSA CLAIMING 22 OF 24MTHS SUSTAINMENT OUTCOME PAYMENT,WWEG EP W MIDLANDS BIRM SOL BC FOURSTAR EMP AND SKILLS,EOS WORKS LTD,2029748049,"23,500"
Department for Work & Pensions,Employment Programmes,28-Jun-13,WP JSA 18-24 JOB SUSTAINMENT OUTCOME PAYMENT,WWEG EP EAST MIDLANDS INGEUS UK,INGEUS UK LTD,2030061092,"23,460"
Department for Work & Pensions,Employment Programmes,25-Jun-13,WP JSA 25+ SUSTAINMENT OUTCOME PAYMENT,WWEG EP EAST OF ENGLAND INGEUS UK,INGEUS UK LTD,2029991352,"23,435"
Department for Work & Pensions,Employment Programmes,06-Jun-13,WP JSA 25+ SUSTAINMENT OUTCOME PAYMENT,WWEG EP WEST LONDON MAXIMUS EMPLOYMENT UK,MAXIMUS EMPLOYMENT UK LTD,2029819150,"23,435"
Department for Work & Pensions,Employment Programmes,04-Jun-13,WP JSA 25+ JOB OUTCOME PAYMENTWP JSA 25+ JOB OUTCOME PAYMENT,WWEG EP EAST OF ENGLAND SEETEC,SEETEC BUSINESS TECHNOLOGY CENTRE LTD,2029751834,"23,400"
Department for Work & Pensions,Employment Programmes,05-Jun-13,WP JSA CLAIMING 22 OF 24MTHS SUSTAINMENT OUTCOME PAYMENT,WWEG EP NORTH WEST GM CHES AND WARR AVANTA ENTERPRISE,AVANTA ENTERPRISE LTD,2029799280,"23,250"
Department for Work & Pensions,Employment Programmes,04-Jun-13,WP JSA 25+ SUSTAINMENT OUTCOME PAYMENT,WWEG EP W MIDLANDS COV WARW STAFFS AND MARCHES ESG,ESG HOLDINGS LIMITED,2029753254,"23,220"
Department for Work & Pensions,Corporate,04-Jun-13,POSTAGE,OPS PEN PS CAU,ROYAL MAIL GROUP PLC,2029751845,"23,121"
Department for Work & Pensions,Employment Programmes,07-Jun-13,WP JSA 18-24 JOB SUSTAINMENT OUTCOME PAYMENT,WWEG EP EAST MIDLANDS A4E,A4E LTD,2029822921,"23,120"
Department for Work & Pensions,Corporate,06-Jun-13,PROFESSIONAL ADVICE & OPINION VAT RECOVERABLE,PSG LEGAL SERVICES LITIGATION & EMPLOYMENT,FIELD FISHER WATERHOUSE LLP,2029818507,"23,008"
Department for Work & Pensions,Corporate,20-Jun-13,REMOTE STORAGE COSTS VAT RECOV,F&C OPS FIN DM CONTRACTS,CAPITA BUSINESS SERVICES LTD,2029981260,"22,840"
Department for Work & Pensions,Employment Programmes,05-Jun-13,WP JSA 18-24 JOB OUTCOME PAYMENT,WWEG EP NORTH WEST MERS HAL CUMB AND LANCS INGEUS UK,INGEUS UK LTD,2029816515,"22,840"
Department for Work & Pensions,Employment Programmes,27-Jun-13,WP JSA 25+ JOB OUTCOME PAYMENTWP JSA 25+ JOB OUTCOME PAYMENT,WWEG EP EAST MIDLANDS INGEUS UK,INGEUS UK LTD,2030057542,"22,800"
Department for Work & Pensions,Employment Programmes,28-Jun-13,WP JSA 25+ JOB OUTCOME PAYMENTWP JSA 25+ JOB OUTCOME PAYMENT,WWEG EP EAST OF ENGLAND INGEUS UK,INGEUS UK LTD,2030061092,"22,800"
Department for Work & Pensions,Employment Programmes,06-Jun-13,WP JSA 18-24 JOB OUTCOME PAYMENT,WWEG EP EAST LONDON CAREERS DEVELOPMENT GROUP,CAREERS DEVELOPMENT GROUP,2029818685,"22,800"
Department for Work & Pensions,Employment Programmes,17-Jun-13,WP JSA 25+ JOB OUTCOME PAYMENTWP JSA 25+ JOB OUTCOME PAYMENT,WWEG EP NORTH EAST AVANTA ENTERPRISE,AVANTA ENTERPRISE LTD,2029908291,"22,800"
Department for Work & Pensions,Employment Programmes,13-Jun-13,WP JSA 25+ JOB OUTCOME PAYMENTWP JSA 25+ JOB OUTCOME PAYMENT,WWEG EP SOUTH EAST SURR SUSSX AND KENT G4S,G4S REGIONAL MANAGEMENT UK & I LTD,2029900611,"22,800"
Department for Work & Pensions,Employment Programmes,18-Jun-13,WP JSA 25+ SUSTAINMENT OUTCOME PAYMENT,WWEG EP SCOTLAND INGEUS UK,INGEUS UK LTD,2029910315,"22,790"
Department for Work & Pensions,Employment Programmes,05-Jun-13,WP JSA 25+ SUSTAINMENT OUTCOME PAYMENT,WWEG EP W MIDLANDS BIRM SOL BC FOURSTAR EMP AND SKILLS,EOS WORKS LTD,2029815723,"22,790"
Department for Work & Pensions,Employment Programmes,14-Jun-13,WP JSA 18-24 JOB SUSTAINMENT OUTCOME PAYMENT,WWEG EP NORTH EAST INGEUS UK,INGEUS UK LTD,2029903449,"22,780"
Department for Work & Pensions,Housing Benefits,14-Jun-13,HOUSING BENEFIT ADMINISTRATION,HB ENGLAND,WEST SOMERSET DISTRICT COUNCIL,2029901574,"22,738"
Department for Work & Pensions,Corporate,03-Jun-13,FSF - SUPPORT CONTRACT MODULES FOR JSA JOBSEEKERS,OPS WDC WSD WL SOUTH EAST WALES DISTRICT OFFICE,CAPITAL TRAINING GROUP,2029746750,"22,647"
Department for Work & Pensions,Employment Programmes,28-Jun-13,WP JSA 18-24 JOB SUSTAINMENT OUTCOME PAYMENT,WWEG EP NORTH WEST MERS HAL CUMB AND LANCS INGEUS UK,INGEUS UK LTD,2030061092,"22,610"
Department for Work & Pensions,Employment Programmes,10-Jun-13,WP JSA 25+ JOB OUTCOME PAYMENTWP JSA 25+ JOB OUTCOME PAYMENT,WWEG EP SCOTLAND INGEUS UK,INGEUS UK LTD,2029827109,"22,575"
Department for Work & Pensions,Employment Programmes,18-Jun-13,WP JSA 25+ SUSTAINMENT OUTCOME PAYMENT,WWEG EP NORTH WEST GM CHES AND WARR SEETEC,SEETEC BUSINESS TECHNOLOGY CENTRE LTD,2029911545,"22,575"
Department for Work & Pensions,Corporate,06-Jun-13,CONTRACTORS & STAFF SUBSTITUTIONS,CHG IT TRANSFORMATION PROG,CAPITA RESOURCING LTD,2029817593,"22,493"
Department for Work & Pensions,Employment Programmes,24-Jun-13,WP JSA 25+ SUSTAINMENT OUTCOME PAYMENT,WWEG EP NORTH EAST AVANTA ENTERPRISE,AVANTA ENTERPRISE LTD,2029987831,"22,360"
Department for Work & Pensions,Employment Programmes,10-Jun-13,WP JSA 25+ SUSTAINMENT OUTCOME PAYMENT,WWEG EP EAST OF ENGLAND INGEUS UK,INGEUS UK LTD,2029827109,"22,360"
Department for Work & Pensions,Employment Programmes,14-Jun-13,WP JSA 25+ SUSTAINMENT OUTCOME PAYMENT,WWEG EP WALES WORKING LINKS WALES,WORKING LINKS,2029903452,"22,360"
Department for Work & Pensions,Employment Programmes,26-Jun-13,WP JSA 25+ JOB OUTCOME PAYMENTWP JSA 25+ JOB OUTCOME PAYMENT,WWEG EP S WEST GLOS WILTS AND W OF E JHP GROUP,JHP GROUP LTD,2030054597,"22,344"
Department for Work & Pensions,Child Maintenance and Enforcement Commission,04-Jun-13,PROFESSIONAL ADVICE & OPINION VAT RECOVERABLE,EXTERNAL CONTRACTS CENTRALLY HELD INLAND REVENUE TRACING,EXPERIAN LTD,1000179209,"22,311"
Department for Work & Pensions,Employment Programmes,03-Jun-13,WP JSA 18-24 JOB SUSTAINMENT OUTCOME PAYMENT,WWEG EP NORTH WEST MERS HAL CUMB AND LANCS A4E,A4E LTD,2029745821,"22,270"
Department for Work & Pensions,Corporate,28-Jun-13,PRIME BUSINESS RATES,F&C CD MANCHESTER HEYWOOD STORES,TELEREAL TRILLIUM,2030061229,"22,255"
Department for Work & Pensions,Employment Programmes,03-Jun-13,WP JSA CLAIMING 22 OF 24MTHS SUSTAINMENT OUTCOME PAYMENT,WWEG EP EAST MIDLANDS INGEUS UK,INGEUS UK LTD,2029744835,"22,250"
Department for Work & Pensions,Employment Programmes,12-Jun-13,WP JSA 25+ SUSTAINMENT OUTCOME PAYMENT,WWEG EP SCOTLAND WORKING LINKS,WORKING LINKS,2029875252,"22,145"
Department for Work & Pensions,Employment Programmes,21-Jun-13,WP JSA 25+ SUSTAINMENT OUTCOME PAYMENT,WWEG EP W MIDLANDS COV WARW STAFFS AND MARCHES SERCO,SERCO LTD,2029982523,"22,145"
Department for Work & Pensions,Corporate,13-Jun-13,INNOVATION FUND,CHG INNOVATION FUND SOCIAL INV BONDS,ENERGISE INNOVATION LTD,2029901267,"22,140"
Department for Work & Pensions,Employment Programmes,28-Jun-13,WP JSA 18-24 JOB SUSTAINMENT OUTCOME PAYMENT,WWEG EP NORTH EAST INGEUS UK,INGEUS UK LTD,2030061092,"22,100"
Department for Work & Pensions,Employment Programmes,06-Jun-13,WP JSA 25+ JOB OUTCOME PAYMENTWP JSA 25+ JOB OUTCOME PAYMENT,WWEG EP NORTH WEST MERS HAL CUMB AND LANCS A4E,A4E LTD,2029817289,"22,080"
Department for Work & Pensions,Corporate,28-Jun-13,PRIME BUSINESS RATES,F&C CD SHEFFIELD PORTERBROOK HOUSE,TELEREAL TRILLIUM,2030061229,"22,043"
Department for Work & Pensions,Employment Programmes,14-Jun-13,WP JSA 25+ ATTACHMENT FEE,WWEG EP SOUTH EAST SURR SUSSX AND KENT G4S,G4S REGIONAL MANAGEMENT UK & I LTD,2029902842,"22,000"
Department for Work & Pensions,Employment Programmes,03-Jun-13,WP JSA EARLY ACCESS SUSTAINMENT OUTCOME PAYMENT,WWEG EP SOUTH EAST SURR SUSSX AND KENT G4S,G4S REGIONAL MANAGEMENT UK & I LTD,2029748439,"22,000"
Department for Work & Pensions,Employment Programmes,28-Jun-13,WP JSA 18-24 JOB SUSTAINMENT OUTCOME PAYMENT,WWEG EP NORTH EAST AVANTA ENTERPRISE,AVANTA ENTERPRISE LTD,2030061172,"21,930"
Department for Work & Pensions,Employment Programmes,11-Jun-13,WP JSA 25+ SUSTAINMENT OUTCOME PAYMENT,WWEG EP WEST YORKSHIRE INGEUS UK,INGEUS UK LTD,2029836721,"21,930"
Department for Work & Pensions,Corporate,28-Jun-13,PRIME FACILITY PRICE,F&C CD PORTH OLDWAY HOUSE,TELEREAL TRILLIUM,2030061230,"21,881"
Department for Work & Pensions,Corporate,10-Jun-13,TREDDS APPS DEV MANDAYS,CHG APPEALS REFORM,HP ENTERPRISE SERVICES UK LTD,2029827045,"21,872"
Department for Work & Pensions,Child Maintenance and Enforcement Commission,21-Jun-13,CONTRACTORS & STAFF SUBSTITUTIONS,NEW SCHEME PROJECT RESOURCE RECHARGE,CAPITA RESOURCING LTD,1000181070,"21,763"
Department for Work & Pensions,Employment Programmes,21-Jun-13,WP JSA CLAIMING 22 OF 24MTHS SUSTAINMENT OUTCOME PAYMENT,WWEG EP EAST MIDLANDS INGEUS UK,INGEUS UK LTD,2029986790,"21,750"
Department for Work & Pensions,Corporate,10-Jun-13,NON-TREDDS IS IT SERVICES (HOSTING),CHG RM DISASTER RECOVERY REPLACEMENT,FUJITSU SERVICES LTD,2029829153,"21,739"
Department for Work & Pensions,Employment Programmes,10-Jun-13,WP JSA 25+ SUSTAINMENT OUTCOME PAYMENT,WWEG EP WEST LONDON REED IN PARTNERSHIP,REED IN PARTNERSHIP LTD,2029826776,"21,715"
Department for Work & Pensions,Employment Programmes,03-Jun-13,WP JSA 25+ SUSTAINMENT OUTCOME PAYMENT,WWEG EP WALES REHAB JOB FIT,REHAB JOBFIT,2029745510,"21,715"
Department for Work & Pensions,Employment Programmes,04-Jun-13,WP JSA 25+ SUSTAINMENT OUTCOME PAYMENT,WWEG EP W MIDLANDS BIRM SOL BC FOURSTAR EMP AND SKILLS,EOS WORKS LTD,2029748930,"21,715"
Department for Work & Pensions,Employment Programmes,03-Jun-13,WP JSA 18-24 JOB OUTCOME PAYMENT,WWEG EP NORTH WEST MERS HAL CUMB AND LANCS INGEUS UK,INGEUS UK LTD,2029744835,"21,698"
Department for Work & Pensions,Housing Benefits,14-Jun-13,HOUSING BENEFIT ADMINISTRATION,HB ENGLAND,CRAVEN DISTRICT COUNCIL,2029901579,"21,693"
Department for Work & Pensions,Employment Programmes,19-Jun-13,WP JSA 25+ JOB OUTCOME PAYMENTWP JSA 25+ JOB OUTCOME PAYMENT,WWEG EP NORTH WEST GM CHES AND WARR AVANTA ENTERPRISE,AVANTA ENTERPRISE LTD,2029951329,"21,660"
Department for Work & Pensions,Employment Programmes,06-Jun-13,WP JSA 18-24 JOB OUTCOME PAYMENT,WWEG EP NORTH EAST AVANTA ENTERPRISE,AVANTA ENTERPRISE LTD,2029821412,"21,660"
Department for Work & Pensions,Employment Programmes,05-Jun-13,WP JSA 25+ JOB OUTCOME PAYMENTWP JSA 25+ JOB OUTCOME PAYMENT,WWEG EP NORTH WEST GM CHES AND WARR AVANTA ENTERPRISE,AVANTA ENTERPRISE LTD,2029799280,"21,660"
Department for Work & Pensions,Employment Programmes,04-Jun-13,WP JSA 25+ JOB OUTCOME PAYMENTWP JSA 25+ JOB OUTCOME PAYMENT,WWEG EP EAST LONDON A4E,A4E LTD,2029749592,"21,660"
Department for Work & Pensions,Employment Programmes,10-Jun-13,WP JSA 25+ JOB OUTCOME PAYMENTWP JSA 25+ JOB OUTCOME PAYMENT,WWEG EP EAST LONDON A4E,A4E LTD,2029827638,"21,660"
Department for Work & Pensions,Employment Programmes,17-Jun-13,WP JSA 25+ JOB OUTCOME PAYMENTWP JSA 25+ JOB OUTCOME PAYMENT,WWEG EP EAST LONDON CAREERS DEVELOPMENT GROUP,CAREERS DEVELOPMENT GROUP,2029907316,"21,660"
Department for Work & Pensions,Employment Programmes,17-Jun-13,ACCESS TO WORK - PAYMENT FOR SUPPORT WORKERS,WWEG EP LONDON REGION,APPA,2029906033,"21,639"
Department for Work & Pensions,Corporate,20-Jun-13,FSF - TRAINING PAYMENTS TO PROVIDERS - JSA JOBSEEKERS,OPS WDC WSD SC EAST AND SOUTH EAST SCOTLAND DO,INGEUS UK LTD,2029981312,"21,600"
Department for Work & Pensions,Employment Programmes,21-Jun-13,WP JSA 25+ JOB OUTCOME PAYMENTWP JSA 25+ JOB OUTCOME PAYMENT,WWEG EP WEST LONDON MAXIMUS EMPLOYMENT UK,MAXIMUS EMPLOYMENT UK LTD,2029986192,"21,600"
Department for Work & Pensions,Employment Programmes,04-Jun-13,WP JSA 25+ JOB OUTCOME PAYMENTWP JSA 25+ JOB OUTCOME PAYMENT,WWEG EP NORTH EAST INGEUS UK,INGEUS UK LTD,2029750601,"21,600"
Department for Work & Pensions,Employment Programmes,17-Jun-13,WP JSA 18-24 JOB OUTCOME PAYMENT,WWEG EP EAST MIDLANDS INGEUS UK,INGEUS UK LTD,2029908133,"21,600"
Department for Work & Pensions,Housing Benefits,14-Jun-13,HOUSING BENEFIT ADMINISTRATION,HB ENGLAND,HART DISTRICT COUNCIL,2029901520,"21,582"
Department for Work & Pensions,Employment Programmes,06-Jun-13,WP JSA 25+ JOB OUTCOME PAYMENTWP JSA 25+ JOB OUTCOME PAYMENT,WWEG EP W MIDLANDS BIRM SOL BC NEWCASTLE COLLEGE GROUP,NEWCASTLE COLLEGE GROUP,2029818926,"21,528"
Department for Work & Pensions,Employment Programmes,24-Jun-13,WP JSA CLAIMING 22 OF 24MTHS SUSTAINMENT OUTCOME PAYMENT,WWEG EP NORTH WEST GM CHES AND WARR AVANTA ENTERPRISE,AVANTA ENTERPRISE LTD,2029987831,"21,500"
Department for Work & Pensions,Employment Programmes,05-Jun-13,WP JSA 25+ SUSTAINMENT OUTCOME PAYMENT,WWEG EP S WEST DEV COR DOR AND SOM PROSPECTS SERVICES,PROSPECTS SERVICES LTD,2029809252,"21,500"
Department for Work & Pensions,Employment Programmes,18-Jun-13,WP JSA 25+ SUSTAINMENT OUTCOME PAYMENT,WWEG EP SCOTLAND WORKING LINKS,WORKING LINKS,2029910389,"21,500"
Department for Work & Pensions,Employment Programmes,03-Jun-13,WP JSA CLAIMING 22 OF 24MTHS SUSTAINMENT OUTCOME PAYMENT,WWEG EP SCOTLAND INGEUS UK,INGEUS UK LTD,2029744835,"21,500"
Department for Work & Pensions,Employment Programmes,21-Jun-13,WP JSA 25+ SUSTAINMENT OUTCOME PAYMENT,WWEG EP W MIDLANDS BIRM SOL BC NEWCASTLE COLLEGE GROUP,NEWCASTLE COLLEGE GROUP,2029983949,"21,500"
Department for Work & Pensions,Employment Programmes,03-Jun-13,WP JSA CLAIMING 22 OF 24MTHS SUSTAINMENT OUTCOME PAYMENT,WWEG EP EAST LONDON A4E,A4E LTD,2029745821,"21,500"
Department for Work & Pensions,Child Maintenance and Enforcement Commission,27-Jun-13,OVERTIME,DEBT ENF AREA MANAGEMENT OFFICE,DSD GROUP ACCOUNT,1001360,"21,440"
Department for Work & Pensions,Employment Programmes,07-Jun-13,WP JSA 18-24 JOB SUSTAINMENT OUTCOME PAYMENT,WWEG EP NORTH WEST MERS HAL CUMB AND LANCS A4E,A4E LTD,2029822921,"21,420"
Department for Work & Pensions,Housing Benefits,14-Jun-13,HOUSING BENEFIT ADMINISTRATION,HB ENGLAND,SOUTH BUCKS DISTRICT COUNCIL,2029901482,"21,301"
Department for Work & Pensions,Housing Benefits,14-Jun-13,HOUSING BENEFIT ADMINISTRATION,HB ENGLAND,PURBECK DISTRICT COUNCIL,2029901594,"21,285"
Department for Work & Pensions,Employment Programmes,17-Jun-13,WP JSA CLAIMING 22 OF 24MTHS SUSTAINMENT OUTCOME PAYMENT,WWEG EP SOUTH EAST SURR SUSSX AND KENT AVANTA ENTERPRISE,AVANTA ENTERPRISE LTD,2029908291,"21,250"
Department for Work & Pensions,Employment Programmes,14-Jun-13,WP JSA CLAIMING 22 OF 24MTHS SUSTAINMENT OUTCOME PAYMENT,WWEG EP EAST MIDLANDS INGEUS UK,INGEUS UK LTD,2029903449,"21,250"
Department for Work & Pensions,Corporate,04-Jun-13,POSTAGE,OPS BEN DD MIDLANDS DBC NEW CLAIMS,ROYAL MAIL GROUP PLC,2029751845,"21,240"
Department for Work & Pensions,Employment Programmes,17-Jun-13,SERVICE FEE,WWEG EP CORE MWA CPA LONDON,SEETEC BUSINESS TECHNOLOGY CENTRE LTD,2029906291,"21,217"
Department for Work & Pensions,Corporate,04-Jun-13,NETWORK SERVICES,CIO AD HOC ITLR PROJECTS,BT GLOBAL SERVICES,2029751846,"21,209"
Department for Work & Pensions,Child Maintenance and Enforcement Commission,18-Jun-13,TREDDS IS IT CONSULTANCY (HOSTING) NON ADVICE,FUTURE SYSTEM IT RUNNING COSTS - IOL,HP ENTERPRISE SERVICES UK LTD,1000180663,"21,162"
Department for Work & Pensions,Child Maintenance and Enforcement Commission,19-Jun-13,DWP COURT FEES & RELATED EXPENSES,EXTERNAL CONTRACTS CENTRALLY HELD LAW CHARGES,JOHN CAMPBELL,1000180728,"21,138"
Department for Work & Pensions,Employment Programmes,21-Jun-13,WP JSA 18-24 JOB SUSTAINMENT OUTCOME PAYMENT,WWEG EP NORTH WEST MERS HAL CUMB AND LANCS INGEUS UK,INGEUS UK LTD,2029986790,"21,080"
Department for Work & Pensions,Corporate,10-Jun-13,APPS DEV INDEX ARR,CHG CP SERVICE ORIENTATED ARCHITECTURE,HP ENTERPRISE SERVICES UK LTD,2029827045,"21,071"
Department for Work & Pensions,Employment Programmes,21-Jun-13,WP JSA 25+ SUSTAINMENT OUTCOME PAYMENT,WWEG EP WALES REHAB JOB FIT,REHAB JOBFIT,2029984381,"21,070"
Department for Work & Pensions,Corporate,18-Jun-13,SECURE PRINTING,F&C CD SECURE PRINT,XEROX UK LTD 3W,2029912094,"21,063"
Department for Work & Pensions,Corporate,11-Jun-13,PUBLICITY ADVERTISING MEDIA,PSG STRATEGIC COMMS PRESS OFFICE,BOW TIE TELEVISION LTD,2029833421,"21,000"
Department for Work & Pensions,Employment Programmes,19-Jun-13,WP JSA 25+ JOB OUTCOME PAYMENTWP JSA 25+ JOB OUTCOME PAYMENT,WWEG EP EAST MIDLANDS A4E,A4E LTD,2029932888,"20,976"
Department for Work & Pensions,Employment Programmes,06-Jun-13,WP JSA 25+ JOB OUTCOME PAYMENTWP JSA 25+ JOB OUTCOME PAYMENT,WWEG EP SOUTH EAST TV HANTS AND IOW A4E,A4E LTD,2029817289,"20,976"
Department for Work & Pensions,Corporate,04-Jun-13,POSTAGE,OPS BEN DD WALES DBC NEW CLAIMS,ROYAL MAIL GROUP PLC,2029751845,"20,940"
Department for Work & Pensions,Employment Programmes,26-Jun-13,WP JSA 25+ SUSTAINMENT OUTCOME PAYMENT,WWEG EP SOUTH EAST SURR SUSSX AND KENT AVANTA ENTERPRISE,AVANTA ENTERPRISE LTD,2030047929,"20,855"
Department for Work & Pensions,Employment Programmes,19-Jun-13,SERVICE FEE,WWEG EP CORE MWA CPA NORTH WEST,JHP GROUP LTD,2029936960,"20,762"
Department for Work & Pensions,Employment Programmes,19-Jun-13,WP JSA CLAIMING 22 OF 24MTHS SUSTAINMENT OUTCOME PAYMENT,WWEG EP NORTH WEST GM CHES AND WARR SEETEC,SEETEC BUSINESS TECHNOLOGY CENTRE LTD,2029930296,"20,750"
Department for Work & Pensions,Employment Programmes,07-Jun-13,WP JSA CLAIMING 22 OF 24MTHS SUSTAINMENT OUTCOME PAYMENT,WWEG EP SCOTLAND INGEUS UK,INGEUS UK LTD,2029823251,"20,750"
Department for Work & Pensions,Employment Programmes,14-Jun-13,WP JSA CLAIMING 22 OF 24MTHS SUSTAINMENT OUTCOME PAYMENT,WWEG EP SCOTLAND INGEUS UK,INGEUS UK LTD,2029903449,"20,750"
Department for Work & Pensions,Employment Programmes,28-Jun-13,SUSTAINMENT FEE,WWEG EP WORK CHOICE WEST YORKSHIRE,THE PLUSS ORGANISATION,2030061178,"20,705"
Department for Work & Pensions,Employment Programmes,11-Jun-13,WP JSA 25+ SUSTAINMENT OUTCOME PAYMENT,WWEG EP SCOTLAND WORKING LINKS,WORKING LINKS,2029836768,"20,640"
Department for Work & Pensions,Corporate,28-Jun-13,CONTRACTORS & STAFF SUBSTITUTIONS,CIO ADC DIRECTOR,CAPITA RESOURCING LTD,2030061082,"20,568"
Department for Work & Pensions,Employment Programmes,05-Jun-13,WP JSA 25+ JOB OUTCOME PAYMENTWP JSA 25+ JOB OUTCOME PAYMENT,WWEG EP EAST LONDON A4E,A4E LTD,2029814811,"20,520"
Department for Work & Pensions,Employment Programmes,07-Jun-13,WP JSA CLAIMING 22 OF 24MTHS SUSTAINMENT OUTCOME PAYMENT,WWEG EP EAST MIDLANDS INGEUS UK,INGEUS UK LTD,2029823251,"20,500"
Department for Work & Pensions,Employment Programmes,14-Jun-13,Youth Contract Wage Incentive Payment,WWEG EP EAST OF ENGLAND INGEUS UK,B & M RETAIL LTD,2029904271,"20,475"
Department for Work & Pensions,Employment Programmes,24-Jun-13,WP JSA 25+ SUSTAINMENT OUTCOME PAYMENT,WWEG EP WEST LONDON INGEUS UK,INGEUS UK LTD,2029987587,"20,425"
Department for Work & Pensions,Housing Benefits,14-Jun-13,HOUSING BENEFIT ADMINISTRATION,HB ENGLAND,OADBY & WIGSTON BOROUGH COUNCIL,2029901387,"20,415"
Department for Work & Pensions,Employment Programmes,28-Jun-13,WP JSA 25+ JOB OUTCOME PAYMENTWP JSA 25+ JOB OUTCOME PAYMENT,WWEG EP NORTH EAST INGEUS UK,INGEUS UK LTD,2030061092,"20,400"
Department for Work & Pensions,Employment Programmes,14-Jun-13,WP JSA 18-24 JOB SUSTAINMENT OUTCOME PAYMENT,WWEG EP EAST MIDLANDS A4E,A4E LTD,2029904436,"20,400"
Department for Work & Pensions,Employment Programmes,10-Jun-13,WP JSA 25+ JOB OUTCOME PAYMENTWP JSA 25+ JOB OUTCOME PAYMENT,WWEG EP EAST OF ENGLAND INGEUS UK,INGEUS UK LTD,2029827109,"20,400"
Department for Work & Pensions,Employment Programmes,05-Jun-13,WP JSA 18-24 JOB OUTCOME PAYMENT,WWEG EP WALES WORKING LINKS WALES,WORKING LINKS,2029816885,"20,400"
Department for Work & Pensions,Employment Programmes,04-Jun-13,WP JSA 18-24 JOB OUTCOME PAYMENT,WWEG EP W MIDLANDS BIRM SOL BC FOURSTAR EMP AND SKILLS,EOS WORKS LTD,2029748930,"20,400"
Department for Work & Pensions,Employment Programmes,18-Jun-13,SERVICE FEE,WWEG EP CORE MWA CPA LONDON,SEETEC BUSINESS TECHNOLOGY CENTRE LTD,2029911545,"20,295"
Department for Work & Pensions,Employment Programmes,11-Jun-13,WP JSA CLAIMING 22 OF 24MTHS SUSTAINMENT OUTCOME PAYMENT,WWEG EP SOUTH EAST SURR SUSSX AND KENT AVANTA ENTERPRISE,AVANTA ENTERPRISE LTD,2029831653,"20,250"
Department for Work & Pensions,Employment Programmes,14-Jun-13,WP JSA CLAIMING 22 OF 24MTHS SUSTAINMENT OUTCOME PAYMENT,WWEG EP W MIDLANDS BIRM SOL BC FOURSTAR EMP AND SKILLS,EOS WORKS LTD,2029903198,"20,250"
Department for Work & Pensions,Employment Programmes,07-Jun-13,WP JSA 18-24 JOB SUSTAINMENT OUTCOME PAYMENT,WWEG EP EAST MIDLANDS INGEUS UK,INGEUS UK LTD,2029823251,"20,230"
Department for Work & Pensions,Employment Programmes,26-Jun-13,WP JSA 25+ SUSTAINMENT OUTCOME PAYMENT,WWEG EP NORTH WEST GM CHES AND WARR AVANTA ENTERPRISE,AVANTA ENTERPRISE LTD,2030047929,"20,210"
Department for Work & Pensions,Employment Programmes,14-Jun-13,WP JSA 25+ SUSTAINMENT OUTCOME PAYMENT,WWEG EP NORTH EAST AVANTA ENTERPRISE,AVANTA ENTERPRISE LTD,2029904834,"20,210"
Department for Work & Pensions,Employment Programmes,21-Jun-13,WP JSA 25+ SUSTAINMENT OUTCOME PAYMENT,WWEG EP SOUTH EAST SURR SUSSX AND KENT AVANTA ENTERPRISE,AVANTA ENTERPRISE LTD,2029984118,"20,210"
Department for Work & Pensions,Corporate,20-Jun-13,REMOTE STORAGE COSTS VAT RECOV,PSG IGS IMG,CAPITA BUSINESS SERVICES LTD,2029981260,"20,176"
Department for Work & Pensions,Corporate,04-Jun-13,NON-TREDDS IS IT APPS DEV MANDAY,CHG UC PROJECT LEDGER CC,IBM UNITED KINGDOM LTD,2029749255,"20,175"
Department for Work & Pensions,Corporate,17-Jun-13,CONTRACTORS & STAFF SUBSTITUTIONS,CIO C SS S & E IT DIRECTOR CORE,CAPITA RESOURCING LTD,2029905778,"20,120"
Department for Work & Pensions,Corporate,14-Jun-13,TREDDS APPS DEV MANDAYS,CIO ADC IT PROG DELIVERY DEPUTY DIRECTOR 1,HP ENTERPRISE SERVICES UK LTD,2029901912,"20,101"
Department for Work & Pensions,Employment Programmes,03-Jun-13,WP JSA NEET SUSTAINMENT OUTCOME PAYMENT,WWEG EP SCOTLAND INGEUS UK,INGEUS UK LTD,2029744835,"20,000"
Department for Work & Pensions,Employment Programmes,28-Jun-13,WP JSA 25+ SUSTAINMENT OUTCOME PAYMENT,WWEG EP NORTH WEST MERS HAL CUMB AND LANCS A4E,A4E LTD,2030061475,"19,995"
Department for Work & Pensions,Employment Programmes,17-Jun-13,WP JSA 25+ SUSTAINMENT OUTCOME PAYMENT,WWEG EP W MIDLANDS BIRM SOL BC FOURSTAR EMP AND SKILLS,EOS WORKS LTD,2029907866,"19,995"
Department for Work & Pensions,Corporate,04-Jun-13,REMOTE STORAGE COSTS VAT RECOV,PSG IGS IMG,CAPITA BUSINESS SERVICES LTD,2029750904,"19,990"
Department for Work & Pensions,Employment Programmes,18-Jun-13,ESF PRIORITY 1 EXTENDING EMPLOYMENT OPPORTUNITIES,WWEG EP LONDON REGION,CAREERS DEVELOPMENT GROUP,2029912184,"19,964"
Department for Work & Pensions,Corporate,04-Jun-13,SOFTWARE LICENCES,CIO ITLR HOSTING,SPECIALIST COMPUTER CENTRES PLC,2029751765,"19,880"
Department for Work & Pensions,Employment Programmes,06-Jun-13,WP JSA 25+ JOB OUTCOME PAYMENTWP JSA 25+ JOB OUTCOME PAYMENT,WWEG EP EAST MIDLANDS A4E,A4E LTD,2029817289,"19,872"
Department for Work & Pensions,Employment Programmes,06-Jun-13,WP JSA 25+ SUSTAINMENT OUTCOME PAYMENT,WWEG EP W MIDLANDS BIRM SOL BC FOURSTAR EMP AND SKILLS,EOS WORKS LTD,2029819151,"19,780"
Department for Work & Pensions,Employment Programmes,05-Jun-13,WP JSA CLAIMING 22 OF 24MTHS SUSTAINMENT OUTCOME PAYMENT,WWEG EP W MIDLANDS BIRM SOL BC NEWCASTLE COLLEGE GROUP,NEWCASTLE COLLEGE GROUP,2029802362,"19,750"
Department for Work & Pensions,Corporate,04-Jun-13,POSTAGE,OPS BEN BD SF PERRY BARR,ROYAL MAIL GROUP PLC,2029751845,"19,725"
Department for Work & Pensions,Employment Programmes,19-Jun-13,WP JSA 18-24 JOB SUSTAINMENT OUTCOME PAYMENT,WWEG EP NORTH WEST GM CHES AND WARR SEETEC,SEETEC BUSINESS TECHNOLOGY CENTRE LTD,2029930296,"19,720"
Department for Work & Pensions,Employment Programmes,10-Jun-13,WP JSA 18-24 JOB SUSTAINMENT OUTCOME PAYMENT,WWEG EP SCOTLAND WORKING LINKS,WORKING LINKS,2029827112,"19,720"
Department for Work & Pensions,Corporate,14-Jun-13,PRIME VARIABLE CHARGE,F&C CD NORCROSS,TELEREAL TRILLIUM,2029905624,"19,582"
Department for Work & Pensions,Employment Programmes,03-Jun-13,WP JSA 25+ JOB OUTCOME PAYMENTWP JSA 25+ JOB OUTCOME PAYMENT,WWEG EP EAST OF ENGLAND SEETEC,SEETEC BUSINESS TECHNOLOGY CENTRE LTD,2029744763,"19,500"
Department for Work & Pensions,Employment Programmes,28-Jun-13,WP JSA 18-24 JOB SUSTAINMENT OUTCOME PAYMENT,WWEG EP EAST OF ENGLAND INGEUS UK,INGEUS UK LTD,2030061092,"19,380"
Department for Work & Pensions,Employment Programmes,26-Jun-13,WP JSA 25+ JOB OUTCOME PAYMENTWP JSA 25+ JOB OUTCOME PAYMENT,WWEG EP EAST LONDON A4E,A4E LTD,2030055139,"19,380"
Department for Work & Pensions,Employment Programmes,21-Jun-13,WP JSA 25+ JOB OUTCOME PAYMENTWP JSA 25+ JOB OUTCOME PAYMENT,WWEG EP EAST LONDON A4E,A4E LTD,2029986046,"19,380"
Department for Work & Pensions,Employment Programmes,17-Jun-13,WP JSA 25+ JOB OUTCOME PAYMENTWP JSA 25+ JOB OUTCOME PAYMENT,WWEG EP EAST LONDON A4E,A4E LTD,2029909631,"19,380"
Department for Work & Pensions,Employment Programmes,07-Jun-13,WP JSA 18-24 JOB SUSTAINMENT OUTCOME PAYMENT,WWEG EP NORTH WEST MERS HAL CUMB AND LANCS INGEUS UK,INGEUS UK LTD,2029823251,"19,380"
Department for Work & Pensions,Employment Programmes,14-Jun-13,WP JSA 18-24 JOB SUSTAINMENT OUTCOME PAYMENT,WWEG EP EAST OF ENGLAND SEETEC,SEETEC BUSINESS TECHNOLOGY CENTRE LTD,2029902883,"19,380"
Department for Work & Pensions,Employment Programmes,25-Jun-13,WP JSA 25+ SUSTAINMENT OUTCOME PAYMENT,WWEG EP WEST LONDON INGEUS UK,INGEUS UK LTD,2029991352,"19,350"
Department for Work & Pensions,Employment Programmes,27-Jun-13,WP JSA 25+ SUSTAINMENT OUTCOME PAYMENT,WWEG EP SOUTH EAST SURR SUSSX AND KENT AVANTA ENTERPRISE,AVANTA ENTERPRISE LTD,2030057419,"19,350"
Department for Work & Pensions,Employment Programmes,14-Jun-13,WP JSA 25+ JOB OUTCOME PAYMENTWP JSA 25+ JOB OUTCOME PAYMENT,WWEG EP SCOTLAND INGEUS UK,INGEUS UK LTD,2029903449,"19,350"
Department for Work & Pensions,Employment Programmes,07-Jun-13,WP JSA 25+ SUSTAINMENT OUTCOME PAYMENT,WWEG EP SOUTH EAST TV HANTS AND IOW MAXIMUS EMPLOYMENT,MAXIMUS EMPLOYMENT UK LTD,2029821636,"19,350"
